Workbook

Sheet DATABASE
C1: COST | I1: COST
B3: DH01 91101:THAI CHK | C3: 3.29 | F3: DC01 1101:THAI CHK | I3: =+C3 -> 3.29
B4: DH02 91102:MAMITE CHK | C4: 3.02 | F4: DC02 1102:MAMITE CHK | I4: =+C4 -> 3.02
B5: DH03 91103:KO PO CHK | C5: 3.45 | F5: DC03 1103:KO PO CHK | I5: 3.45
B6: DH04 91104:S&S CHK | C6: 3.45 | F6: DC04 1104:S&S CHK | I6: 3.45
B7: DH05 91105:BUTTER CHK | C7: 3.32 | F7: DC05 1105:BUTTER CHK | I7: 3.32
B8: DH06 91106:HK F.RICE | C8: 3.16 | F8: DC06 1106:HK F.RICE | I8: 3.16
B9: DH07 91107:SBL F.RICE | C9: 2.41 | F9: DC07 1107:SBL F.RICE | I9: 2.41
B10: DH08 91108:SBL F.MEE | C10: 2.8 | F10: DC08 1108:SBL F.MEE | I10: 2.8
B11: DH09 91109:BP UDON | C11: 2.08 | F11: DC09 1109:BP UDON | I11: 2.08
B12: DH10 91110:NISSIN | C12: 2.32 | F12: DC10 1110:NISSIN | I12: 2.32
B13: DH11 91111:VEG RICE | C13: 1.6 | F13: DC11 1111:VEG RICE | I13: 1.6
B14: DH12 91112:NASI LEMAK | C14: 3.56 | F14: DC12 1112:NASI LEMAK | I14: 3.56
B15: DH13 91113:KUEY TEOW | C15: 3.16 | F15: DC13 1113:KUEY TEOW | I15: 3.16
B16: DH14 91114:F.BALL MEE | C16: 2.59 | F16: DC14 1114:F.BALL MEE | I16: 2.59
B17: DH15 91115:CHK NOODLE | C17: 4.71 | F17: DC15 1115:CHK NOODLE | I17: 4.71
B18: DH16 91116:MGL CHK | C18: 3.54 | F18: DC16 1116:MGL CHICKEN | I18: 3.54
B19: DG01 91001:BP CHK CP | C19: 4.41 | F19: DB01 1001:BP CKN CP | I19: 4.41
B20: DG02 91002:GVY CHK CP | C20: 4.43 | F20: DB02 1002:GVY CHK CP | I20: 4.43
B21: DG03 91003:MSR CHK CP | C21: 4.75 | F21: DB03 1003:MSR CKN CP | I21: 4.75
B22: DG04 91004:CKN MARY | C22: 5.98 | F22: DB04 1004:CKN MARY | I22: 5.98
B23: DG05 91005:FISH&CHIP | C23: 4.29 | F23: DB05 1005:FISH&CHIP | I23: 4.29
B24: DG06 91006:SPAGHETTI | C24: 2.1 | F24: DB06 1006:SPAGHETTI | I24: 2.1
B25: DG07 91007:CHK SALAD | C25: 4.94 | F25: DB07 1007:CHK SALAD | I25: 4.94
B26: DI01 91201:SFD STICK | C26: 2 | F26: DD01 1201:SFD STICK | I26: 2
B29: DI02 91202:FREN FRIES | C29: 1.76 | F29: DD02 1202:FREN FRIES | I29: =+C29 -> 1.76
B30: DI03 91203:GOLD MROOM | C30: 2.15 | F30: DD03 1203:GOLD MROOM | I30: =+C30 -> 2.15
B31: DI04 91204:FISHBALL | C31: 1.56 | F31: DD04 1204:FISHBALL | I31: 1.56
B32: DI05 91205:RAINBOW RL | C32: 2.5 | F32: DD05 1205:RAINBOW RL | I32: 2.5
B33: DI06 91206:SPRING RL | C33: 2.67 | F33: DD06 1206:SPRING RL | I33: 2.67
B34: DI07 91207:SAUSAGE | C34: 1.24 | F34: DD07 1207:SAUSAGE | I34: 1.24
B35: DI08 91208:HOTDOG BUN
B36: DI09 91209:SFD TOFU
B37: DI10 91301:DUMPLING | C37: 4.5 | F37: DD10 1301:DUMPLING | I37: =+C37 -> 4.5
B38: DI11 91302:NUGGET | C38: 2.43 | F38: DD11 1302:NUGGET | I38: =+C38 -> 2.43
B39: DI12 91303:CHK WING | C39: 3.97 | F39: DD12 1303:CHK WING | I39: 3.97
B40: DI13 91304:IKAN BILIS | C40: 2.18 | F40: DD13 1304:IKAN BILIS | I40: 2.18
B41: DI14 91305:THAI RL | C41: 3.61 | F41: DD14 1305:THAI RL | I41: 3.61
B42: DI15 91306:SLVR FISH | F42: DD15 1306:SLVR FISH | I42: 0
B43: DI16 91307:D/F C.WING | C43: 4.31 | F43: DD16 1307:D.F C/WING | I43: 4.31
B44: DI17 91308:C/CALAMARI | C44: 3.69 | F44: DD17 1308 C/CALAMARI | I44: 3.69
B45: DI18 91309:Mc O.RINGS | C45: 1.72 | F45: DD18 1309 Mc C/O.RING | I45: 1.72
B46: DI19 91310:McSPIRAL.F | C46: 1.72 | F46: DD19 1310:Mc SPIRAL/F | I46: 1.72
B47: DI20 91311Mc H/SMILES | C47: 1.34 | F47: DD20 1311:Mc H/SMILES | I47: 1.34
B48: DI21 91312:Mc HASH.B | C48: 0.59 | F48: DD21 1312:Mc HASH BRW | I48: 0.59
F49: ZAB01 1201:SFD STICK | I49: 2
F51: ZAB02 1202:FRIES | I51: 1.76
F52: ZAB03 1203:GOLD MROOM | I52: 2.15
F53: ZAB04 1204:F.BALL | I53: 1.56
F54: ZAB06 1206:SPRING RL | I54: 2.5
F55: ZAB07 1207:SAUSAGE | I55: 2.67
F56: ZAC02 1302:NUGGET | I56: 1.24
F57: ZAC03 1303:CHK WING | I57: 3.97
F58: ZAC04 1304:IKAN BILIS | I58: 2.18
F59: ZAC05 1305:THAI RL | I59: 3.61
F60: ZAC07 1307:D/F C.WINGS | I60: 4.31
F61: ZAC08 1308:C/CALAMARI | I61: 3.69
F62: ZAC09 1309:Mc /O.RINGS | I62: 1.72
F63: ZAC10 1310:Mc SPIRAL/F | I63: 1.72
F64: ZAC11 1311:Mc H/SMILES | I64: 1.34
F65: ZAC12 1312:Mc HASH/B | I65: 0.59
F66: DL01 3001:6'HAWAIIAN | I66: 3.25
F67: DL02 3002:6'SMOKE BBQ | I67: 4.59
F68: DL03 3003:6'SEAFOOD | I68: 5.13
F69: DL04 3004:6'SPICY BUF | I69: 2.99
F70: DL05 3005:6'VEGGIE | I70: 3.62
F71: DL06 3001:9'HAWAIIAN | I71: 5.79
F72: DL07 3002:9'SMOKED | I72: 8.21
F73: DL08 3003:9'SEAFOOD | I73: 9.48
F74: DL09 3004:9'SPICY B | I74: 5.38
F75: DL10 3005:9'VEGGIE | I75: 6.96
F76: DM01 SNACK PLATTER(A) | I76: 4.6
F77: DM02 SNACK PLATTER(B) | I77: 4.6
F78: DM03 CNY platter(A) | I78: 9.81
F79: DM04 CNY platter (B) | I79: 9.81
F80: DF01 ADD RICE | I80: 0.5
F81: DF02 ADD F.EGG | I81: 0.34

Sheet Summary
C3: SUMMARY OF PRODUCT SALES IN MONTH
B6: OUTLET | C6: =MID(CELL("FILENAME",$A$1),FIND("[",CELL("FILENAME",$A$1))+1,3) -> CCS
B8: YEAR | C8: =MID(CELL("FILENAME",$A$1),FIND("[",CELL("FILENAME",$A$1))+4,4) -> 2013
B10: MONTH | C10: =INDEX($C$12:$C$23,MID(CELL("FILENAME",$A$1),FIND("[",CELL("FILENAME",$A$1))+8,2),1) -> AUGUST
B12: MONTH | C12: JANUARY
C13: FEBRUARY
C14: MARCH
C15: APRIL
C16: MAY
C17: JUNE
C18: JULY
C19: AUGUST
C20: SEPTEMBER
C21: OCTOBER
C22: NOVEMBER
C23: DECEMBER
B26: PRODUCT | D26: CATEGORY | E26: QTY | F26: QUANTITIES SOLD IN MONTH
E27: PER | F27: TOTAL | G27: =DATE(C8,MID(CELL("FILENAME",$A$1),FIND("[",CELL("FILENAME",$A$1))+8,2),1) -> 2013-08-01 | H27: =IFERROR(IF(MONTH(G27+1)<=MONTH($G$27),G27+1,""),"") -> 2013-08-02 | I27: =IFERROR(IF(MONTH(H27+1)<=MONTH($G$27),H27+1,""),"") -> 2013-08-03 | J27: 2013-08-04 | K27: 2013-08-05 | L27: 2013-08-06 | M27: 2013-08-07 | N27: 2013-08-08 | O27: 2013-08-09 | P27: 2013-08-10 | Q27: 2013-08-11 | R27: 2013-08-12 | S27: 2013-08-13 | T27: 2013-08-14 | U27: 2013-08-15 | V27: 2013-08-16 | W27: 2013-08-17 | X27: 2013-08-18 | Y27: 2013-08-19 | Z27: 2013-08-20 | AA27: 2013-08-21 | AB27: 2013-08-22 | AC27: 2013-08-23 | AD27: 2013-08-24 | AE27: 2013-08-25 | AF27: 2013-08-26 | AG27: 2013-08-27 | AH27: 2013-08-28 | AI27: 2013-08-29 | AJ27: 2013-08-30 | AK27: 2013-08-31
E28: ITEM
B30: BA01 K : 4BP | D30: BEER | E30: 12 | F30: =SUM($G30:$AK30) -> 0 | G30: =IFERROR($E30*SUMIF('Daily Log'!$B$18:$B$1017,$B30,'[1]Daily Log'!$C$18:$C$1017),0) -> 0 | H30: =IFERROR($E30*SUMIF('Daily Log'!$B$18:$B$1017,$B30,'[1]Daily Log'!$C$18:$C$1017),0) -> 0 | I30: =IFERROR($E30*SUMIF('Daily Log'!$B$18:$B$1017,$B30,'[1]Daily Log'!$C$18:$C$1017),0) -> 0 | J30: =IFERROR($E30*SUMIF('Daily Log'!$B$18:$B$1017,$B30,'[1]Daily Log'!$C$18:$C$1017),0) -> 0 | K30: =IFERROR($E30*SUMIF('Daily Log'!$B$18:$B$1017,$B30,'[1]Daily Log'!$C$18:$C$1017),0) -> 0 | L30: =IFERROR($E30*SUMIF('Daily Log'!$B$18:$B$1017,$B30,'[1]Daily Log'!$C$18:$C$1017),0) -> 0 | M30: =IFERROR($E30*SUMIF('Daily Log'!$B$18:$B$1017,$B30,'[1]Daily Log'!$C$18:$C$1017),0) -> 0 | N30: =IFERROR($E30*SUMIF('Daily Log'!$B$18:$B$1017,$B30,'[1]Daily Log'!$C$18:$C$1017),0) -> 0 | O30: =IFERROR($E30*SUMIF('[2]Daily Log'!$Z$18:$Z$1017,$B30,'[2]Daily Log'!$AA$18:$AA$1017),0) -> 0 | P30: =IFERROR($E30*SUMIF('[2]Daily Log'!$AC$18:$AC$1017,$B30,'[2]Daily Log'!$AD$18:$AD$1017),0) -> 0 | Q30: =IFERROR($E30*SUMIF('[2]Daily Log'!$AF$18:$AF$1017,$B30,'[2]Daily Log'!$AG$18:$AG$1017),0) -> 0 | R30: =IFERROR($E30*SUMIF('[2]Daily Log'!$AI$18:$AI$1017,$B30,'[2]Daily Log'!$AJ$18:$AJ$1017),0) -> 0 | S30: =IFERROR($E30*SUMIF('[2]Daily Log'!$AL$18:$AL$1017,$B30,'[2]Daily Log'!$AM$18:$AM$1017),0) -> 0 | T30: =IFERROR($E30*SUMIF('[2]Daily Log'!$AO$18:$AO$1017,$B30,'[2]Daily Log'!$AP$18:$AP$1017),0) -> 0 | U30: =IFERROR($E30*SUMIF('[2]Daily Log'!$AR$18:$AR$1017,$B30,'[2]Daily Log'!$AS$18:$AS$1017),0) -> 0 | V30: =IFERROR($E30*SUMIF('[2]Daily Log'!$AU$18:$AU$1017,$B30,'[2]Daily Log'!$AV$18:$AV$1017),0) -> 0 | W30: =IFERROR($E30*SUMIF('[2]Daily Log'!$AX$18:$AX$1017,$B30,'[2]Daily Log'!$AY$18:$AY$1017),0) -> 0 | X30: =IFERROR($E30*SUMIF('[2]Daily Log'!$BA$18:$BA$1017,$B30,'[2]Daily Log'!$BB$18:$BB$1017),0) -> 0 | Y30: =IFERROR($E30*SUMIF('[2]Daily Log'!$BD$18:$BD$1017,$B30,'[2]Daily Log'!$BE$18:$BE$1017),0) -> 0 | Z30: =IFERROR($E30*SUMIF('[2]Daily Log'!$BG$18:$BG$1017,$B30,'[2]Daily Log'!$BH$18:$BH$1017),0) -> 0 | AA30: =IFERROR($E30*SUMIF('[2]Daily Log'!$BJ$18:$BJ$1017,$B30,'[2]Daily Log'!$BK$18:$BK$1017),0) -> 0 | AB30: =IFERROR($E30*SUMIF('[2]Daily Log'!$BM$18:$BM$1017,$B30,'[2]Daily Log'!$BN$18:$BN$1017),0) -> 0 | AC30: =IFERROR($E30*SUMIF('[2]Daily Log'!$BP$18:$BP$1017,$B30,'[2]Daily Log'!$BQ$18:$BQ$1017),0) -> 0 | AD30: =IFERROR($E30*SUMIF('[2]Daily Log'!$BS$18:$BS$1017,$B30,'[2]Daily Log'!$BT$18:$BT$1017),0) -> 0 | AE30: =IFERROR($E30*SUMIF('[2]Daily Log'!$BV$18:$BV$1017,$B30,'[2]Daily Log'!$BW$18:$BW$1017),0) -> 0 | AF30: =IFERROR($E30*SUMIF('[2]Daily Log'!$BY$18:$BY$1017,$B30,'[2]Daily Log'!$BZ$18:$BZ$1017),0) -> 0 | AG30: =IFERROR($E30*SUMIF('[2]Daily Log'!$CB$18:$CB$1017,$B30,'[2]Daily Log'!$CC$18:$CC$1017),0) -> 0 | AH30: =IFERROR($E30*SUMIF('[2]Daily Log'!$CE$18:$CE$1017,$B30,'[2]Daily Log'!$CF$18:$CF$1017),0) -> 0 | AI30: =IFERROR($E30*SUMIF('[2]Daily Log'!$CH$18:$CH$1017,$B30,'[2]Daily Log'!$CI$18:$CI$1017),0) -> 0 | AJ30: =IFERROR($E30*SUMIF('[2]Daily Log'!$CK$18:$CK$1017,$B30,'[2]Daily Log'!$CL$18:$CL$1017),0) -> 0 | AK30: =IFERROR($E30*SUMIF('[2]Daily Log'!$CN$18:$CN$1017,$B30,'[2]Daily Log'!$CO$18:$CO$1017),0) -> 0
B31: BA02 H : 4BP | D31: BEER | E31: 12 | F31: 132 | AK31: =IFERROR($E31*SUMIF('Daily Log'!$CN$18:$CN$1017,$B31,'Daily Log'!$CO$18:$CO$1017),0) -> 132
B32: BA03 H : 4BP MEMBER | D32: BEER | E32: 12 | F32: 0 | AK32: =IFERROR($E32*SUMIF('Daily Log'!$CN$18:$CN$1017,$B32,'Daily Log'!$CO$18:$CO$1017),0) -> 0
B33: BA04 N : 4BP | D33: BEER | E33: 12 | F33: 2148 | AK33: =IFERROR($E33*SUMIF('Daily Log'!$CN$18:$CN$1017,$B33,'Daily Log'!$CO$18:$CO$1017),0) -> 2148
B34: BA05 N : 4BP MEMBER | D34: BEER | E34: 12 | F34: 60 | AK34: =IFERROR($E34*SUMIF('Daily Log'!$CN$18:$CN$1017,$B34,'Daily Log'!$CO$18:$CO$1017),0) -> 60
B35: BA06 M : 4BP | D35: BEER | E35: 12 | F35: 228 | AK35: =IFERROR($E35*SUMIF('Daily Log'!$CN$18:$CN$1017,$B35,'Daily Log'!$CO$18:$CO$1017),0) -> 228
B36: BA07 M : 4BP MEMBER | D36: BEER | E36: 12 | F36: 0 | AK36: =IFERROR($E36*SUMIF('Daily Log'!$CN$18:$CN$1017,$B36,'Daily Log'!$CO$18:$CO$1017),0) -> 0
B37: BA08 GUINNESS BTL | D37: BEER | E37: 1 | F37: 24 | AK37: =IFERROR($E37*SUMIF('Daily Log'!$CN$18:$CN$1017,$B37,'Daily Log'!$CO$18:$CO$1017),0) -> 24
B38: BA09 GUINNESS BKT | D38: BEER | E38: 4 | F38: 96 | AK38: =IFERROR($E38*SUMIF('Daily Log'!$CN$18:$CN$1017,$B38,'Daily Log'!$CO$18:$CO$1017),0) -> 96
B39: BA10 GUINNESS RND | D39: BEER | E39: 12 | F39: 24 | AK39: =IFERROR($E39*SUMIF('Daily Log'!$CN$18:$CN$1017,$B39,'Daily Log'!$CO$18:$CO$1017),0) -> 24
B40: BA11 HEINEKEN BTL | D40: BEER | E40: 1 | F40: 21 | AK40: =IFERROR($E40*SUMIF('Daily Log'!$CN$18:$CN$1017,$B40,'Daily Log'!$CO$18:$CO$1017),0) -> 21
B41: BA12 HEINEKEN BKT | D41: BEER | E41: 4 | F41: 128 | AK41: =IFERROR($E41*SUMIF('Daily Log'!$CN$18:$CN$1017,$B41,'Daily Log'!$CO$18:$CO$1017),0) -> 128
B42: BA13 HEINEKEN RND | D42: BEER | E42: 12 | F42: 228 | AK42: =IFERROR($E42*SUMIF('Daily Log'!$CN$18:$CN$1017,$B42,'Daily Log'!$CO$18:$CO$1017),0) -> 228
B43: BA14 TIGER BTL | D43: BEER | E43: 1 | F43: 41 | AK43: =IFERROR($E43*SUMIF('Daily Log'!$CN$18:$CN$1017,$B43,'Daily Log'!$CO$18:$CO$1017),0) -> 41
B44: BA15 TIGER BKT | D44: BEER | E44: 4 | F44: 436 | AK44: =IFERROR($E44*SUMIF('Daily Log'!$CN$18:$CN$1017,$B44,'Daily Log'!$CO$18:$CO$1017),0) -> 436
B45: BA16 TIGER RND | D45: BEER | E45: 12 | F45: 864 | AK45: =IFERROR($E45*SUMIF('Daily Log'!$CN$18:$CN$1017,$B45,'Daily Log'!$CO$18:$CO$1017),0) -> 864
B46: BA17 TIGER 3+1 | D46: BEER | E46: 0 | F46: 0 | AK46: =IFERROR($E46*SUMIF('Daily Log'!$CN$18:$CN$1017,$B46,'Daily Log'!$CO$18:$CO$1017),0) -> 0
B47: BA19 Tiger 2+1 | D47: BEER | E47: 12 | F47: 288 | AK47: =IFERROR($E47*SUMIF('Daily Log'!$CN$18:$CN$1017,$B47,'Daily Log'!$CO$18:$CO$1017),0) -> 288
B48: BA20 Heineken 3+1 | D48: BEER | E48: 16 | F48: 240 | AK48: =IFERROR($E48*SUMIF('Daily Log'!$CN$18:$CN$1017,$B48,'Daily Log'!$CO$18:$CO$1017),0) -> 240
B49: CA01 GRAPE J | D49: SIDE ORDER-JUICE | E49: 1 | F49: 0 | AK49: =IFERROR($E49*SUMIF('Daily Log'!$CN$18:$CN$1017,$B49,'Daily Log'!$CO$18:$CO$1017),0) -> 0
B50: CA02 APPLE J | D50: SIDE ORDER-JUICE | E50: 1 | F50: 3 | AK50: =IFERROR($E50*SUMIF('Daily Log'!$CN$18:$CN$1017,$B50,'Daily Log'!$CO$18:$CO$1017),0) -> 3
B51: CA03 KIWI J | D51: SIDE ORDER-JUICE | E51: 1 | F51: 0 | AK51: =IFERROR($E51*SUMIF('Daily Log'!$CN$18:$CN$1017,$B51,'Daily Log'!$CO$18:$CO$1017),0) -> 0
B52: CA04 MANGO J | D52: SIDE ORDER-JUICE | E52: 1 | F52: 1 | AK52: =IFERROR($E52*SUMIF('Daily Log'!$CN$18:$CN$1017,$B52,'Daily Log'!$CO$18:$CO$1017),0) -> 1
B53: CA05 PASSION J | D53: SIDE ORDER-JUICE | E53: 1 | F53: 3 | AK53: =IFERROR($E53*SUMIF('Daily Log'!$CN$18:$CN$1017,$B53,'Daily Log'!$CO$18:$CO$1017),0) -> 3
B54: CA06 RIBENA J | D54: SIDE ORDER-JUICE | E54: 1 | F54: 2 | AK54: =IFERROR($E54*SUMIF('Daily Log'!$CN$18:$CN$1017,$B54,'Daily Log'!$CO$18:$CO$1017),0) -> 2
B55: CB01 GRAPE SO | D55: SIDE ORDER-SODA | E55: 1 | F55: 0 | AK55: =IFERROR($E55*SUMIF('Daily Log'!$CN$18:$CN$1017,$B55,'Daily Log'!$CO$18:$CO$1017),0) -> 0
B56: CB02 APPLE SO | D56: SIDE ORDER-SODA | E56: 1 | F56: 0 | AK56: =IFERROR($E56*SUMIF('Daily Log'!$CN$18:$CN$1017,$B56,'Daily Log'!$CO$18:$CO$1017),0) -> 0
B57: CB03 KIWI SO | D57: SIDE ORDER-SODA | E57: 1 | F57: 0 | AK57: =IFERROR($E57*SUMIF('Daily Log'!$CN$18:$CN$1017,$B57,'Daily Log'!$CO$18:$CO$1017),0) -> 0
B58: CB04 MANGO SO | D58: SIDE ORDER-SODA | E58: 1 | F58: 0 | AK58: =IFERROR($E58*SUMIF('Daily Log'!$CN$18:$CN$1017,$B58,'Daily Log'!$CO$18:$CO$1017),0) -> 0
B59: CB05 PASSION SO | D59: SIDE ORDER-SODA | E59: 1 | F59: 0 | AK59: =IFERROR($E59*SUMIF('Daily Log'!$CN$18:$CN$1017,$B59,'Daily Log'!$CO$18:$CO$1017),0) -> 0
B60: CB06 RIBENA SO | D60: SIDE ORDER-SODA | E60: 1 | F60: 0 | AK60: =IFERROR($E60*SUMIF('Daily Log'!$CN$18:$CN$1017,$B60,'Daily Log'!$CO$18:$CO$1017),0) -> 0
B61: CC01 GRAPE SM | D61: SIDE ORDER-SMOOTHIES | E61: 1 | F61: 0 | AK61: =IFERROR($E61*SUMIF('Daily Log'!$CN$18:$CN$1017,$B61,'Daily Log'!$CO$18:$CO$1017),0) -> 0
B62: CC02 APPLE SM | D62: SIDE ORDER-SMOOTHIES | E62: 1 | F62: 0 | AK62: =IFERROR($E62*SUMIF('Daily Log'!$CN$18:$CN$1017,$B62,'Daily Log'!$CO$18:$CO$1017),0) -> 0
B63: CC03 KIWI SM | D63: SIDE ORDER-SMOOTHIES | E63: 1 | F63: 0 | AK63: =IFERROR($E63*SUMIF('Daily Log'!$CN$18:$CN$1017,$B63,'Daily Log'!$CO$18:$CO$1017),0) -> 0
B64: CC04 MANGO SM | D64: SIDE ORDER-SMOOTHIES | E64: 1 | F64: 1 | AK64: =IFERROR($E64*SUMIF('Daily Log'!$CN$18:$CN$1017,$B64,'Daily Log'!$CO$18:$CO$1017),0) -> 1
B65: CC05 PASSION SM | D65: SIDE ORDER-SMOOTHIES | E65: 1 | F65: 0 | AK65: =IFERROR($E65*SUMIF('Daily Log'!$CN$18:$CN$1017,$B65,'Daily Log'!$CO$18:$CO$1017),0) -> 0
B66: CC06 RIBENA SM | D66: SIDE ORDER-SMOOTHIES | E66: 1 | F66: 0 | AK66: =IFERROR($E66*SUMIF('Daily Log'!$CN$18:$CN$1017,$B66,'Daily Log'!$CO$18:$CO$1017),0) -> 0
B67: CC07 CAPPUCINNO SM | D67: SIDE ORDER-SMOOTHIES | E67: 1 | F67: 2 | AK67: =IFERROR($E67*SUMIF('Daily Log'!$CN$18:$CN$1017,$B67,'Daily Log'!$CO$18:$CO$1017),0) -> 2
B68: CC08 CHOCOLATE SM | D68: SIDE ORDER-SMOOTHIES | E68: 1 | F68: 3 | AK68: =IFERROR($E68*SUMIF('Daily Log'!$CN$18:$CN$1017,$B68,'Daily Log'!$CO$18:$CO$1017),0) -> 3
B69: CC09 MOCHA SM | D69: SIDE ORDER-SMOOTHIES | E69: 1 | F69: 1 | AK69: =IFERROR($E69*SUMIF('Daily Log'!$CN$18:$CN$1017,$B69,'Daily Log'!$CO$18:$CO$1017),0) -> 1
B70: CD01 7 UP | D70: SIDE ORDER-SOFT DRINKS | E70: 1 | F70: 1 | AK70: =IFERROR($E70*SUMIF('Daily Log'!$CN$18:$CN$1017,$B70,'Daily Log'!$CO$18:$CO$1017),0) -> 1
B71: CD02 7 UP REVIVE | D71: SIDE ORDER-SOFT DRINKS | E71: 1 | F71: 0 | AK71: =IFERROR($E71*SUMIF('Daily Log'!$CN$18:$CN$1017,$B71,'Daily Log'!$CO$18:$CO$1017),0) -> 0
B72: CD03 PEPSI | D72: SIDE ORDER-SOFT DRINKS | E72: 1 | F72: 5 | AK72: =IFERROR($E72*SUMIF('Daily Log'!$CN$18:$CN$1017,$B72,'Daily Log'!$CO$18:$CO$1017),0) -> 5
B73: CE01 MILO (C) | D73: SIDE ORDER-COLD BEVERAGE | E73: 1 | F73: 0 | AK73: =IFERROR($E73*SUMIF('Daily Log'!$CN$18:$CN$1017,$B73,'Daily Log'!$CO$18:$CO$1017),0) -> 0
B74: CE02 NESCAFE (C) | D74: SIDE ORDER-COLD BEVERAGE | E74: 1 | F74: 0 | AK74: =IFERROR($E74*SUMIF('Daily Log'!$CN$18:$CN$1017,$B74,'Daily Log'!$CO$18:$CO$1017),0) -> 0
B75: CE03 TEA (C) | D75: SIDE ORDER-COLD BEVERAGE | E75: 1 | F75: 0 | AK75: =IFERROR($E75*SUMIF('Daily Log'!$CN$18:$CN$1017,$B75,'Daily Log'!$CO$18:$CO$1017),0) -> 0
B76: CE04 LEMON TEA (C) | D76: SIDE ORDER-COLD BEVERAGE | E76: 1 | F76: 5 | AK76: =IFERROR($E76*SUMIF('Daily Log'!$CN$18:$CN$1017,$B76,'Daily Log'!$CO$18:$CO$1017),0) -> 5
B77: CE05 GRN TEA (C) | D77: SIDE ORDER-COLD BEVERAGE | E77: 1 | F77: 0 | AK77: =IFERROR($E77*SUMIF('Daily Log'!$CN$18:$CN$1017,$B77,'Daily Log'!$CO$18:$CO$1017),0) -> 0
B78: CE06 HNY GRN TEA (C) | D78: SIDE ORDER-COLD BEVERAGE | E78: 1 | F78: 3 | AK78: =IFERROR($E78*SUMIF('Daily Log'!$CN$18:$CN$1017,$B78,'Daily Log'!$CO$18:$CO$1017),0) -> 3
B79: CE07 HONEY (C) | D79: SIDE ORDER-COLD BEVERAGE | E79: 1 | F79: 2 | AK79: =IFERROR($E79*SUMIF('Daily Log'!$CN$18:$CN$1017,$B79,'Daily Log'!$CO$18:$CO$1017),0) -> 2
B80: CE08 LEMON HONEY (C) | D80: SIDE ORDER-COLD BEVERAGE | E80: 1 | F80: 6 | AK80: =IFERROR($E80*SUMIF('Daily Log'!$CN$18:$CN$1017,$B80,'Daily Log'!$CO$18:$CO$1017),0) -> 6
B81: CF01 MILO (H) | D81: SIDE ORDER-HOT BEVERAGE | E81: 1 | F81: 2 | AK81: =IFERROR($E81*SUMIF('Daily Log'!$CN$18:$CN$1017,$B81,'Daily Log'!$CO$18:$CO$1017),0) -> 2
B82: CF02 NESCAFE (H) | D82: SIDE ORDER-HOT BEVERAGE | E82: 1 | F82: 0 | AK82: =IFERROR($E82*SUMIF('Daily Log'!$CN$18:$CN$1017,$B82,'Daily Log'!$CO$18:$CO$1017),0) -> 0
B83: CF03 TEA (H) | D83: SIDE ORDER-HOT BEVERAGE | E83: 1 | F83: 0 | AK83: =IFERROR($E83*SUMIF('Daily Log'!$CN$18:$CN$1017,$B83,'Daily Log'!$CO$18:$CO$1017),0) -> 0
B84: CF04 LEMON TEA (H) | D84: SIDE ORDER-HOT BEVERAGE | E84: 1 | F84: 0 | AK84: =IFERROR($E84*SUMIF('Daily Log'!$CN$18:$CN$1017,$B84,'Daily Log'!$CO$18:$CO$1017),0) -> 0
B85: CF05 GRN TEA (H) | D85: SIDE ORDER-HOT BEVERAGE | E85: 1 | F85: 3 | AK85: =IFERROR($E85*SUMIF('Daily Log'!$CN$18:$CN$1017,$B85,'Daily Log'!$CO$18:$CO$1017),0) -> 3
B86: CF06 HNY GRN TEA (H) | D86: SIDE ORDER-HOT BEVERAGE | E86: 1 | F86: 3 | AK86: =IFERROR($E86*SUMIF('Daily Log'!$CN$18:$CN$1017,$B86,'Daily Log'!$CO$18:$CO$1017),0) -> 3
B87: CF07 HONEY (H) | D87: SIDE ORDER-HOT BEVERAGE | E87: 1 | F87: 3 | AK87: =IFERROR($E87*SUMIF('Daily Log'!$CN$18:$CN$1017,$B87,'Daily Log'!$CO$18:$CO$1017),0) -> 3
B88: CF08 LEMON HONEY (H) | D88: SIDE ORDER-HOT BEVERAGE | E88: 1 | F88: 6 | AK88: =IFERROR($E88*SUMIF('Daily Log'!$CN$18:$CN$1017,$B88,'Daily Log'!$CO$18:$CO$1017),0) -> 6
B89: CF09 CAPPUCCINO (H) | D89: SIDE ORDER-HOT BEVERAGE | E89: 1 | F89: 3 | AK89: =IFERROR($E89*SUMIF('Daily Log'!$CN$18:$CN$1017,$B89,'Daily Log'!$CO$18:$CO$1017),0) -> 3
B90: CF10 CHOCOLATE (H) | D90: SIDE ORDER-HOT BEVERAGE | E90: 1 | F90: 2 | AK90: =IFERROR($E90*SUMIF('Daily Log'!$CN$18:$CN$1017,$B90,'Daily Log'!$CO$18:$CO$1017),0) -> 2
B91: CF11 MOCHA (H) | D91: SIDE ORDER-HOT BEVERAGE | E91: 1 | F91: 1 | AK91: =IFERROR($E91*SUMIF('Daily Log'!$CN$18:$CN$1017,$B91,'Daily Log'!$CO$18:$CO$1017),0) -> 1
B92: CF12 CHAMOMILE (H) | D92: SIDE ORDER-HOT BEVERAGE | E92: 1 | F92: 0 | AK92: =IFERROR($E92*SUMIF('Daily Log'!$CN$18:$CN$1017,$B92,'Daily Log'!$CO$18:$CO$1017),0) -> 0
B93: CF13 DARJEELING (H) | D93: SIDE ORDER-HOT BEVERAGE | E93: 1 | F93: 0 | AK93: =IFERROR($E93*SUMIF('Daily Log'!$CN$18:$CN$1017,$B93,'Daily Log'!$CO$18:$CO$1017),0) -> 0
B94: CF14 EARL GREY (H) | D94: SIDE ORDER-HOT BEVERAGE | E94: 1 | F94: =SUM($G94:$AK94) -> 0 | AK94: =IFERROR($E94*SUMIF('Daily Log'!$CN$18:$CN$1017,$B94,'Daily Log'!$CO$18:$CO$1017),0) -> 0
B95: CG01 MINERAL WATER | D95: MINERAL WATER | E95: 1 | F95: 7 | AK95: =IFERROR($E95*SUMIF('Daily Log'!$CN$18:$CN$1017,$B95,'Daily Log'!$CO$18:$CO$1017),0) -> 7
B96: CH01 7 UP JUG | D96: JUG | E96: 1 | F96: 2 | AK96: =IFERROR($E96*SUMIF('Daily Log'!$CN$18:$CN$1017,$B96,'Daily Log'!$CO$18:$CO$1017),0) -> 2
B97: CH02 GRN TEA JUG | D97: JUG | E97: 1 | F97: 0 | AK97: =IFERROR($E97*SUMIF('Daily Log'!$CN$18:$CN$1017,$B97,'Daily Log'!$CO$18:$CO$1017),0) -> 0
B98: CH03 PEPSI JUG | D98: JUG | E98: 1 | F98: 2 | AK98: =IFERROR($E98*SUMIF('Daily Log'!$CN$18:$CN$1017,$B98,'Daily Log'!$CO$18:$CO$1017),0) -> 2
B99: CH04 RIBENA JUG | D99: JUG | E99: 1 | F99: 0 | AK99: =IFERROR($E99*SUMIF('Daily Log'!$CN$18:$CN$1017,$B99,'Daily Log'!$CO$18:$CO$1017),0) -> 0
B100: CI01 GRAPE J | D100: FFD-JUICE | E100: 1 | F100: 411 | AK100: =IFERROR($E100*SUMIF('Daily Log'!$CN$18:$CN$1017,$B100,'Daily Log'!$CO$18:$CO$1017),0) -> 411
B101: CI02 APPLE J | D101: FFD-JUICE | E101: 1 | F101: 708 | AK101: =IFERROR($E101*SUMIF('Daily Log'!$CN$18:$CN$1017,$B101,'Daily Log'!$CO$18:$CO$1017),0) -> 708
B102: CI04 MANGO J | D102: FFD-JUICE | E102: 1 | F102: 552 | AK102: =IFERROR($E102*SUMIF('Daily Log'!$CN$18:$CN$1017,$B102,'Daily Log'!$CO$18:$CO$1017),0) -> 552
B103: CI05 PASSION J | D103: FFD-JUICE | E103: 1 | F103: 1075 | AK103: =IFERROR($E103*SUMIF('Daily Log'!$CN$18:$CN$1017,$B103,'Daily Log'!$CO$18:$CO$1017),0) -> 1075
B104: CI06 RIBENA J | D104: FFD-JUICE | E104: 1 | F104: 1076 | AK104: =IFERROR($E104*SUMIF('Daily Log'!$CN$18:$CN$1017,$B104,'Daily Log'!$CO$18:$CO$1017),0) -> 1076
B105: CJ01 GRAPE SO | D105: FFD-SODA | E105: 1 | F105: 64 | AK105: =IFERROR($E105*SUMIF('Daily Log'!$CN$18:$CN$1017,$B105,'Daily Log'!$CO$18:$CO$1017),0) -> 64
B106: CJ02 APPLE SO | D106: FFD-SODA | E106: 1 | F106: 103 | AK106: =IFERROR($E106*SUMIF('Daily Log'!$CN$18:$CN$1017,$B106,'Daily Log'!$CO$18:$CO$1017),0) -> 103
B107: CJ04 MANGO SO | D107: FFD-SODA | E107: 1 | F107: 41 | AK107: =IFERROR($E107*SUMIF('Daily Log'!$CN$18:$CN$1017,$B107,'Daily Log'!$CO$18:$CO$1017),0) -> 41
B108: CJ05 PASSION SO | D108: FFD-SODA | E108: 1 | F108: 128 | AK108: =IFERROR($E108*SUMIF('Daily Log'!$CN$18:$CN$1017,$B108,'Daily Log'!$CO$18:$CO$1017),0) -> 128
B109: CJ06 RIBENA SO | D109: FFD-SODA | E109: 1 | F109: 125 | AK109: =IFERROR($E109*SUMIF('Daily Log'!$CN$18:$CN$1017,$B109,'Daily Log'!$CO$18:$CO$1017),0) -> 125
B110: CL01 7 UP | D110: FFD-SOFT DRINKS | E110: 1 | F110: 518 | AK110: =IFERROR($E110*SUMIF('Daily Log'!$CN$18:$CN$1017,$B110,'Daily Log'!$CO$18:$CO$1017),0) -> 518
B111: CL02 7 UP REVIVE | D111: FFD-SOFT DRINKS | E111: 1 | F111: 100 | AK111: =IFERROR($E111*SUMIF('Daily Log'!$CN$18:$CN$1017,$B111,'Daily Log'!$CO$18:$CO$1017),0) -> 100
B112: CL03 PEPSI | D112: FFD-SOFT DRINKS | E112: 1 | F112: 1047 | AK112: =IFERROR($E112*SUMIF('Daily Log'!$CN$18:$CN$1017,$B112,'Daily Log'!$CO$18:$CO$1017),0) -> 1047
B113: CM01 MILO (C) | D113: FFD-COLD BEVERAGES | E113: 1 | F113: 978 | AK113: =IFERROR($E113*SUMIF('Daily Log'!$CN$18:$CN$1017,$B113,'Daily Log'!$CO$18:$CO$1017),0) -> 978
B114: CM02 NESCAFE (C) | D114: FFD-COLD BEVERAGES | E114: 1 | F114: 291 | AK114: =IFERROR($E114*SUMIF('Daily Log'!$CN$18:$CN$1017,$B114,'Daily Log'!$CO$18:$CO$1017),0) -> 291
B115: CM03 TEA (C) | D115: FFD-COLD BEVERAGES | E115: 1 | F115: 439 | AK115: =IFERROR($E115*SUMIF('Daily Log'!$CN$18:$CN$1017,$B115,'Daily Log'!$CO$18:$CO$1017),0) -> 439
B116: CM04 LEMON TEA (C) | D116: FFD-COLD BEVERAGES | E116: 1 | F116: 1379 | AK116: =IFERROR($E116*SUMIF('Daily Log'!$CN$18:$CN$1017,$B116,'Daily Log'!$CO$18:$CO$1017),0) -> 1379
B117: CM05 GRN TEA (C) | D117: FFD-COLD BEVERAGES | E117: 1 | F117: 1497 | AK117: =IFERROR($E117*SUMIF('Daily Log'!$CN$18:$CN$1017,$B117,'Daily Log'!$CO$18:$CO$1017),0) -> 1497
B118: CM06 HNY GRN TEA (C) | D118: FFD-COLD BEVERAGES | E118: 1 | F118: 2332 | AK118: =IFERROR($E118*SUMIF('Daily Log'!$CN$18:$CN$1017,$B118,'Daily Log'!$CO$18:$CO$1017),0) -> 2332
B119: CM07 HONEY (C) | D119: FFD-COLD BEVERAGES | E119: 1 | F119: 686 | AK119: =IFERROR($E119*SUMIF('Daily Log'!$CN$18:$CN$1017,$B119,'Daily Log'!$CO$18:$CO$1017),0) -> 686
B120: CM08 LEMON HONEY (C) | D120: FFD-COLD BEVERAGES | E120: 1 | F120: 3028 | AK120: =IFERROR($E120*SUMIF('Daily Log'!$CN$18:$CN$1017,$B120,'Daily Log'!$CO$18:$CO$1017),0) -> 3028
B121: CN01 MILO (H) | D121: FFD-HOT BEVERAGES | E121: 1 | F121: 776 | AK121: =IFERROR($E121*SUMIF('Daily Log'!$CN$18:$CN$1017,$B121,'Daily Log'!$CO$18:$CO$1017),0) -> 776
B122: CN02 NESCAFE (H) | D122: FFD-HOT BEVERAGES | E122: 1 | F122: 185 | AK122: =IFERROR($E122*SUMIF('Daily Log'!$CN$18:$CN$1017,$B122,'Daily Log'!$CO$18:$CO$1017),0) -> 185
B123: CN03 TEA (H) | D123: FFD-HOT BEVERAGES | E123: 1 | F123: 81 | AK123: =IFERROR($E123*SUMIF('Daily Log'!$CN$18:$CN$1017,$B123,'Daily Log'!$CO$18:$CO$1017),0) -> 81
B124: CN04 LEMON TEA (H) | D124: FFD-HOT BEVERAGES | E124: 1 | F124: 201 | AK124: =IFERROR($E124*SUMIF('Daily Log'!$CN$18:$CN$1017,$B124,'Daily Log'!$CO$18:$CO$1017),0) -> 201
B125: CN05 GRN TEA (H) | D125: FFD-HOT BEVERAGES | E125: 1 | F125: 410 | AK125: =IFERROR($E125*SUMIF('Daily Log'!$CN$18:$CN$1017,$B125,'Daily Log'!$CO$18:$CO$1017),0) -> 410
B126: CN06 HNY GRN TEA (H) | D126: FFD-HOT BEVERAGES | E126: 1 | F126: 688 | AK126: =IFERROR($E126*SUMIF('Daily Log'!$CN$18:$CN$1017,$B126,'Daily Log'!$CO$18:$CO$1017),0) -> 688
B127: CN07 HONEY (H) | D127: FFD-HOT BEVERAGES | E127: 1 | F127: 460 | AK127: =IFERROR($E127*SUMIF('Daily Log'!$CN$18:$CN$1017,$B127,'Daily Log'!$CO$18:$CO$1017),0) -> 460
B128: CN08 LEMON HONEY (H) | D128: FFD-HOT BEVERAGES | E128: 1 | F128: 2053 | AK128: =IFERROR($E128*SUMIF('Daily Log'!$CN$18:$CN$1017,$B128,'Daily Log'!$CO$18:$CO$1017),0) -> 2053
B129: CN12 CHAMOMILE (H) | D129: FFD-HOT BEVERAGES | E129: 1 | F129: 153 | AK129: =IFERROR($E129*SUMIF('Daily Log'!$CN$18:$CN$1017,$B129,'Daily Log'!$CO$18:$CO$1017),0) -> 153
B130: CN13 DARJEELING (H) | D130: FFD-HOT BEVERAGES | E130: 1 | F130: 22 | AK130: =IFERROR($E130*SUMIF('Daily Log'!$CN$18:$CN$1017,$B130,'Daily Log'!$CO$18:$CO$1017),0) -> 22
B131: CN14 EARL GREY (H) | D131: FFD-HOT BEVERAGES | E131: 1 | F131: 81 | AK131: =IFERROR($E131*SUMIF('Daily Log'!$CN$18:$CN$1017,$B131,'Daily Log'!$CO$18:$CO$1017),0) -> 81
B132: DB01 1001:BP CKN CP | D132: SIDE ORDER- WESTERN CRUISE | E132: 1 | F132: 99 | AK132: =IFERROR($E132*SUMIF('Daily Log'!$CN$18:$CN$1017,$B132,'Daily Log'!$CO$18:$CO$1017),0) -> 99
B133: DB02 1002:GVY CHK CP | D133: SIDE ORDER- WESTERN CRUISE | E133: 1 | F133: 24 | AK133: =IFERROR($E133*SUMIF('Daily Log'!$CN$18:$CN$1017,$B133,'Daily Log'!$CO$18:$CO$1017),0) -> 24
B134: DB03 1003:MSR CKN CP | D134: SIDE ORDER- WESTERN CRUISE | E134: 1 | F134: 96 | AK134: =IFERROR($E134*SUMIF('Daily Log'!$CN$18:$CN$1017,$B134,'Daily Log'!$CO$18:$CO$1017),0) -> 96
B135: DB04 1004:CKN MARY | D135: SIDE ORDER- WESTERN CRUISE | E135: 1 | F135: 41 | AK135: =IFERROR($E135*SUMIF('Daily Log'!$CN$18:$CN$1017,$B135,'Daily Log'!$CO$18:$CO$1017),0) -> 41
B136: DB05 1005:FISH&CHIP | D136: SIDE ORDER- WESTERN CRUISE | E136: 1 | F136: 38 | AK136: =IFERROR($E136*SUMIF('Daily Log'!$CN$18:$CN$1017,$B136,'Daily Log'!$CO$18:$CO$1017),0) -> 38
B137: DB06 1006:SPAGHETTI | D137: SIDE ORDER- WESTERN CRUISE | E137: 1 | F137: 57 | AK137: =IFERROR($E137*SUMIF('Daily Log'!$CN$18:$CN$1017,$B137,'Daily Log'!$CO$18:$CO$1017),0) -> 57
B138: DB07 1007:CHK SALAD | D138: SIDE ORDER- WESTERN CRUISE | E138: 1 | F138: 23 | AK138: =IFERROR($E138*SUMIF('Daily Log'!$CN$18:$CN$1017,$B138,'Daily Log'!$CO$18:$CO$1017),0) -> 23
B139: DC01 1101:THAI CHK | D139: SIDE ORDER- LOCAL DELIGHTS | E139: 1 | F139: 53 | AK139: =IFERROR($E139*SUMIF('Daily Log'!$CN$18:$CN$1017,$B139,'Daily Log'!$CO$18:$CO$1017),0) -> 53
B140: DC02 1102:MAMITE CHK | D140: SIDE ORDER- LOCAL DELIGHTS | E140: 1 | F140: 70 | AK140: =IFERROR($E140*SUMIF('Daily Log'!$CN$18:$CN$1017,$B140,'Daily Log'!$CO$18:$CO$1017),0) -> 70
B141: DC03 1103:KO PO CHK | D141: SIDE ORDER- LOCAL DELIGHTS | E141: 1 | F141: 0 | AK141: =IFERROR($E141*SUMIF('Daily Log'!$CN$18:$CN$1017,$B141,'Daily Log'!$CO$18:$CO$1017),0) -> 0
B142: DC04 1104:S&S CHK | D142: SIDE ORDER- LOCAL DELIGHTS | E142: 1 | F142: 21 | AK142: =IFERROR($E142*SUMIF('Daily Log'!$CN$18:$CN$1017,$B142,'Daily Log'!$CO$18:$CO$1017),0) -> 21
B143: DC05 1105:BUTTER CHK | D143: SIDE ORDER- LOCAL DELIGHTS | E143: 1 | F143: 105 | AK143: =IFERROR($E143*SUMIF('Daily Log'!$CN$18:$CN$1017,$B143,'Daily Log'!$CO$18:$CO$1017),0) -> 105
B144: DC06 1106:HK F.RICE | D144: SIDE ORDER- LOCAL DELIGHTS | E144: 1 | F144: 60 | AK144: =IFERROR($E144*SUMIF('Daily Log'!$CN$18:$CN$1017,$B144,'Daily Log'!$CO$18:$CO$1017),0) -> 60
B145: DC07 1107:SBL F.RICE | D145: SIDE ORDER- LOCAL DELIGHTS | E145: 1 | F145: 38 | AK145: =IFERROR($E145*SUMIF('Daily Log'!$CN$18:$CN$1017,$B145,'Daily Log'!$CO$18:$CO$1017),0) -> 38
B146: DC08 1108:SBL F.MEE | D146: SIDE ORDER- LOCAL DELIGHTS | E146: 1 | F146: 8 | AK146: =IFERROR($E146*SUMIF('Daily Log'!$CN$18:$CN$1017,$B146,'Daily Log'!$CO$18:$CO$1017),0) -> 8
B147: DC09 1109:BP UDON | D147: SIDE ORDER- LOCAL DELIGHTS | E147: 1 | F147: 27 | AK147: =IFERROR($E147*SUMIF('Daily Log'!$CN$18:$CN$1017,$B147,'Daily Log'!$CO$18:$CO$1017),0) -> 27
B148: DC10 1110:NISSIN | D148: SIDE ORDER- LOCAL DELIGHTS | E148: 1 | F148: 33 | AK148: =IFERROR($E148*SUMIF('Daily Log'!$CN$18:$CN$1017,$B148,'Daily Log'!$CO$18:$CO$1017),0) -> 33
B149: DC11 1111:VEG RICE | D149: SIDE ORDER- LOCAL DELIGHTS | E149: 1 | F149: 5 | AK149: =IFERROR($E149*SUMIF('Daily Log'!$CN$18:$CN$1017,$B149,'Daily Log'!$CO$18:$CO$1017),0) -> 5
B150: DC12 1112:NASI LEMAK | D150: SIDE ORDER- LOCAL DELIGHTS | E150: 1 | F150: 0 | AK150: =IFERROR($E150*SUMIF('Daily Log'!$CN$18:$CN$1017,$B150,'Daily Log'!$CO$18:$CO$1017),0) -> 0
B151: DC13 1113:KUEY TEOW | D151: SIDE ORDER- LOCAL DELIGHTS | E151: 1 | F151: 0 | AK151: =IFERROR($E151*SUMIF('Daily Log'!$CN$18:$CN$1017,$B151,'Daily Log'!$CO$18:$CO$1017),0) -> 0
B152: DC14 1114:F.BALL MEE | D152: SIDE ORDER- LOCAL DELIGHTS | E152: 1 | F152: 0 | AK152: =IFERROR($E152*SUMIF('Daily Log'!$CN$18:$CN$1017,$B152,'Daily Log'!$CO$18:$CO$1017),0) -> 0
B153: DC15 1115:CHK NOODLE | D153: SIDE ORDER- LOCAL DELIGHTS | E153: 1 | F153: 22 | AK153: =IFERROR($E153*SUMIF('Daily Log'!$CN$18:$CN$1017,$B153,'Daily Log'!$CO$18:$CO$1017),0) -> 22
B154: DC16 1116:MGL CHICKEN | D154: SIDE ORDER- LOCAL DELIGHTS | E154: 1 | F154: 27 | AK154: =IFERROR($E154*SUMIF('Daily Log'!$CN$18:$CN$1017,$B154,'Daily Log'!$CO$18:$CO$1017),0) -> 27
B155: DD01 1201:SFD STICK | D155: SIDE ORDER- APPETIZER | E155: 1 | F155: 5 | AK155: =IFERROR($E155*SUMIF('Daily Log'!$CN$18:$CN$1017,$B155,'Daily Log'!$CO$18:$CO$1017),0) -> 5
B156: DD02 1202:FREN FRIES | D156: SIDE ORDER- APPETIZER | E156: 1 | F156: 98 | AK156: =IFERROR($E156*SUMIF('Daily Log'!$CN$18:$CN$1017,$B156,'Daily Log'!$CO$18:$CO$1017),0) -> 98
B157: DD03 1203:GOLD MROOM | D157: SIDE ORDER- APPETIZER | E157: 1 | F157: 9 | AK157: =IFERROR($E157*SUMIF('Daily Log'!$CN$18:$CN$1017,$B157,'Daily Log'!$CO$18:$CO$1017),0) -> 9
B158: DD04 1204:FISHBALL | D158: SIDE ORDER- APPETIZER | E158: 1 | F158: 10 | AK158: =IFERROR($E158*SUMIF('Daily Log'!$CN$18:$CN$1017,$B158,'Daily Log'!$CO$18:$CO$1017),0) -> 10
B159: DD05 1205:RAINBOW RL | D159: SIDE ORDER- APPETIZER | E159: 1 | F159: 0 | AK159: =IFERROR($E159*SUMIF('Daily Log'!$CN$18:$CN$1017,$B159,'Daily Log'!$CO$18:$CO$1017),0) -> 0
B160: DD06 1206:SPRING RL | D160: SIDE ORDER- APPETIZER | E160: 1 | F160: 8 | AK160: =IFERROR($E160*SUMIF('Daily Log'!$CN$18:$CN$1017,$B160,'Daily Log'!$CO$18:$CO$1017),0) -> 8
B161: DD07 1207:SAUSAGE | D161: SIDE ORDER- APPETIZER | E161: 1 | F161: =SUM($G161:$AK161) -> 17 | AK161: =IFERROR($E161*SUMIF('Daily Log'!$CN$18:$CN$1017,$B161,'Daily Log'!$CO$18:$CO$1017),0) -> 17
B162: DD08 1208:HOTDOG BUN | D162: SIDE ORDER- APPETIZER | E162: 1 | F162: 0 | AK162: =IFERROR($E162*SUMIF('Daily Log'!$CN$18:$CN$1017,$B162,'Daily Log'!$CO$18:$CO$1017),0) -> 0
B163: DD09 1209:SFD TOFU | D163: SIDE ORDER- APPETIZER | E163: 1 | F163: 0 | AK163: =IFERROR($E163*SUMIF('Daily Log'!$CN$18:$CN$1017,$B163,'Daily Log'!$CO$18:$CO$1017),0) -> 0
B164: DD10 1301:DUMPLING | D164: SIDE ORDER- APPETIZER | E164: 1 | F164: 0 | AK164: =IFERROR($E164*SUMIF('Daily Log'!$CN$18:$CN$1017,$B164,'Daily Log'!$CO$18:$CO$1017),0) -> 0
B165: DD11 1302:NUGGET | D165: SIDE ORDER- APPETIZER | E165: 1 | F165: 35 | AK165: =IFERROR($E165*SUMIF('Daily Log'!$CN$18:$CN$1017,$B165,'Daily Log'!$CO$18:$CO$1017),0) -> 35
B166: DD12 1303:CHK WING | D166: SIDE ORDER- APPETIZER | E166: 1 | F166: 24 | AK166: =IFERROR($E166*SUMIF('Daily Log'!$CN$18:$CN$1017,$B166,'Daily Log'!$CO$18:$CO$1017),0) -> 24
B167: DD13 1304:IKAN BILIS | D167: SIDE ORDER- APPETIZER | E167: 1 | F167: 8 | AK167: =IFERROR($E167*SUMIF('Daily Log'!$CN$18:$CN$1017,$B167,'Daily Log'!$CO$18:$CO$1017),0) -> 8
B168: DD14 1305:THAI RL | D168: SIDE ORDER- APPETIZER | E168: 1 | F168: 5 | AK168: =IFERROR($E168*SUMIF('Daily Log'!$CN$18:$CN$1017,$B168,'Daily Log'!$CO$18:$CO$1017),0) -> 5
B169: DD15 1306:SLVR FISH | D169: SIDE ORDER- APPETIZER | E169: 1 | F169: 0 | AK169: =IFERROR($E169*SUMIF('Daily Log'!$CN$18:$CN$1017,$B169,'Daily Log'!$CO$18:$CO$1017),0) -> 0
B170: DD16 1307:D.F C/WING | D170: SIDE ORDER- APPETIZER | E170: 1 | F170: 18 | AK170: =IFERROR($E170*SUMIF('Daily Log'!$CN$18:$CN$1017,$B170,'Daily Log'!$CO$18:$CO$1017),0) -> 18
B171: DD17 1308 C/CALAMARI | D171: SIDE ORDER- APPETIZER | E171: 1 | F171: 6 | AK171: =IFERROR($E171*SUMIF('Daily Log'!$CN$18:$CN$1017,$B171,'Daily Log'!$CO$18:$CO$1017),0) -> 6
B172: DD18 1309 Mc C/O.RING | D172: SIDE ORDER- APPETIZER | E172: 1 | F172: 6 | AK172: =IFERROR($E172*SUMIF('Daily Log'!$CN$18:$CN$1017,$B172,'Daily Log'!$CO$18:$CO$1017),0) -> 6
B173: DD19 1310:Mc SPIRAL/F | D173: SIDE ORDER- APPETIZER | E173: 1 | F173: 9 | AK173: =IFERROR($E173*SUMIF('Daily Log'!$CN$18:$CN$1017,$B173,'Daily Log'!$CO$18:$CO$1017),0) -> 9
B174: DD20 1311:Mc H/SMILES | D174: SIDE ORDER- APPETIZER | E174: 1 | F174: 4 | AK174: =IFERROR($E174*SUMIF('Daily Log'!$CN$18:$CN$1017,$B174,'Daily Log'!$CO$18:$CO$1017),0) -> 4
B175: DD21 1312:Mc HASH BRW | D175: SIDE ORDER- APPETIZER | E175: 1 | F175: 11 | AK175: =IFERROR($E175*SUMIF('Daily Log'!$CN$18:$CN$1017,$B175,'Daily Log'!$CO$18:$CO$1017),0) -> 11
B176: DF01 ADD RICE | D176: SIDE ORDER-OTHERS | E176: 1 | F176: 17 | AK176: =IFERROR($E176*SUMIF('Daily Log'!$CN$18:$CN$1017,$B176,'Daily Log'!$CO$18:$CO$1017),0) -> 17
B177: DF02 ADD F.EGG | D177: SIDE ORDER-OTHERS | E177: 1 | F177: 5 | AK177: =IFERROR($E177*SUMIF('Daily Log'!$CN$18:$CN$1017,$B177,'Daily Log'!$CO$18:$CO$1017),0) -> 5
B178: DF03 ADD SAUCE 1000 | D178: SAUCE | E178: 1 | F178: 8 | AK178: =IFERROR($E178*SUMIF('Daily Log'!$CN$18:$CN$1017,$B178,'Daily Log'!$CO$18:$CO$1017),0) -> 8
B179: DF04 ADD SAUCE BOLO | D179: SAUCE | E179: 1 | F179: 1 | AK179: =IFERROR($E179*SUMIF('Daily Log'!$CN$18:$CN$1017,$B179,'Daily Log'!$CO$18:$CO$1017),0) -> 1
B180: DF05 ADD SAUCE BP | D180: SAUCE | E180: 1 | F180: 1 | AK180: =IFERROR($E180*SUMIF('Daily Log'!$CN$18:$CN$1017,$B180,'Daily Log'!$CO$18:$CO$1017),0) -> 1
B181: DF06 ADD SAUCE BUTTER | D181: SAUCE | E181: 1 | F181: 0 | AK181: =IFERROR($E181*SUMIF('Daily Log'!$CN$18:$CN$1017,$B181,'Daily Log'!$CO$18:$CO$1017),0) -> 0
B182: DF07 ADD SAUCE C.PADI | D182: SAUCE | E182: 1 | F182: 32 | AK182: =IFERROR($E182*SUMIF('Daily Log'!$CN$18:$CN$1017,$B182,'Daily Log'!$CO$18:$CO$1017),0) -> 32
B183: DF08 ADD SAUCE GS | D183: SAUCE | E183: 1 | F183: 0 | AK183: =IFERROR($E183*SUMIF('Daily Log'!$CN$18:$CN$1017,$B183,'Daily Log'!$CO$18:$CO$1017),0) -> 0
B184: DF09 ADD SAUCE MAYO | D184: SAUCE | E184: 1 | F184: 82 | AK184: =IFERROR($E184*SUMIF('Daily Log'!$CN$18:$CN$1017,$B184,'Daily Log'!$CO$18:$CO$1017),0) -> 82
B185: DF10 ADD SAUCE MMITE | D185: SAUCE | E185: 1 | F185: 1 | AK185: =IFERROR($E185*SUMIF('Daily Log'!$CN$18:$CN$1017,$B185,'Daily Log'!$CO$18:$CO$1017),0) -> 1
B186: DF11 ADD SAUCE MR | D186: SAUCE | E186: 1 | F186: 13 | AK186: =IFERROR($E186*SUMIF('Daily Log'!$CN$18:$CN$1017,$B186,'Daily Log'!$CO$18:$CO$1017),0) -> 13
B187: DF12 ADD SAUCE SAMBAL | D187: SAUCE | E187: 1 | F187: 9 | AK187: =IFERROR($E187*SUMIF('Daily Log'!$CN$18:$CN$1017,$B187,'Daily Log'!$CO$18:$CO$1017),0) -> 9
B188: DF13 ADD SAUCE THAI | D188: SAUCE | E188: 1 | F188: 1 | AK188: =IFERROR($E188*SUMIF('Daily Log'!$CN$18:$CN$1017,$B188,'Daily Log'!$CO$18:$CO$1017),0) -> 1
B189: DF14 ADD SAUCE TOMATO | D189: SAUCE | E189: 1 | F189: 101 | AK189: =IFERROR($E189*SUMIF('Daily Log'!$CN$18:$CN$1017,$B189,'Daily Log'!$CO$18:$CO$1017),0) -> 101
B190: DF15 ADD TATA SAUCE | D190: SAUCE | E190: 1 | F190: 11 | AK190: =IFERROR($E190*SUMIF('Daily Log'!$CN$18:$CN$1017,$B190,'Daily Log'!$CO$18:$CO$1017),0) -> 11
B191: DF16 ADD SAUCE CHEES | D191: SAUCE | E191: 1 | F191: 0 | AK191: =IFERROR($E191*SUMIF('Daily Log'!$CN$18:$CN$1017,$B191,'Daily Log'!$CO$18:$CO$1017),0) -> 0
B192: DG01 91001:BP CHK CP | D192: KLKD-WESTERN CRUISE | E192: 1 | F192: 510 | AK192: =IFERROR($E192*SUMIF('Daily Log'!$CN$18:$CN$1017,$B192,'Daily Log'!$CO$18:$CO$1017),0) -> 510
B193: DG02 91002:GVY CHK CP | D193: KLKD-WESTERN CRUISE | E193: 1 | F193: 126 | AK193: =IFERROR($E193*SUMIF('Daily Log'!$CN$18:$CN$1017,$B193,'Daily Log'!$CO$18:$CO$1017),0) -> 126
B194: DG03 91003:MSR CHK CP | D194: KLKD-WESTERN CRUISE | E194: 1 | F194: 535 | AK194: =IFERROR($E194*SUMIF('Daily Log'!$CN$18:$CN$1017,$B194,'Daily Log'!$CO$18:$CO$1017),0) -> 535
B195: DG04 91004:CKN MARY | D195: KLKD-WESTERN CRUISE | E195: 1 | F195: 290 | AK195: =IFERROR($E195*SUMIF('Daily Log'!$CN$18:$CN$1017,$B195,'Daily Log'!$CO$18:$CO$1017),0) -> 290
B196: DG05 91005:FISH&CHIP | D196: KLKD-WESTERN CRUISE | E196: 1 | F196: 295 | AK196: =IFERROR($E196*SUMIF('Daily Log'!$CN$18:$CN$1017,$B196,'Daily Log'!$CO$18:$CO$1017),0) -> 295
B197: DG06 91006:SPAGHETTI | D197: KLKD-WESTERN CRUISE | E197: 1 | F197: 232 | AK197: =IFERROR($E197*SUMIF('Daily Log'!$CN$18:$CN$1017,$B197,'Daily Log'!$CO$18:$CO$1017),0) -> 232
B198: DG07 91007:CHK SALAD | D198: KLKD-WESTERN CRUISE | E198: 1 | F198: 87 | AK198: =IFERROR($E198*SUMIF('Daily Log'!$CN$18:$CN$1017,$B198,'Daily Log'!$CO$18:$CO$1017),0) -> 87
B199: DH01 91101:THAI CHK | D199: KLKD-LOCAL DELIGHTS | E199: 1 | F199: 101 | AK199: =IFERROR($E199*SUMIF('Daily Log'!$CN$18:$CN$1017,$B199,'Daily Log'!$CO$18:$CO$1017),0) -> 101
B200: DH02 91102:MAMITE CHK | D200: KLKD-LOCAL DELIGHTS | E200: 1 | F200: 156 | AK200: =IFERROR($E200*SUMIF('Daily Log'!$CN$18:$CN$1017,$B200,'Daily Log'!$CO$18:$CO$1017),0) -> 156
B201: DH03 91103:KO PO CHK | D201: KLKD-LOCAL DELIGHTS | E201: 1 | F201: 0 | AK201: =IFERROR($E201*SUMIF('Daily Log'!$CN$18:$CN$1017,$B201,'Daily Log'!$CO$18:$CO$1017),0) -> 0
B202: DH04 91104:S&S CHK | D202: KLKD-LOCAL DELIGHTS | E202: 1 | F202: 65 | AK202: =IFERROR($E202*SUMIF('Daily Log'!$CN$18:$CN$1017,$B202,'Daily Log'!$CO$18:$CO$1017),0) -> 65
B203: DH05 91105:BUTTER CHK | D203: KLKD-LOCAL DELIGHTS | E203: 1 | F203: 217 | AK203: =IFERROR($E203*SUMIF('Daily Log'!$CN$18:$CN$1017,$B203,'Daily Log'!$CO$18:$CO$1017),0) -> 217
B204: DH06 91106:HK F.RICE | D204: KLKD-LOCAL DELIGHTS | E204: 1 | F204: 154 | AK204: =IFERROR($E204*SUMIF('Daily Log'!$CN$18:$CN$1017,$B204,'Daily Log'!$CO$18:$CO$1017),0) -> 154
B205: DH07 91107:SBL F.RICE | D205: KLKD-LOCAL DELIGHTS | E205: 1 | F205: 66 | AK205: =IFERROR($E205*SUMIF('Daily Log'!$CN$18:$CN$1017,$B205,'Daily Log'!$CO$18:$CO$1017),0) -> 66
B206: DH08 91108:SBL F.MEE | D206: KLKD-LOCAL DELIGHTS | E206: 1 | F206: 19 | AK206: =IFERROR($E206*SUMIF('Daily Log'!$CN$18:$CN$1017,$B206,'Daily Log'!$CO$18:$CO$1017),0) -> 19
B207: DH09 91109:BP UDON | D207: KLKD-LOCAL DELIGHTS | E207: 1 | F207: 66 | AK207: =IFERROR($E207*SUMIF('Daily Log'!$CN$18:$CN$1017,$B207,'Daily Log'!$CO$18:$CO$1017),0) -> 66
B208: DH10 91110:NISSIN | D208: KLKD-LOCAL DELIGHTS | E208: 1 | F208: 49 | AK208: =IFERROR($E208*SUMIF('Daily Log'!$CN$18:$CN$1017,$B208,'Daily Log'!$CO$18:$CO$1017),0) -> 49
B209: DH11 91111:VEG RICE | D209: KLKD-LOCAL DELIGHTS | E209: 1 | F209: 25 | AK209: =IFERROR($E209*SUMIF('Daily Log'!$CN$18:$CN$1017,$B209,'Daily Log'!$CO$18:$CO$1017),0) -> 25
B210: DH12 91112:NASI LEMAK | D210: KLKD-LOCAL DELIGHTS | E210: 1 | F210: 0 | AK210: =IFERROR($E210*SUMIF('Daily Log'!$CN$18:$CN$1017,$B210,'Daily Log'!$CO$18:$CO$1017),0) -> 0
... 220 more rows

Sheet Daily Log
C3: DAILY LOG OF PRODUCT SALES
B6: OUTLET | C6: =Summary!C6 -> CCS
B8: YEAR | C8: =Summary!C8 -> 2013
B10: MONTH | C10: =Summary!C10 -> AUGUST
A14: =IFERROR(INDEX($CR$18:$CR$48,MAX($B$17:$CO$17),1),"") -> 0 | B14: ="DATE "&TEXT(Summary!G27,"DD / MM / YYYY") -> DATE 01 / 08 / 2013 | E14: ="DATE "&TEXT(Summary!H27,"DD / MM / YYYY") -> DATE 02 / 08 / 2013 | H14: ="DATE "&TEXT(Summary!I27,"DD / MM / YYYY") -> DATE 03 / 08 / 2013 | K14: ="DATE "&TEXT(Summary!J27,"DD / MM / YYYY") -> DATE 04 / 08 / 2013 | N14: ="DATE "&TEXT(Summary!K27,"DD / MM / YYYY") -> DATE 05 / 08 / 2013 | Q14: ="DATE "&TEXT(Summary!L27,"DD / MM / YYYY") -> DATE 06 / 08 / 2013 | T14: ="DATE "&TEXT(Summary!M27,"DD / MM / YYYY") -> DATE 07 / 08 / 2013 | W14: ="DATE "&TEXT(Summary!N27,"DD / MM / YYYY") -> DATE 08 / 08 / 2013 | Z14: ="DATE "&TEXT(Summary!O27,"DD / MM / YYYY") -> DATE 09 / 08 / 2013 | AC14: ="DATE "&TEXT(Summary!P27,"DD / MM / YYYY") -> DATE 10 / 08 / 2013 | AF14: ="DATE "&TEXT(Summary!Q27,"DD / MM / YYYY") -> DATE 11 / 08 / 2013 | AI14: ="DATE "&TEXT(Summary!R27,"DD / MM / YYYY") -> DATE 12 / 08 / 2013 | AL14: ="DATE "&TEXT(Summary!S27,"DD / MM / YYYY") -> DATE 13 / 08 / 2013 | AO14: ="DATE "&TEXT(Summary!T27,"DD / MM / YYYY") -> DATE 14 / 08 / 2013 | AR14: ="DATE "&TEXT(Summary!U27,"DD / MM / YYYY") -> DATE 15 / 08 / 2013 | AU14: ="DATE "&TEXT(Summary!V27,"DD / MM / YYYY") -> DATE 16 / 08 / 2013 | AX14: ="DATE "&TEXT(Summary!W27,"DD / MM / YYYY") -> DATE 17 / 08 / 2013 | BA14: ="DATE "&TEXT(Summary!X27,"DD / MM / YYYY") -> DATE 18 / 08 / 2013 | BD14: ="DATE "&TEXT(Summary!Y27,"DD / MM / YYYY") -> DATE 19 / 08 / 2013 | BG14: ="DATE "&TEXT(Summary!Z27,"DD / MM / YYYY") -> DATE 20 / 08 / 2013 | BJ14: ="DATE "&TEXT(Summary!AA27,"DD / MM / YYYY") -> DATE 21 / 08 / 2013 | BM14: ="DATE "&TEXT(Summary!AB27,"DD / MM / YYYY") -> DATE 22 / 08 / 2013 | BP14: ="DATE "&TEXT(Summary!AC27,"DD / MM / YYYY") -> DATE 23 / 08 / 2013 | BS14: ="DATE "&TEXT(Summary!AD27,"DD / MM / YYYY") -> DATE 24 / 08 / 2013 | BV14: ="DATE "&TEXT(Summary!AE27,"DD / MM / YYYY") -> DATE 25 / 08 / 2013 | BY14: ="DATE "&TEXT(Summary!AF27,"DD / MM / YYYY") -> DATE 26 / 08 / 2013 | CB14: ="DATE "&TEXT(Summary!AG27,"DD / MM / YYYY") -> DATE 27 / 08 / 2013 | CE14: ="DATE "&TEXT(Summary!AH27,"DD / MM / YYYY") -> DATE 28 / 08 / 2013 | CH14: ="DATE "&TEXT(Summary!AI27,"DD / MM / YYYY") -> DATE 29 / 08 / 2013 | CK14: ="DATE "&TEXT(Summary!AJ27,"DD / MM / YYYY") -> DATE 30 / 08 / 2013 | CN14: ="DATE "&TEXT(Summary!AK27,"DD / MM / YYYY") -> DATE 31 / 08 / 2013 | CQ14: COLUMN
B16: PRODUCT | C16: QUANTITY | E16: PRODUCT | F16: QUANTITY | H16: PRODUCT | I16: QUANTITY | K16: PRODUCT | L16: QUANTITY | N16: PRODUCT | O16: QUANTITY | Q16: PRODUCT | R16: QUANTITY | T16: PRODUCT | U16: QUANTITY | W16: PRODUCT | X16: QUANTITY | Z16: PRODUCT | AA16: QUANTITY | AC16: PRODUCT | AD16: QUANTITY | AF16: PRODUCT | AG16: QUANTITY | AI16: PRODUCT | AJ16: QUANTITY | AL16: PRODUCT | AM16: QUANTITY | AO16: PRODUCT | AP16: QUANTITY | AR16: PRODUCT | AS16: QUANTITY | AU16: PRODUCT | AV16: QUANTITY | AX16: PRODUCT | AY16: QUANTITY | BA16: PRODUCT | BB16: QUANTITY | BD16: PRODUCT | BE16: QUANTITY | BG16: PRODUCT | BH16: QUANTITY | BJ16: PRODUCT | BK16: QUANTITY | BM16: PRODUCT | BN16: QUANTITY | BP16: PRODUCT | BQ16: QUANTITY | BS16: PRODUCT | BT16: QUANTITY | BV16: PRODUCT | BW16: QUANTITY | BY16: PRODUCT | BZ16: QUANTITY | CB16: PRODUCT | CC16: QUANTITY | CE16: PRODUCT | CF16: QUANTITY | CH16: PRODUCT | CI16: QUANTITY | CK16: PRODUCT | CL16: QUANTITY | CN16: PRODUCT | CO16: QUANTITY | CQ16: MONTH | CR16: COLUMN
B17: =IF(B18<>"",1,0) -> 0 | E17: =IF(E18<>"",2,0) -> 0 | H17: =IF(H18<>"",3,0) -> 0 | K17: =IF(K18<>"",4,0) -> 0 | N17: =IF(N18<>"",5,0) -> 0 | Q17: =IF(Q18<>"",6,0) -> 0 | T17: =IF(T18<>"",7,0) -> 0 | W17: =IF(W18<>"",8,0) -> 0 | Z17: =IF(Z18<>"",9,0) -> 0 | AC17: =IF(AC18<>"",10,0) -> 0 | AF17: =IF(AF18<>"",11,0) -> 0 | AI17: =IF(AI18<>"",12,0) -> 0 | AL17: =IF(AL18<>"",13,0) -> 0 | AO17: =IF(AO18<>"",14,0) -> 0 | AR17: =IF(AR18<>"",15,0) -> 0 | AU17: =IF(AU18<>"",16,0) -> 0 | AX17: =IF(AX18<>"",17,0) -> 0 | BA17: =IF(BA18<>"",23,0) -> 0 | BD17: =IF(BD18<>"",23,0) -> 0 | BG17: =IF(BG18<>"",23,0) -> 0 | BJ17: =IF(BJ18<>"",23,0) -> 0 | BM17: =IF(BM18<>"",23,0) -> 0 | BP17: =IF(BP18<>"",23,0) -> 0 | BS17: =IF(BS18<>"",24,0) -> 0 | BV17: =IF(BV18<>"",25,0) -> 0 | BY17: =IF(BY18<>"",26,0) -> 0 | CB17: =IF(CB18<>"",27,0) -> 0 | CE17: =IF(CE18<>"",28,0) -> 0 | CH17: =IF(CH18<>"",29,0) -> 0 | CK17: =IF(CK18<>"",30,0) -> 0 | CN17: =IF(CN18<>"",23,0) -> 23
A18: =IFERROR(IF(INDIRECT($A$14&ROW())<>"",COUNTIF(Summary!$B$30:$B$1094,INDIRECT($A$14&ROW())),""),"") ->  | CN18: AA01 K : REGULAR | CO18: 36
A19: =IFERROR(IF(INDIRECT($A$14&ROW())<>"",COUNTIF(Summary!$B$30:$B$1094,INDIRECT($A$14&ROW())),""),"") ->  | CN19: AA02 K : MEMBER | CO19: 5
A20: =IFERROR(IF(INDIRECT($A$14&ROW())<>"",COUNTIF(Summary!$B$30:$B$1094,INDIRECT($A$14&ROW())),""),"") ->  | CN20: AA04 K-LUNCH | CO20: 1900
A21: =IFERROR(IF(INDIRECT($A$14&ROW())<>"",COUNTIF(Summary!$B$30:$B$1094,INDIRECT($A$14&ROW())),""),"") ->  | CN21: AA05 K : CHILDREN | CO21: 78
A22: =IFERROR(IF(INDIRECT($A$14&ROW())<>"",COUNTIF(Summary!$B$30:$B$1094,INDIRECT($A$14&ROW())),""),"") ->  | CN22: AA06 K : MEMBER B'DAY | CO22: 3
A23: =IFERROR(IF(INDIRECT($A$14&ROW())<>"",COUNTIF(Summary!$B$30:$B$1094,INDIRECT($A$14&ROW())),""),"") ->  | CN23: AA11 K : FREEHEAD (R) | CO23: 2
A24: =IFERROR(IF(INDIRECT($A$14&ROW())<>"",COUNTIF(Summary!$B$30:$B$1094,INDIRECT($A$14&ROW())),""),"") ->  | CN24: AA12 K : Buy 3 Free 1 | CO24: 1
A25: =IFERROR(IF(INDIRECT($A$14&ROW())<>"",COUNTIF(Summary!$B$30:$B$1094,INDIRECT($A$14&ROW())),""),"") ->  | CN25: AA29 K : XTD VIP ROOM | CO25: 1
A26: =IFERROR(IF(INDIRECT($A$14&ROW())<>"",COUNTIF(Summary!$B$30:$B$1094,INDIRECT($A$14&ROW())),""),"") ->  | CN26: AB01 H : REGULAR | CO26: 1079
A27: =IFERROR(IF(INDIRECT($A$14&ROW())<>"",COUNTIF(Summary!$B$30:$B$1094,INDIRECT($A$14&ROW())),""),"") ->  | CN27: AB02 H : MEMBER | CO27: 407
A28: =IFERROR(IF(INDIRECT($A$14&ROW())<>"",COUNTIF(Summary!$B$30:$B$1094,INDIRECT($A$14&ROW())),""),"") ->  | CN28: AB03 H : MEMBER 30% | CO28: 46
A29: =IFERROR(IF(INDIRECT($A$14&ROW())<>"",COUNTIF(Summary!$B$30:$B$1094,INDIRECT($A$14&ROW())),""),"") ->  | CN29: AB05 H : STUDENT | CO29: 529
A30: =IFERROR(IF(INDIRECT($A$14&ROW())<>"",COUNTIF(Summary!$B$30:$B$1094,INDIRECT($A$14&ROW())),""),"") ->  | CN30: AB06 H : SENIOR | CO30: 2
A31: =IFERROR(IF(INDIRECT($A$14&ROW())<>"",COUNTIF(Summary!$B$30:$B$1094,INDIRECT($A$14&ROW())),""),"") ->  | CN31: AB07 H : CHILDREN | CO31: 49
A32: =IFERROR(IF(INDIRECT($A$14&ROW())<>"",COUNTIF(Summary!$B$30:$B$1094,INDIRECT($A$14&ROW())),""),"") ->  | CN32: AB08 H : MEMBER B'DAY | CO32: 6
A33: =IFERROR(IF(INDIRECT($A$14&ROW())<>"",COUNTIF(Summary!$B$30:$B$1094,INDIRECT($A$14&ROW())),""),"") ->  | CN33: AB11 H : FREEHEAD (B) | CO33: 1
A34: =IFERROR(IF(INDIRECT($A$14&ROW())<>"",COUNTIF(Summary!$B$30:$B$1094,INDIRECT($A$14&ROW())),""),"") ->  | CN34: AB13 H : FREEHEAD (R) | CO34: 8
A35: =IFERROR(IF(INDIRECT($A$14&ROW())<>"",COUNTIF(Summary!$B$30:$B$1094,INDIRECT($A$14&ROW())),""),"") ->  | CN35: AB14 H : Buy 3 Free 1 | CO35: 4
A36: =IFERROR(IF(INDIRECT($A$14&ROW())<>"",COUNTIF(Summary!$B$30:$B$1094,INDIRECT($A$14&ROW())),""),"") ->  | CN36: AB17 H : XTD S ROOM | CO36: 1
A37: =IFERROR(IF(INDIRECT($A$14&ROW())<>"",COUNTIF(Summary!$B$30:$B$1094,INDIRECT($A$14&ROW())),""),"") ->  | CN37: AB18 H : XTD M ROOM | CO37: 2
A38: =IFERROR(IF(INDIRECT($A$14&ROW())<>"",COUNTIF(Summary!$B$30:$B$1094,INDIRECT($A$14&ROW())),""),"") ->  | CN38: AB21 H : XTD VIP ROOM | CO38: 1
A39: =IFERROR(IF(INDIRECT($A$14&ROW())<>"",COUNTIF(Summary!$B$30:$B$1094,INDIRECT($A$14&ROW())),""),"") ->  | CN39: AB50 H:Student Mem | CO39: 30
A40: =IFERROR(IF(INDIRECT($A$14&ROW())<>"",COUNTIF(Summary!$B$30:$B$1094,INDIRECT($A$14&ROW())),""),"") ->  | CN40: AB53 H: BUY 2 FREE 2 | CO40: 12
A41: =IFERROR(IF(INDIRECT($A$14&ROW())<>"",COUNTIF(Summary!$B$30:$B$1094,INDIRECT($A$14&ROW())),""),"") ->  | CN41: AC01 N : REGULAR | CO41: 1821
A42: =IFERROR(IF(INDIRECT($A$14&ROW())<>"",COUNTIF(Summary!$B$30:$B$1094,INDIRECT($A$14&ROW())),""),"") ->  | CN42: AC02 N : MEMBER | CO42: 991
A43: =IFERROR(IF(INDIRECT($A$14&ROW())<>"",COUNTIF(Summary!$B$30:$B$1094,INDIRECT($A$14&ROW())),""),"") ->  | CN43: AC03 N : MEMBER 30% | CO43: 202
A44: =IFERROR(IF(INDIRECT($A$14&ROW())<>"",COUNTIF(Summary!$B$30:$B$1094,INDIRECT($A$14&ROW())),""),"") ->  | CN44: AC05 K-DINNER | CO44: 1471
A45: =IFERROR(IF(INDIRECT($A$14&ROW())<>"",COUNTIF(Summary!$B$30:$B$1094,INDIRECT($A$14&ROW())),""),"") ->  | CN45: AC06 N : CHILDREN | CO45: 199
A46: =IFERROR(IF(INDIRECT($A$14&ROW())<>"",COUNTIF(Summary!$B$30:$B$1094,INDIRECT($A$14&ROW())),""),"") ->  | CN46: AC07 N : MEMBER B'DAY | CO46: 59
A47: =IFERROR(IF(INDIRECT($A$14&ROW())<>"",COUNTIF(Summary!$B$30:$B$1094,INDIRECT($A$14&ROW())),""),"") ->  | CN47: AC10 N : FREEHEAD (B)
A48: =IFERROR(IF(INDIRECT($A$14&ROW())<>"",COUNTIF(Summary!$B$30:$B$1094,INDIRECT($A$14&ROW())),""),"") ->  | CN48: AC12 N : FREEHEAD (R) | CO48: 60
A49: =IFERROR(IF(INDIRECT($A$14&ROW())<>"",COUNTIF(Summary!$B$30:$B$1094,INDIRECT($A$14&ROW())),""),"") ->  | CN49: AC13 N : Buy 3 Free 1 | CO49: 2
A50: =IFERROR(IF(INDIRECT($A$14&ROW())<>"",COUNTIF(Summary!$B$30:$B$1094,INDIRECT($A$14&ROW())),""),"") ->  | CN50: AC17 N : XTD S ROOM | CO50: 13
A51: =IFERROR(IF(INDIRECT($A$14&ROW())<>"",COUNTIF(Summary!$B$30:$B$1094,INDIRECT($A$14&ROW())),""),"") ->  | CN51: AC18 N : XTD M ROOM | CO51: 17
A52: =IFERROR(IF(INDIRECT($A$14&ROW())<>"",COUNTIF(Summary!$B$30:$B$1094,INDIRECT($A$14&ROW())),""),"") ->  | CN52: AC19 N : XTD B ROOM | CO52: 12
A53: =IFERROR(IF(INDIRECT($A$14&ROW())<>"",COUNTIF(Summary!$B$30:$B$1094,INDIRECT($A$14&ROW())),""),"") ->  | CN53: AC24 N:Student Mem | CO53: 2
A54: =IFERROR(IF(INDIRECT($A$14&ROW())<>"",COUNTIF(Summary!$B$30:$B$1094,INDIRECT($A$14&ROW())),""),"") ->  | CN54: AC29 N:7.0 VER | CO54: 484
A55: =IFERROR(IF(INDIRECT($A$14&ROW())<>"",COUNTIF(Summary!$B$30:$B$1094,INDIRECT($A$14&ROW())),""),"") ->  | CN55: AC30 N:8.0 ver Aeon | CO55: 391
A56: =IFERROR(IF(INDIRECT($A$14&ROW())<>"",COUNTIF(Summary!$B$30:$B$1094,INDIRECT($A$14&ROW())),""),"") ->  | CN56: AC33 N : XTD VIP ROOM | CO56: 6
A57: =IFERROR(IF(INDIRECT($A$14&ROW())<>"",COUNTIF(Summary!$B$30:$B$1094,INDIRECT($A$14&ROW())),""),"") ->  | CN57: AD01 M : REGULAR | CO57: 627
A58: =IFERROR(IF(INDIRECT($A$14&ROW())<>"",COUNTIF(Summary!$B$30:$B$1094,INDIRECT($A$14&ROW())),""),"") ->  | CN58: AD02 M : MEMBER | CO58: 165
A59: =IFERROR(IF(INDIRECT($A$14&ROW())<>"",COUNTIF(Summary!$B$30:$B$1094,INDIRECT($A$14&ROW())),""),"") ->  | CN59: AD03 M : MEMBER 30% | CO59: 26
A60: =IFERROR(IF(INDIRECT($A$14&ROW())<>"",COUNTIF(Summary!$B$30:$B$1094,INDIRECT($A$14&ROW())),""),"") ->  | CN60: AD05 M : LADIES | CO60: 343
A61: =IFERROR(IF(INDIRECT($A$14&ROW())<>"",COUNTIF(Summary!$B$30:$B$1094,INDIRECT($A$14&ROW())),""),"") ->  | CN61: AD06 M : CHILDREN | CO61: 10
A62: =IFERROR(IF(INDIRECT($A$14&ROW())<>"",COUNTIF(Summary!$B$30:$B$1094,INDIRECT($A$14&ROW())),""),"") ->  | CN62: AD07 M : MEMBER B'DAY | CO62: 12
A63: =IFERROR(IF(INDIRECT($A$14&ROW())<>"",COUNTIF(Summary!$B$30:$B$1094,INDIRECT($A$14&ROW())),""),"") ->  | CN63: AD11 M : FREEHEAD (R) | CO63: 7
A64: =IFERROR(IF(INDIRECT($A$14&ROW())<>"",COUNTIF(Summary!$B$30:$B$1094,INDIRECT($A$14&ROW())),""),"") ->  | CN64: AD15 M : XTD S ROOM | CO64: 2
A65: =IFERROR(IF(INDIRECT($A$14&ROW())<>"",COUNTIF(Summary!$B$30:$B$1094,INDIRECT($A$14&ROW())),""),"") ->  | CN65: AD16 M : XTD M ROOM | CO65: 5
A66: =IFERROR(IF(INDIRECT($A$14&ROW())<>"",COUNTIF(Summary!$B$30:$B$1094,INDIRECT($A$14&ROW())),""),"") ->  | CN66: AD17 M : XTD B ROOM | CO66: 5
A67: =IFERROR(IF(INDIRECT($A$14&ROW())<>"",COUNTIF(Summary!$B$30:$B$1094,INDIRECT($A$14&ROW())),""),"") ->  | CN67: BA02 H : 4BP | CO67: 11
A68: =IFERROR(IF(INDIRECT($A$14&ROW())<>"",COUNTIF(Summary!$B$30:$B$1094,INDIRECT($A$14&ROW())),""),"") ->  | CN68: BA04 N : 4BP | CO68: 179
A69: =IFERROR(IF(INDIRECT($A$14&ROW())<>"",COUNTIF(Summary!$B$30:$B$1094,INDIRECT($A$14&ROW())),""),"") ->  | CN69: BA05 N : 4BP MEMBER | CO69: 5
A70: =IFERROR(IF(INDIRECT($A$14&ROW())<>"",COUNTIF(Summary!$B$30:$B$1094,INDIRECT($A$14&ROW())),""),"") ->  | CN70: BA06 M : 4BP | CO70: 19
A71: =IFERROR(IF(INDIRECT($A$14&ROW())<>"",COUNTIF(Summary!$B$30:$B$1094,INDIRECT($A$14&ROW())),""),"") ->  | CN71: BA08 GUINNESS BTL | CO71: 24
A72: =IFERROR(IF(INDIRECT($A$14&ROW())<>"",COUNTIF(Summary!$B$30:$B$1094,INDIRECT($A$14&ROW())),""),"") ->  | CN72: BA09 GUINNESS BKT | CO72: 24
A73: =IFERROR(IF(INDIRECT($A$14&ROW())<>"",COUNTIF(Summary!$B$30:$B$1094,INDIRECT($A$14&ROW())),""),"") ->  | CN73: BA10 GUINNESS RND | CO73: 2
A74: =IFERROR(IF(INDIRECT($A$14&ROW())<>"",COUNTIF(Summary!$B$30:$B$1094,INDIRECT($A$14&ROW())),""),"") ->  | CN74: BA11 HEINEKEN BTL | CO74: 21
A75: =IFERROR(IF(INDIRECT($A$14&ROW())<>"",COUNTIF(Summary!$B$30:$B$1094,INDIRECT($A$14&ROW())),""),"") ->  | CN75: BA12 HEINEKEN BKT | CO75: 32
A76: =IFERROR(IF(INDIRECT($A$14&ROW())<>"",COUNTIF(Summary!$B$30:$B$1094,INDIRECT($A$14&ROW())),""),"") ->  | CN76: BA13 HEINEKEN RND | CO76: 19
A77: =IFERROR(IF(INDIRECT($A$14&ROW())<>"",COUNTIF(Summary!$B$30:$B$1094,INDIRECT($A$14&ROW())),""),"") ->  | CN77: BA14 TIGER BTL | CO77: 41
A78: =IFERROR(IF(INDIRECT($A$14&ROW())<>"",COUNTIF(Summary!$B$30:$B$1094,INDIRECT($A$14&ROW())),""),"") ->  | CN78: BA15 TIGER BKT | CO78: 109
A79: =IFERROR(IF(INDIRECT($A$14&ROW())<>"",COUNTIF(Summary!$B$30:$B$1094,INDIRECT($A$14&ROW())),""),"") ->  | CN79: BA16 TIGER RND | CO79: 72
A80: =IFERROR(IF(INDIRECT($A$14&ROW())<>"",COUNTIF(Summary!$B$30:$B$1094,INDIRECT($A$14&ROW())),""),"") ->  | CN80: BA19 Tiger 2+1 | CO80: 24
A81: =IFERROR(IF(INDIRECT($A$14&ROW())<>"",COUNTIF(Summary!$B$30:$B$1094,INDIRECT($A$14&ROW())),""),"") ->  | CN81: BA20 Heineken 3+1 | CO81: 15
A82: =IFERROR(IF(INDIRECT($A$14&ROW())<>"",COUNTIF(Summary!$B$30:$B$1094,INDIRECT($A$14&ROW())),""),"") ->  | CN82: BA21 M : TIGER PROMO | CO82: 2
A83: =IFERROR(IF(INDIRECT($A$14&ROW())<>"",COUNTIF(Summary!$B$30:$B$1094,INDIRECT($A$14&ROW())),""),"") ->  | CN83: CA02 APPLE J | CO83: 3
A84: =IFERROR(IF(INDIRECT($A$14&ROW())<>"",COUNTIF(Summary!$B$30:$B$1094,INDIRECT($A$14&ROW())),""),"") ->  | CN84: CA04 MANGO J | CO84: 1
A85: =IFERROR(IF(INDIRECT($A$14&ROW())<>"",COUNTIF(Summary!$B$30:$B$1094,INDIRECT($A$14&ROW())),""),"") ->  | CN85: CA05 PASSION J | CO85: 3
A86: =IFERROR(IF(INDIRECT($A$14&ROW())<>"",COUNTIF(Summary!$B$30:$B$1094,INDIRECT($A$14&ROW())),""),"") ->  | CN86: CA06 RIBENA J | CO86: 2
A87: =IFERROR(IF(INDIRECT($A$14&ROW())<>"",COUNTIF(Summary!$B$30:$B$1094,INDIRECT($A$14&ROW())),""),"") ->  | CN87: CC04 MANGO SM | CO87: 1
A88: =IFERROR(IF(INDIRECT($A$14&ROW())<>"",COUNTIF(Summary!$B$30:$B$1094,INDIRECT($A$14&ROW())),""),"") ->  | CN88: CC07 CAPPUCINNO SM | CO88: 2
A89: =IFERROR(IF(INDIRECT($A$14&ROW())<>"",COUNTIF(Summary!$B$30:$B$1094,INDIRECT($A$14&ROW())),""),"") ->  | CN89: CC08 CHOCOLATE SM | CO89: 3
A90: =IFERROR(IF(INDIRECT($A$14&ROW())<>"",COUNTIF(Summary!$B$30:$B$1094,INDIRECT($A$14&ROW())),""),"") ->  | CN90: CC09 MOCHA SM | CO90: 1
A91: =IFERROR(IF(INDIRECT($A$14&ROW())<>"",COUNTIF(Summary!$B$30:$B$1094,INDIRECT($A$14&ROW())),""),"") ->  | CN91: CD01 7 UP | CO91: 1
A92: =IFERROR(IF(INDIRECT($A$14&ROW())<>"",COUNTIF(Summary!$B$30:$B$1094,INDIRECT($A$14&ROW())),""),"") ->  | CN92: CD03 PEPSI | CO92: 5
A93: =IFERROR(IF(INDIRECT($A$14&ROW())<>"",COUNTIF(Summary!$B$30:$B$1094,INDIRECT($A$14&ROW())),""),"") ->  | CN93: CE04 LEMON TEA (C) | CO93: 5
A94: =IFERROR(IF(INDIRECT($A$14&ROW())<>"",COUNTIF(Summary!$B$30:$B$1094,INDIRECT($A$14&ROW())),""),"") ->  | CN94: CE06 HNY GRN TEA (C) | CO94: 3
A95: =IFERROR(IF(INDIRECT($A$14&ROW())<>"",COUNTIF(Summary!$B$30:$B$1094,INDIRECT($A$14&ROW())),""),"") ->  | CN95: CE07 HONEY (C) | CO95: 2
A96: =IFERROR(IF(INDIRECT($A$14&ROW())<>"",COUNTIF(Summary!$B$30:$B$1094,INDIRECT($A$14&ROW())),""),"") ->  | CN96: CE08 LEMON HONEY (C) | CO96: 6
A97: =IFERROR(IF(INDIRECT($A$14&ROW())<>"",COUNTIF(Summary!$B$30:$B$1094,INDIRECT($A$14&ROW())),""),"") ->  | CN97: CF01 MILO (H) | CO97: 2
A98: =IFERROR(IF(INDIRECT($A$14&ROW())<>"",COUNTIF(Summary!$B$30:$B$1094,INDIRECT($A$14&ROW())),""),"") ->  | CN98: CF05 GRN TEA (H) | CO98: 3
A99: =IFERROR(IF(INDIRECT($A$14&ROW())<>"",COUNTIF(Summary!$B$30:$B$1094,INDIRECT($A$14&ROW())),""),"") ->  | CN99: CF06 HNY GRN TEA (H) | CO99: 3
A100: =IFERROR(IF(INDIRECT($A$14&ROW())<>"",COUNTIF(Summary!$B$30:$B$1094,INDIRECT($A$14&ROW())),""),"") ->  | CN100: CF07 HONEY (H) | CO100: 3
A101: =IFERROR(IF(INDIRECT($A$14&ROW())<>"",COUNTIF(Summary!$B$30:$B$1094,INDIRECT($A$14&ROW())),""),"") ->  | CN101: CF08 LEMON HONEY (H) | CO101: 6
A102: =IFERROR(IF(INDIRECT($A$14&ROW())<>"",COUNTIF(Summary!$B$30:$B$1094,INDIRECT($A$14&ROW())),""),"") ->  | CN102: CF09 CAPPUCCINO (H) | CO102: 3
A103: =IFERROR(IF(INDIRECT($A$14&ROW())<>"",COUNTIF(Summary!$B$30:$B$1094,INDIRECT($A$14&ROW())),""),"") ->  | CN103: CF10 CHOCOLATE (H) | CO103: 2
A104: =IFERROR(IF(INDIRECT($A$14&ROW())<>"",COUNTIF(Summary!$B$30:$B$1094,INDIRECT($A$14&ROW())),""),"") ->  | CN104: CF11 MOCHA (H) | CO104: 1
A105: =IFERROR(IF(INDIRECT($A$14&ROW())<>"",COUNTIF(Summary!$B$30:$B$1094,INDIRECT($A$14&ROW())),""),"") ->  | CN105: CG01 MINERAL WATER | CO105: 7
A106: =IFERROR(IF(INDIRECT($A$14&ROW())<>"",COUNTIF(Summary!$B$30:$B$1094,INDIRECT($A$14&ROW())),""),"") ->  | CN106: CH01 7 UP JUG | CO106: 2
A107: =IFERROR(IF(INDIRECT($A$14&ROW())<>"",COUNTIF(Summary!$B$30:$B$1094,INDIRECT($A$14&ROW())),""),"") ->  | CN107: CH03 PEPSI JUG | CO107: 2
A108: =IFERROR(IF(INDIRECT($A$14&ROW())<>"",COUNTIF(Summary!$B$30:$B$1094,INDIRECT($A$14&ROW())),""),"") ->  | CN108: CH06 WATER JUG | CO108: 3
A109: =IFERROR(IF(INDIRECT($A$14&ROW())<>"",COUNTIF(Summary!$B$30:$B$1094,INDIRECT($A$14&ROW())),""),"") ->  | CN109: CI01 GRAPE J | CO109: 411
A110: =IFERROR(IF(INDIRECT($A$14&ROW())<>"",COUNTIF(Summary!$B$30:$B$1094,INDIRECT($A$14&ROW())),""),"") ->  | CN110: CI02 APPLE J | CO110: 708
A111: =IFERROR(IF(INDIRECT($A$14&ROW())<>"",COUNTIF(Summary!$B$30:$B$1094,INDIRECT($A$14&ROW())),""),"") ->  | CN111: CI04 MANGO J | CO111: 552
A112: =IFERROR(IF(INDIRECT($A$14&ROW())<>"",COUNTIF(Summary!$B$30:$B$1094,INDIRECT($A$14&ROW())),""),"") ->  | CN112: CI05 PASSION J | CO112: 1075
A113: =IFERROR(IF(INDIRECT($A$14&ROW())<>"",COUNTIF(Summary!$B$30:$B$1094,INDIRECT($A$14&ROW())),""),"") ->  | CN113: CI06 RIBENA J | CO113: 1076
A114: =IFERROR(IF(INDIRECT($A$14&ROW())<>"",COUNTIF(Summary!$B$30:$B$1094,INDIRECT($A$14&ROW())),""),"") ->  | CN114: CJ01 GRAPE SO | CO114: 64
A115: =IFERROR(IF(INDIRECT($A$14&ROW())<>"",COUNTIF(Summary!$B$30:$B$1094,INDIRECT($A$14&ROW())),""),"") ->  | CN115: CJ02 APPLE SO | CO115: 103
A116: =IFERROR(IF(INDIRECT($A$14&ROW())<>"",COUNTIF(Summary!$B$30:$B$1094,INDIRECT($A$14&ROW())),""),"") ->  | CN116: CJ04 MANGO SO | CO116: 41
A117: =IFERROR(IF(INDIRECT($A$14&ROW())<>"",COUNTIF(Summary!$B$30:$B$1094,INDIRECT($A$14&ROW())),""),"") ->  | CN117: CJ05 PASSION SO | CO117: 128
A118: =IFERROR(IF(INDIRECT($A$14&ROW())<>"",COUNTIF(Summary!$B$30:$B$1094,INDIRECT($A$14&ROW())),""),"") ->  | CN118: CJ06 RIBENA SO | CO118: 125
A119: =IFERROR(IF(INDIRECT($A$14&ROW())<>"",COUNTIF(Summary!$B$30:$B$1094,INDIRECT($A$14&ROW())),""),"") ->  | CN119: CL01 7 UP | CO119: 518
A120: =IFERROR(IF(INDIRECT($A$14&ROW())<>"",COUNTIF(Summary!$B$30:$B$1094,INDIRECT($A$14&ROW())),""),"") ->  | CN120: CL02 7 UP REVIVE | CO120: 100
A121: =IFERROR(IF(INDIRECT($A$14&ROW())<>"",COUNTIF(Summary!$B$30:$B$1094,INDIRECT($A$14&ROW())),""),"") ->  | CN121: CL03 PEPSI | CO121: 1047
A122: =IFERROR(IF(INDIRECT($A$14&ROW())<>"",COUNTIF(Summary!$B$30:$B$1094,INDIRECT($A$14&ROW())),""),"") ->  | CN122: CM01 MILO (C) | CO122: 978
A123: =IFERROR(IF(INDIRECT($A$14&ROW())<>"",COUNTIF(Summary!$B$30:$B$1094,INDIRECT($A$14&ROW())),""),"") ->  | CN123: CM02 NESCAFE (C) | CO123: 291
A124: =IFERROR(IF(INDIRECT($A$14&ROW())<>"",COUNTIF(Summary!$B$30:$B$1094,INDIRECT($A$14&ROW())),""),"") ->  | CN124: CM03 TEA (C) | CO124: 439
A125: =IFERROR(IF(INDIRECT($A$14&ROW())<>"",COUNTIF(Summary!$B$30:$B$1094,INDIRECT($A$14&ROW())),""),"") ->  | CN125: CM04 LEMON TEA (C) | CO125: 1379
A126: =IFERROR(IF(INDIRECT($A$14&ROW())<>"",COUNTIF(Summary!$B$30:$B$1094,INDIRECT($A$14&ROW())),""),"") ->  | CN126: CM05 GRN TEA (C) | CO126: 1497
A127: =IFERROR(IF(INDIRECT($A$14&ROW())<>"",COUNTIF(Summary!$B$30:$B$1094,INDIRECT($A$14&ROW())),""),"") ->  | CN127: CM06 HNY GRN TEA (C) | CO127: 2332
A128: =IFERROR(IF(INDIRECT($A$14&ROW())<>"",COUNTIF(Summary!$B$30:$B$1094,INDIRECT($A$14&ROW())),""),"") ->  | CN128: CM07 HONEY (C) | CO128: 686
A129: =IFERROR(IF(INDIRECT($A$14&ROW())<>"",COUNTIF(Summary!$B$30:$B$1094,INDIRECT($A$14&ROW())),""),"") ->  | CN129: CM08 LEMON HONEY (C) | CO129: 3028
A130: =IFERROR(IF(INDIRECT($A$14&ROW())<>"",COUNTIF(Summary!$B$30:$B$1094,INDIRECT($A$14&ROW())),""),"") ->  | CN130: CN01 MILO (H) | CO130: 776
A131: =IFERROR(IF(INDIRECT($A$14&ROW())<>"",COUNTIF(Summary!$B$30:$B$1094,INDIRECT($A$14&ROW())),""),"") ->  | CN131: CN02 NESCAFE (H) | CO131: 185
A132: =IFERROR(IF(INDIRECT($A$14&ROW())<>"",COUNTIF(Summary!$B$30:$B$1094,INDIRECT($A$14&ROW())),""),"") ->  | CN132: CN03 TEA (H) | CO132: 81
A133: =IFERROR(IF(INDIRECT($A$14&ROW())<>"",COUNTIF(Summary!$B$30:$B$1094,INDIRECT($A$14&ROW())),""),"") ->  | CN133: CN04 LEMON TEA (H) | CO133: 201
A134: =IFERROR(IF(INDIRECT($A$14&ROW())<>"",COUNTIF(Summary!$B$30:$B$1094,INDIRECT($A$14&ROW())),""),"") ->  | CN134: CN05 GRN TEA (H) | CO134: 410
A135: =IFERROR(IF(INDIRECT($A$14&ROW())<>"",COUNTIF(Summary!$B$30:$B$1094,INDIRECT($A$14&ROW())),""),"") ->  | CN135: CN06 HNY GRN TEA (H) | CO135: 688
A136: =IFERROR(IF(INDIRECT($A$14&ROW())<>"",COUNTIF(Summary!$B$30:$B$1094,INDIRECT($A$14&ROW())),""),"") ->  | CN136: CN07 HONEY (H) | CO136: 460
A137: =IFERROR(IF(INDIRECT($A$14&ROW())<>"",COUNTIF(Summary!$B$30:$B$1094,INDIRECT($A$14&ROW())),""),"") ->  | CN137: CN08 LEMON HONEY (H) | CO137: 2053
A138: =IFERROR(IF(INDIRECT($A$14&ROW())<>"",COUNTIF(Summary!$B$30:$B$1094,INDIRECT($A$14&ROW())),""),"") ->  | CN138: CN12 CHAMOMILE (H) | CO138: 153
A139: =IFERROR(IF(INDIRECT($A$14&ROW())<>"",COUNTIF(Summary!$B$30:$B$1094,INDIRECT($A$14&ROW())),""),"") ->  | CN139: CN13 DARJEELING (H) | CO139: 22
A140: =IFERROR(IF(INDIRECT($A$14&ROW())<>"",COUNTIF(Summary!$B$30:$B$1094,INDIRECT($A$14&ROW())),""),"") ->  | CN140: CN14 EARL GREY (H) | CO140: 81
A141: =IFERROR(IF(INDIRECT($A$14&ROW())<>"",COUNTIF(Summary!$B$30:$B$1094,INDIRECT($A$14&ROW())),""),"") ->  | CN141: CO02 PLAIN WATER | CO141: 812
A142: =IFERROR(IF(INDIRECT($A$14&ROW())<>"",COUNTIF(Summary!$B$30:$B$1094,INDIRECT($A$14&ROW())),""),"") ->  | CN142: DB01 1001:BP CKN CP | CO142: 99
A143: =IFERROR(IF(INDIRECT($A$14&ROW())<>"",COUNTIF(Summary!$B$30:$B$1094,INDIRECT($A$14&ROW())),""),"") ->  | CN143: DB02 1002:GVY CHK CP | CO143: 24
A144: =IFERROR(IF(INDIRECT($A$14&ROW())<>"",COUNTIF(Summary!$B$30:$B$1094,INDIRECT($A$14&ROW())),""),"") ->  | CN144: DB03 1003:MSR CKN CP | CO144: 96
A145: =IFERROR(IF(INDIRECT($A$14&ROW())<>"",COUNTIF(Summary!$B$30:$B$1094,INDIRECT($A$14&ROW())),""),"") ->  | CN145: DB04 1004:CKN MARY | CO145: 41
A146: =IFERROR(IF(INDIRECT($A$14&ROW())<>"",COUNTIF(Summary!$B$30:$B$1094,INDIRECT($A$14&ROW())),""),"") ->  | CN146: DB05 1005:FISH&CHIP | CO146: 38
A147: =IFERROR(IF(INDIRECT($A$14&ROW())<>"",COUNTIF(Summary!$B$30:$B$1094,INDIRECT($A$14&ROW())),""),"") ->  | CN147: DB06 1006:SPAGHETTI | CO147: 57
A148: =IFERROR(IF(INDIRECT($A$14&ROW())<>"",COUNTIF(Summary!$B$30:$B$1094,INDIRECT($A$14&ROW())),""),"") ->  | CN148: DB07 1007:CHK SALAD | CO148: 23
A149: =IFERROR(IF(INDIRECT($A$14&ROW())<>"",COUNTIF(Summary!$B$30:$B$1094,INDIRECT($A$14&ROW())),""),"") ->  | CN149: DC01 1101:THAI CHK | CO149: 53
A150: =IFERROR(IF(INDIRECT($A$14&ROW())<>"",COUNTIF(Summary!$B$30:$B$1094,INDIRECT($A$14&ROW())),""),"") ->  | CN150: DC02 1102:MAMITE CHK | CO150: 70
A151: =IFERROR(IF(INDIRECT($A$14&ROW())<>"",COUNTIF(Summary!$B$30:$B$1094,INDIRECT($A$14&ROW())),""),"") ->  | CN151: DC04 1104:S&S CHK | CO151: 21
A152: =IFERROR(IF(INDIRECT($A$14&ROW())<>"",COUNTIF(Summary!$B$30:$B$1094,INDIRECT($A$14&ROW())),""),"") ->  | CN152: DC05 1105:BUTTER CHK | CO152: 105
A153: =IFERROR(IF(INDIRECT($A$14&ROW())<>"",COUNTIF(Summary!$B$30:$B$1094,INDIRECT($A$14&ROW())),""),"") ->  | CN153: DC06 1106:HK F.RICE | CO153: 60
A154: =IFERROR(IF(INDIRECT($A$14&ROW())<>"",COUNTIF(Summary!$B$30:$B$1094,INDIRECT($A$14&ROW())),""),"") ->  | CN154: DC07 1107:SBL F.RICE | CO154: 38
A155: =IFERROR(IF(INDIRECT($A$14&ROW())<>"",COUNTIF(Summary!$B$30:$B$1094,INDIRECT($A$14&ROW())),""),"") ->  | CN155: DC08 1108:SBL F.MEE | CO155: 8
A156: =IFERROR(IF(INDIRECT($A$14&ROW())<>"",COUNTIF(Summary!$B$30:$B$1094,INDIRECT($A$14&ROW())),""),"") ->  | CN156: DC09 1109:BP UDON | CO156: 27
A157: =IFERROR(IF(INDIRECT($A$14&ROW())<>"",COUNTIF(Summary!$B$30:$B$1094,INDIRECT($A$14&ROW())),""),"") ->  | CN157: DC10 1110:NISSIN | CO157: 33
A158: =IFERROR(IF(INDIRECT($A$14&ROW())<>"",COUNTIF(Summary!$B$30:$B$1094,INDIRECT($A$14&ROW())),""),"") ->  | CN158: DC11 1111:VEG RICE | CO158: 5
A159: =IFERROR(IF(INDIRECT($A$14&ROW())<>"",COUNTIF(Summary!$B$30:$B$1094,INDIRECT($A$14&ROW())),""),"") ->  | CN159: DC15 1115:CHK NOODLE | CO159: 22
A160: =IFERROR(IF(INDIRECT($A$14&ROW())<>"",COUNTIF(Summary!$B$30:$B$1094,INDIRECT($A$14&ROW())),""),"") ->  | CN160: DC16 1116:MGL CHICKEN | CO160: 27
A161: =IFERROR(IF(INDIRECT($A$14&ROW())<>"",COUNTIF(Summary!$B$30:$B$1094,INDIRECT($A$14&ROW())),""),"") ->  | CN161: DD01 1201:SFD STICK | CO161: 5
A162: =IFERROR(IF(INDIRECT($A$14&ROW())<>"",COUNTIF(Summary!$B$30:$B$1094,INDIRECT($A$14&ROW())),""),"") ->  | CN162: DD02 1202:FREN FRIES | CO162: 98
A163: =IFERROR(IF(INDIRECT($A$14&ROW())<>"",COUNTIF(Summary!$B$30:$B$1094,INDIRECT($A$14&ROW())),""),"") ->  | Q163: ZAC08 1308:C/CALAMARI | R163: 2 | BD163: ZZZZZ UPGRADE TO HEI | BG163: ZAD37 ICE BUCKET | BH163: 12 | BJ163: ZAD21 TAKE AWAY | BK163: 3 | BY163: ZAD36 BEER GLASS | BZ163: 22 | CB163: ZAD17 WITHOUT SUGAR | CC163: 3 | CN163: DD03 1203:GOLD MROOM | CO163: 9
A164: =IFERROR(IF(INDIRECT($A$14&ROW())<>"",COUNTIF(Summary!$B$30:$B$1094,INDIRECT($A$14&ROW())),""),"") ->  | Q164: ZAC10 1310:Mc SPIRAL/F | R164: 5 | BG164: ZZZZZ APPLY MEM | BJ164: ZAD36 BEER GLASS | BK164: 26 | BY164: ZAD37 ICE BUCKET | BZ164: 10 | CB164: ZAD20 JUG | CC164: 8 | CN164: DD04 1204:FISHBALL | CO164: 10
A165: =IFERROR(IF(INDIRECT($A$14&ROW())<>"",COUNTIF(Summary!$B$30:$B$1094,INDIRECT($A$14&ROW())),""),"") ->  | Q165: ZAC11 1311:Mc H/SMILES | R165: 1 | BJ165: ZAD37 ICE BUCKET | BK165: 8 | BY165: ZZZZZ PRICE NOT CHANGE | CB165: ZAD36 BEER GLASS | CC165: 46 | CN165: DD06 1206:SPRING RL | CO165: 8
A166: =IFERROR(IF(INDIRECT($A$14&ROW())<>"",COUNTIF(Summary!$B$30:$B$1094,INDIRECT($A$14&ROW())),""),"") ->  | Q166: ZAC12 1312:Mc HASH/B | R166: 1 | BJ166: ZZZZZ SOLD OUT | CB166: ZAD37 ICE BUCKET | CC166: 14 | CN166: DD07 1207:SAUSAGE | CO166: 17
A167: =IFERROR(IF(INDIRECT($A$14&ROW())<>"",COUNTIF(Summary!$B$30:$B$1094,INDIRECT($A$14&ROW())),""),"") ->  | Q167: ZAD01 COLD | R167: 7 | CB167: ZZZZZ CHANGE REGULAR | CN167: DD11 1302:NUGGET | CO167: 35
A168: =IFERROR(IF(INDIRECT($A$14&ROW())<>"",COUNTIF(Summary!$B$30:$B$1094,INDIRECT($A$14&ROW())),""),"") ->  | Q168: ZAD02 HOT | R168: 7 | CN168: DD12 1303:CHK WING | CO168: 24
A169: =IFERROR(IF(INDIRECT($A$14&ROW())<>"",COUNTIF(Summary!$B$30:$B$1094,INDIRECT($A$14&ROW())),""),"") ->  | Q169: ZAD03 WARM | R169: 25 | CN169: DD13 1304:IKAN BILIS | CO169: 8
A170: =IFERROR(IF(INDIRECT($A$14&ROW())<>"",COUNTIF(Summary!$B$30:$B$1094,INDIRECT($A$14&ROW())),""),"") ->  | Q170: ZAD04 LESS ICE | R170: 58 | CN170: DD14 1305:THAI RL | CO170: 5
A171: =IFERROR(IF(INDIRECT($A$14&ROW())<>"",COUNTIF(Summary!$B$30:$B$1094,INDIRECT($A$14&ROW())),""),"") ->  | Q171: ZAD06 NO ICE | R171: 25 | CN171: DD16 1307:D.F C/WING | CO171: 18
A172: =IFERROR(IF(INDIRECT($A$14&ROW())<>"",COUNTIF(Summary!$B$30:$B$1094,INDIRECT($A$14&ROW())),""),"") ->  | Q172: ZAD07 LESS SWEET | R172: 6 | CN172: DD17 1308 C/CALAMARI | CO172: 6
A173: =IFERROR(IF(INDIRECT($A$14&ROW())<>"",COUNTIF(Summary!$B$30:$B$1094,INDIRECT($A$14&ROW())),""),"") ->  | Q173: ZAD13 ADD LEMON | R173: 2 | CN173: DD18 1309 Mc C/O.RING | CO173: 6
A174: =IFERROR(IF(INDIRECT($A$14&ROW())<>"",COUNTIF(Summary!$B$30:$B$1094,INDIRECT($A$14&ROW())),""),"") ->  | Q174: ZAD20 JUG | R174: 4 | CN174: DD19 1310:Mc SPIRAL/F | CO174: 9
A175: =IFERROR(IF(INDIRECT($A$14&ROW())<>"",COUNTIF(Summary!$B$30:$B$1094,INDIRECT($A$14&ROW())),""),"") ->  | Q175: ZAD21 TAKE AWAY | R175: 4 | CN175: DD20 1311:Mc H/SMILES | CO175: 4
A176: =IFERROR(IF(INDIRECT($A$14&ROW())<>"",COUNTIF(Summary!$B$30:$B$1094,INDIRECT($A$14&ROW())),""),"") ->  | Q176: ZAD36 BEER GLASS | R176: 28 | CN176: DD21 1312:Mc HASH BRW | CO176: 11
A177: =IFERROR(IF(INDIRECT($A$14&ROW())<>"",COUNTIF(Summary!$B$30:$B$1094,INDIRECT($A$14&ROW())),""),"") ->  | Q177: ZAD37 ICE BUCKET | R177: 11 | CN177: DE01 SET 990 | CO177: 202
A178: =IFERROR(IF(INDIRECT($A$14&ROW())<>"",COUNTIF(Summary!$B$30:$B$1094,INDIRECT($A$14&ROW())),""),"") ->  | Q178: ZZZZZ WRONG KEY | CN178: DE02 SET 1390 | CO178: 143
A179: =IFERROR(IF(INDIRECT($A$14&ROW())<>"",COUNTIF(Summary!$B$30:$B$1094,INDIRECT($A$14&ROW())),""),"") ->  | CN179: DF01 ADD RICE | CO179: 17
A180: =IFERROR(IF(INDIRECT($A$14&ROW())<>"",COUNTIF(Summary!$B$30:$B$1094,INDIRECT($A$14&ROW())),""),"") ->  | CN180: DF02 ADD F.EGG | CO180: 5
A181: =IFERROR(IF(INDIRECT($A$14&ROW())<>"",COUNTIF(Summary!$B$30:$B$1094,INDIRECT($A$14&ROW())),""),"") ->  | CN181: DF03 ADD SAUCE 1000 | CO181: 8
A182: =IFERROR(IF(INDIRECT($A$14&ROW())<>"",COUNTIF(Summary!$B$30:$B$1094,INDIRECT($A$14&ROW())),""),"") ->  | CN182: DF04 ADD SAUCE BOLO | CO182: 1
A183: =IFERROR(IF(INDIRECT($A$14&ROW())<>"",COUNTIF(Summary!$B$30:$B$1094,INDIRECT($A$14&ROW())),""),"") ->  | CN183: DF05 ADD SAUCE BP | CO183: 1
A184: =IFERROR(IF(INDIRECT($A$14&ROW())<>"",COUNTIF(Summary!$B$30:$B$1094,INDIRECT($A$14&ROW())),""),"") ->  | CN184: DF07 ADD SAUCE C.PADI | CO184: 32
A185: =IFERROR(IF(INDIRECT($A$14&ROW())<>"",COUNTIF(Summary!$B$30:$B$1094,INDIRECT($A$14&ROW())),""),"") ->  | CN185: DF09 ADD SAUCE MAYO | CO185: 82
A186: =IFERROR(IF(INDIRECT($A$14&ROW())<>"",COUNTIF(Summary!$B$30:$B$1094,INDIRECT($A$14&ROW())),""),"") ->  | CN186: DF10 ADD SAUCE MMITE | CO186: 1
A187: =IFERROR(IF(INDIRECT($A$14&ROW())<>"",COUNTIF(Summary!$B$30:$B$1094,INDIRECT($A$14&ROW())),""),"") ->  | CN187: DF11 ADD SAUCE MR | CO187: 13
A188: =IFERROR(IF(INDIRECT($A$14&ROW())<>"",COUNTIF(Summary!$B$30:$B$1094,INDIRECT($A$14&ROW())),""),"") ->  | CN188: DF12 ADD SAUCE SAMBAL | CO188: 9
A189: =IFERROR(IF(INDIRECT($A$14&ROW())<>"",COUNTIF(Summary!$B$30:$B$1094,INDIRECT($A$14&ROW())),""),"") ->  | CN189: DF13 ADD SAUCE THAI | CO189: 1
A190: =IFERROR(IF(INDIRECT($A$14&ROW())<>"",COUNTIF(Summary!$B$30:$B$1094,INDIRECT($A$14&ROW())),""),"") ->  | CN190: DF14 ADD SAUCE TOMATO | CO190: 101
A191: =IFERROR(IF(INDIRECT($A$14&ROW())<>"",COUNTIF(Summary!$B$30:$B$1094,INDIRECT($A$14&ROW())),""),"") ->  | CN191: DF15 ADD TATA SAUCE | CO191: 11
A192: =IFERROR(IF(INDIRECT($A$14&ROW())<>"",COUNTIF(Summary!$B$30:$B$1094,INDIRECT($A$14&ROW())),""),"") ->  | CN192: DG01 91001:BP CHK CP | CO192: 510
A193: =IFERROR(IF(INDIRECT($A$14&ROW())<>"",COUNTIF(Summary!$B$30:$B$1094,INDIRECT($A$14&ROW())),""),"") ->  | CN193: DG02 91002:GVY CHK CP | CO193: 126
A194: =IFERROR(IF(INDIRECT($A$14&ROW())<>"",COUNTIF(Summary!$B$30:$B$1094,INDIRECT($A$14&ROW())),""),"") ->  | CN194: DG03 91003:MSR CHK CP | CO194: 535
A195: =IFERROR(IF(INDIRECT($A$14&ROW())<>"",COUNTIF(Summary!$B$30:$B$1094,INDIRECT($A$14&ROW())),""),"") ->  | CN195: DG04 91004:CKN MARY | CO195: 290
A196: =IFERROR(IF(INDIRECT($A$14&ROW())<>"",COUNTIF(Summary!$B$30:$B$1094,INDIRECT($A$14&ROW())),""),"") ->  | CN196: DG05 91005:FISH&CHIP | CO196: 295
A197: =IFERROR(IF(INDIRECT($A$14&ROW())<>"",COUNTIF(Summary!$B$30:$B$1094,INDIRECT($A$14&ROW())),""),"") ->  | CN197: DG06 91006:SPAGHETTI | CO197: 232
A198: =IFERROR(IF(INDIRECT($A$14&ROW())<>"",COUNTIF(Summary!$B$30:$B$1094,INDIRECT($A$14&ROW())),""),"") ->  | CN198: DG07 91007:CHK SALAD | CO198: 87
A199: =IFERROR(IF(INDIRECT($A$14&ROW())<>"",COUNTIF(Summary!$B$30:$B$1094,INDIRECT($A$14&ROW())),""),"") ->  | CN199: DH01 91101:THAI CHK | CO199: 101
A200: =IFERROR(IF(INDIRECT($A$14&ROW())<>"",COUNTIF(Summary!$B$30:$B$1094,INDIRECT($A$14&ROW())),""),"") ->  | CN200: DH02 91102:MAMITE CHK | CO200: 156
A201: =IFERROR(IF(INDIRECT($A$14&ROW())<>"",COUNTIF(Summary!$B$30:$B$1094,INDIRECT($A$14&ROW())),""),"") ->  | CN201: DH04 91104:S&S CHK | CO201: 65
A202: =IFERROR(IF(INDIRECT($A$14&ROW())<>"",COUNTIF(Summary!$B$30:$B$1094,INDIRECT($A$14&ROW())),""),"") ->  | CN202: DH05 91105:BUTTER CHK | CO202: 217
A203: =IFERROR(IF(INDIRECT($A$14&ROW())<>"",COUNTIF(Summary!$B$30:$B$1094,INDIRECT($A$14&ROW())),""),"") ->  | CN203: DH06 91106:HK F.RICE | CO203: 154
A204: =IFERROR(IF(INDIRECT($A$14&ROW())<>"",COUNTIF(Summary!$B$30:$B$1094,INDIRECT($A$14&ROW())),""),"") ->  | CN204: DH07 91107:SBL F.RICE | CO204: 66
A205: =IFERROR(IF(INDIRECT($A$14&ROW())<>"",COUNTIF(Summary!$B$30:$B$1094,INDIRECT($A$14&ROW())),""),"") ->  | CN205: DH08 91108:SBL F.MEE | CO205: 19
A206: =IFERROR(IF(INDIRECT($A$14&ROW())<>"",COUNTIF(Summary!$B$30:$B$1094,INDIRECT($A$14&ROW())),""),"") ->  | CN206: DH09 91109:BP UDON | CO206: 66
A207: =IFERROR(IF(INDIRECT($A$14&ROW())<>"",COUNTIF(Summary!$B$30:$B$1094,INDIRECT($A$14&ROW())),""),"") ->  | CN207: DH10 91110:NISSIN | CO207: 49
A208: =IFERROR(IF(INDIRECT($A$14&ROW())<>"",COUNTIF(Summary!$B$30:$B$1094,INDIRECT($A$14&ROW())),""),"") ->  | CN208: DH11 91111:VEG RICE | CO208: 25
A209: =IFERROR(IF(INDIRECT($A$14&ROW())<>"",COUNTIF(Summary!$B$30:$B$1094,INDIRECT($A$14&ROW())),""),"") ->  | CN209: DH15 91115:CHK NOODLE | CO209: 57
A210: =IFERROR(IF(INDIRECT($A$14&ROW())<>"",COUNTIF(Summary!$B$30:$B$1094,INDIRECT($A$14&ROW())),""),"") ->  | CN210: DH16 91116:MGL CHK | CO210: 55
... 836 more rows

Sheet STOCK ANALYSIS
C3: MONTHLY KITCHEN STOCK SUMMARY
C4: 每月厨房货物总结表
C7: OUTLET KITCHEN | D7: CCS
C8: 分行厨房
C10: YEAR / MONTH | D10: AUGUST 2013
C11: 年/月
B15: ITEM | C15: PRODUCT DESCRIPTION | D15: PRICE | E15: UOM | F15: FOR CCS KITCHEN
B16: 项目 | C16: 食材产品 | D16: 价格 | E16: 单位 | F16: A | G16: B | H16: C | I16: D | J16: E | K16: F | L16: G | M16: H | N16: I | O16: J | P16: K | Q16: L | R16: M | S16: N
M17: =C+D+E+F+G | N17: =A+B-H | P17: =J-I | Q17: =K / I | R17: =UP*K | S17: =K / H
F18: OPENING | G18: PURCHASE | H18: USAGE | I18: USAGE | J18: DISPOSED | K18: CUSTOMER REQUEST / | L18: USAGE | M18: TOTAL | N18: BOOKING | O18: STOCK | P18: DIFF. | Q18: DIFF. | R18: LOSS/GAIN | S18: STOCK DIFF OVER USAGE
F19: STOCK | H19: IN K LUNCH & K DINNER | I19: IN SIDE ORDER | J19: STOCK | K19: STAFF MEAL | L19: IN OTHER | M19: USAGE | N19: INVENTORY | O19: TAKE
F20: 上月存货 | G20: 购买数量 | H20: K LUNCH / DINNER 用量 | I20: 附加菜 用量 | J20: 本月抛弃 | K20: 顾客请求/员工餐 | L20: 其他用途 | M20: 总用量 | N20: 账面存货 | O20: 本月点货 | P20: 差异 | Q20: %差异 | R20: 盈亏 (RM)
A22: MAIN SAUCE 主要酱料
B23: 1 | C23: BLACK PEPPER SAUCE | D23: 3.88 | E23: KG | F23: 4.2 | G23: 45.6 | H23: =SUMIF('SAUCE USAGE'!$J$26:$J$66,C23,'SAUCE USAGE'!$L$26:$L$66)/1000 -> 45.9 | I23: =SUMIF('SAUCE USAGE'!$J$69:$J$109,C23,'SAUCE USAGE'!$L$69:$L$109)/1000 -> 8.91 | K23: =SUMIF('SAUCE USAGE'!$J$11:$J$24,C23,'SAUCE USAGE'!$L$11:$L$24)/1000 -> 0.08 | M23: =L23+H23+I23+J23+K23 -> 54.89 | N23: =+F23+G23-M23 -> -5.09 | O23: 3.2 | P23: =+O23-N23 -> 8.29 | Q23: =IF(N23=0,"",P23/N23) -> -1.628683694 | R23: =+P23*D23 -> 32.1652 | S23: =+P23/M23 -> 0.1510293314
B24: 2 | C24: BLACK PEPPER SAUCE (UDON) | D24: 3.88 | E24: KG | F24: 3.5 | G24: 0 | H24: =SUMIF('SAUCE USAGE'!$J$26:$J$66,C24,'SAUCE USAGE'!$L$26:$L$66)/1000 -> 4.62 | I24: =SUMIF('SAUCE USAGE'!$J$69:$J$109,C24,'SAUCE USAGE'!$L$69:$L$109)/1000 -> 1.89 | K24: =SUMIF('SAUCE USAGE'!$J$11:$J$24,C24,'SAUCE USAGE'!$L$11:$L$24)/1000 -> 0 | M24: 6.51 | N24: -3.01 | O24: 1.9 | P24: 4.91 | Q24: -1.631229236 | R24: 19.0508 | S24: =+P24/M24 -> 0.7542242704
B25: =+B24+1 -> 3 | C25: BOLOGNESE SAUCE | D25: 11.35 | E25: KG | F25: 5.9 | G25: 12 | H25: =SUMIF('SAUCE USAGE'!$J$26:$J$66,C25,'SAUCE USAGE'!$L$26:$L$66)/1000 -> 34.8 | I25: =SUMIF('SAUCE USAGE'!$J$69:$J$109,C25,'SAUCE USAGE'!$L$69:$L$109)/1000 -> 8.55 | K25: =SUMIF('SAUCE USAGE'!$J$11:$J$24,C25,'SAUCE USAGE'!$L$11:$L$24)/1000 -> 0.14 | M25: 43.49 | N25: -25.59 | O25: 7.9 | P25: 33.49 | Q25: -1.308714342 | R25: 380.1115 | S25: 0.7700620832
B26: =+B25+1 -> 4 | C26: BUTTER CREAM SAUCE | D26: 5.9 | E26: KG | F26: 0.6 | G26: 16.1 | H26: =SUMIF('SAUCE USAGE'!$J$26:$J$66,C26,'SAUCE USAGE'!$L$26:$L$66)/1000 -> 16.275 | I26: =SUMIF('SAUCE USAGE'!$J$69:$J$109,C26,'SAUCE USAGE'!$L$69:$L$109)/1000 -> 7.875 | K26: =SUMIF('SAUCE USAGE'!$J$11:$J$24,C26,'SAUCE USAGE'!$L$11:$L$24)/1000 -> 0 | M26: =L26+H26+I26+J26+K26 -> 24.15 | N26: =+F26+G26-M26 -> -7.45 | O26: 0.5 | P26: =+O26-N26 -> 7.95 | Q26: =IF(N26=0,"",P26/N26) -> -1.067114094 | R26: =+P26*D26 -> 46.905 | S26: =+P26/M26 -> 0.3291925466
B27: 5 | C27: GRAVY SAUCE | D27: 3.3 | E27: KG | F27: 2.3 | G27: 12.8 | H27: =SUMIF('SAUCE USAGE'!$J$26:$J$66,C27,'SAUCE USAGE'!$L$26:$L$66)/1000 -> 11.34 | I27: =SUMIF('SAUCE USAGE'!$J$69:$J$109,C27,'SAUCE USAGE'!$L$69:$L$109)/1000 -> 2.16 | K27: =SUMIF('SAUCE USAGE'!$J$11:$J$24,C27,'SAUCE USAGE'!$L$11:$L$24)/1000 -> 0 | M27: 13.5 | N27: 1.6 | O27: 1.8 | P27: 0.2 | Q27: 0.125 | R27: 0.66 | S27: 0.01481481481
B28: 6 | C28: MARMITE SAUCE | D28: 2 | E28: KG | F28: 3.2 | G28: 20.9 | H28: =SUMIF('SAUCE USAGE'!$J$26:$J$66,C28,'SAUCE USAGE'!$L$26:$L$66)/1000 -> 12.48 | I28: =SUMIF('SAUCE USAGE'!$J$69:$J$109,C28,'SAUCE USAGE'!$L$69:$L$109)/1000 -> 5.6 | K28: =SUMIF('SAUCE USAGE'!$J$11:$J$24,C28,'SAUCE USAGE'!$L$11:$L$24)/1000 -> 0.07 | M28: 18.15 | N28: 5.95 | O28: 4.5 | P28: -1.45 | Q28: -0.243697479 | R28: -2.9 | S28: -0.07988980716
B29: 7 | C29: MUSHROOM SAUCE | D29: 6.78 | E29: KG | F29: 4 | G29: 49.4 | H29: =SUMIF('SAUCE USAGE'!$J$26:$J$66,C29,'SAUCE USAGE'!$L$26:$L$66)/1000 -> 48.15 | I29: =SUMIF('SAUCE USAGE'!$J$69:$J$109,C29,'SAUCE USAGE'!$L$69:$L$109)/1000 -> 8.64 | K29: =SUMIF('SAUCE USAGE'!$J$11:$J$24,C29,'SAUCE USAGE'!$L$11:$L$24)/1000 -> 1.04 | M29: 57.83 | N29: -4.43 | O29: 3.4 | P29: 7.83 | Q29: -1.767494357 | R29: 53.0874 | S29: 0.1353968528
B30: 8 | C30: SAMBAL (FRIED)SAUCE | D30: 9.07 | E30: KG | F30: 10.4 | G30: 7.8 | H30: =SUMIF('SAUCE USAGE'!$J$26:$J$66,C30,'SAUCE USAGE'!$L$26:$L$66)/1000 -> 4.32 | I30: =SUMIF('SAUCE USAGE'!$J$69:$J$109,C30,'SAUCE USAGE'!$L$69:$L$109)/1000 -> 3.15 | K30: =SUMIF('SAUCE USAGE'!$J$11:$J$24,C30,'SAUCE USAGE'!$L$11:$L$24)/1000 -> 0 | M30: 7.47 | N30: 10.73 | O30: 9.2 | P30: -1.53 | Q30: -0.1425908667 | R30: -13.8771 | S30: -0.2048192771
B31: =+B30+1 -> 9 | C31: SWEET & SOUR SAUCE | D31: 1.88 | E31: KG | F31: 5.3 | G31: 16 | H31: =SUMIF('SAUCE USAGE'!$J$26:$J$66,C31,'SAUCE USAGE'!$L$26:$L$66)/1000 -> 13 | I31: =SUMIF('SAUCE USAGE'!$J$69:$J$109,C31,'SAUCE USAGE'!$L$69:$L$109)/1000 -> 4.2 | K31: =SUMIF('SAUCE USAGE'!$J$11:$J$24,C31,'SAUCE USAGE'!$L$11:$L$24)/1000 -> 0 | M31: 17.2 | N31: 4.1 | O31: 5.2 | P31: 1.1 | Q31: 0.2682926829 | R31: 2.068 | S31: 0.06395348837
B32: GRAND TOTAL | R32: =SUM(R23:R31) -> 517.2708
A34: MAIN COURSE MATERIAL 主餐食材
B36: 1 | C36: CHICKEN CHOP (MARINATED) | D36: 3.34 | E36: PCS | F36: 505 | G36: 2387 | H36: =SUMIF('K-LUNCH & K DINNER'!$H$10:$H$55,C36,'K-LUNCH & K DINNER'!$J$10:$J$55) -> 1997.04 | I36: =SUMIF('SIDE ORDER & FOC'!$Q$11:$Q$204,C36,'SIDE ORDER & FOC'!$S$11:$S$204) -> 489.16 | K36: 6 | M36: =L36+H36+I36+J36+K36 -> 2492.2 | N36: =+F36+G36-M36 -> 399.8 | O36: 374 | P36: =+O36-N36 -> -25.8 | Q36: =IF(N36=0,"",P36/N36) -> -0.06453226613 | R36: =+P36*D36 -> -86.172 | S36: -0.01035229917
B38: 2 | C38: CHICKEN WING (MARINATED) | D38: 1.17 | E38: PCS | F38: 107 | G38: 393 | H38: =SUMIF('K-LUNCH & K DINNER'!$H$10:$H$55,C38,'K-LUNCH & K DINNER'!$J$10:$J$55) -> 255 | I38: =SUMIF('SIDE ORDER & FOC'!$Q$11:$Q$204,C38,'SIDE ORDER & FOC'!$S$11:$S$204) -> 459 | K38: 1 | M38: =L38+H38+I38+J38+K38 -> 715 | N38: =+F38+G38-M38 -> -215 | O38: 33 | P38: =+O38-N38 -> 248 | Q38: -1.153488372
B39: 3 | C39: CHICKEN WINGS (NON -MARINATED) | D39: 1.17 | E39: PCS | F39: 71 | G39: 215 | H39: =SUMIF('K-LUNCH & K DINNER'!$H$10:$H$55,C39,'K-LUNCH & K DINNER'!$J$10:$J$55) -> 0 | I39: =SUMIF('SIDE ORDER & FOC'!$Q$11:$Q$204,C39,'SIDE ORDER & FOC'!$S$11:$S$204) -> 0 | J39: 7 | K39: 0 | M39: =L39+H39+I39+J39+K39 -> 7 | N39: =+F39+G39-M39 -> 279 | O39: 26 | P39: -253 | Q39: -0.9068100358
C40: CHICKEN WINGS -TOTAL | D40: 1.17 | E40: PCS | F40: =SUM(F38:F39) -> 178 | G40: 608 | H40: 255 | I40: 459 | J40: 7 | K40: 1 | L40: 0 | M40: 722 | N40: 64 | O40: 59 | P40: -5 | Q40: -2.060298408 | R40: =+P40*D40 -> -5.85 | S40: -0.006925207756
B42: 4 | C42: DORY FISH FILLET | D42: 2.45 | E42: PCS | F42: 37 | G42: 320 | H42: =SUMIF('K-LUNCH & K DINNER'!$H$10:$H$55,C42,'K-LUNCH & K DINNER'!$J$10:$J$55) -> 295 | I42: =SUMIF('SIDE ORDER & FOC'!$Q$11:$Q$204,C42,'SIDE ORDER & FOC'!$S$11:$S$204) -> 38 | J42: 3 | M42: =L42+H42+I42+J42+K42 -> 336 | N42: =+F42+G42-M42 -> 21 | O42: 18 | P42: -3 | Q42: -0.1428571429 | R42: =+P42*D42 -> -7.35 | S42: -0.008928571429
B44: GRAND TOTAL | R44: =SUM(R35:R43) -> -99.372
A46: SNACKS MATERIAL 小吃食材
B47: 5 | C47: MCCAIN ONION RING | D47: 0.16 | E47: PCS | F47: 1242 | G47: 0 | H47: =SUMIF('K-LUNCH & K DINNER'!$H$10:$H$55,C47,'K-LUNCH & K DINNER'!$J$10:$J$55) -> 64 | I47: =SUMIF('SIDE ORDER & FOC'!$Q$11:$Q$204,C47,'SIDE ORDER & FOC'!$S$11:$S$204) -> 472 | M47: =L47+H47+I47+J47+K47 -> 536 | N47: =+F47+G47-M47 -> 706 | O47: 565 | P47: -141 | Q47: =IF(N47=0,"",P47/N47) -> -0.1997167139 | R47: =+P47*D47 -> -22.56 | S47: -0.2630597015
B48: 6 | C48: MCCAIN SMILES | D48: 0.12 | E48: PCS | F48: 298 | G48: 630 | H48: =SUMIF('K-LUNCH & K DINNER'!$H$10:$H$55,C48,'K-LUNCH & K DINNER'!$J$10:$J$55) -> 40 | I48: =SUMIF('SIDE ORDER & FOC'!$Q$11:$Q$204,C48,'SIDE ORDER & FOC'!$S$11:$S$204) -> 296 | M48: =L48+H48+I48+J48+K48 -> 336 | N48: =+F48+G48-M48 -> 592 | O48: 603 | P48: 11 | Q48: 0.01858108108 | R48: =+P48*D48 -> 1.32 | S48: 0.03273809524
B49: 7 | C49: MCCAIN VERSITOT | D49: 0.06 | E49: PCS | F49: 220 | G49: 1320 | H49: =SUMIF('K-LUNCH & K DINNER'!$H$10:$H$55,C49,'K-LUNCH & K DINNER'!$J$10:$J$55) -> 165 | I49: =SUMIF('SIDE ORDER & FOC'!$Q$11:$Q$204,C49,'SIDE ORDER & FOC'!$S$11:$S$204) -> 738 | M49: =L49+H49+I49+J49+K49 -> 903 | N49: =+F49+G49-M49 -> 637 | O49: 565 | P49: -72 | Q49: -0.1130298273 | R49: -4.32 | S49: -0.07973421927
B50: =+B49+1 -> 8 | C50: MCCAIN SPIRAL FRIES | D50: 7.87 | E50: KG | F50: 1.4 | G50: 21.6 | H50: =SUMIF('K-LUNCH & K DINNER'!$H$10:$H$55,C50,'K-LUNCH & K DINNER'!$J$10:$J$55) -> 3.96 | I50: =SUMIF('SIDE ORDER & FOC'!$Q$11:$Q$204,C50,'SIDE ORDER & FOC'!$S$11:$S$204) -> 12.44 | M50: 1.56 | N50: -1.56 | O50: 5.6 | P50: 7.16 | Q50: -4.58974359 | R50: 56.3492 | S50: 4.58974359
B51: =+B50+1 -> 9 | C51: CALAMARI RING | D51: 0.47 | E51: PCS | F51: 210 | G51: 225 | H51: =SUMIF('K-LUNCH & K DINNER'!$H$10:$H$55,C51,'K-LUNCH & K DINNER'!$J$10:$J$55) -> 119 | I51: =SUMIF('SIDE ORDER & FOC'!$Q$11:$Q$204,C51,'SIDE ORDER & FOC'!$S$11:$S$204) -> 245 | M51: =L51+H51+I51+J51+K51 -> 364 | N51: =+F51+G51-M51 -> 71 | O51: 72 | P51: =+O51-N51 -> 1 | Q51: =IF(N51=0,"",P51/N51) -> 0.01408450704 | R51: 0.47 | S51: 0.002747252747
B52: 10 | C52: CHICKEN NUGGET | D52: 0.26 | E52: PCS | F52: 178 | G52: 1332 | H52: =SUMIF('K-LUNCH & K DINNER'!$H$10:$H$55,C52,'K-LUNCH & K DINNER'!$J$10:$J$55) -> 344 | I52: =SUMIF('SIDE ORDER & FOC'!$Q$11:$Q$204,C52,'SIDE ORDER & FOC'!$S$11:$S$204) -> 776 | M52: 1120 | N52: 390 | O52: 384 | P52: -6 | Q52: -0.01538461538 | R52: -1.56 | S52: -0.005357142857
B53: 11 | C53: CHICKEN SAUSAGE | D53: 0.23 | E53: PCS | F53: 198 | G53: 610 | H53: =SUMIF('K-LUNCH & K DINNER'!$H$10:$H$55,C53,'K-LUNCH & K DINNER'!$J$10:$J$55) -> 161.5 | I53: =SUMIF('SIDE ORDER & FOC'!$Q$11:$Q$204,C53,'SIDE ORDER & FOC'!$S$11:$S$204) -> 476.5 | K53: 42 | M53: 680 | N53: 128 | O53: 229 | P53: 101 | Q53: 0.7890625 | R53: 23.23 | S53: 0.1485294118
B54: 12 | C54: FISH BALL (BIG) | D54: 0.24 | E54: PCS | F54: 74 | G54: 360 | H54: =SUMIF('K-LUNCH & K DINNER'!$H$10:$H$55,C54,'K-LUNCH & K DINNER'!$J$10:$J$55) -> 42 | I54: =SUMIF('SIDE ORDER & FOC'!$Q$11:$Q$204,C54,'SIDE ORDER & FOC'!$S$11:$S$204) -> 306 | M54: 348 | N54: 86 | O54: 100 | P54: 14 | Q54: 0.1627906977 | R54: 3.36 | S54: 0.04022988506
B55: 13 | C55: SALMON BALL | D55: 0.27 | E55: PCS | F55: 47 | G55: 30 | H55: =SUMIF('K-LUNCH & K DINNER'!$H$10:$H$55,C55,'K-LUNCH & K DINNER'!$J$10:$J$55) -> 2 | I55: =SUMIF('SIDE ORDER & FOC'!$Q$11:$Q$204,C55,'SIDE ORDER & FOC'!$S$11:$S$204) -> 54 | M55: 56 | N55: 21 | O55: 41 | P55: 20 | Q55: 0.9523809524 | R55: 5.4 | S55: 0.3571428571
B56: 14 | C56: SEAFOOD TOFU | D56: 0.33 | E56: PCS | F56: 9 | G56: 66 | H56: =SUMIF('K-LUNCH & K DINNER'!$H$10:$H$55,C56,'K-LUNCH & K DINNER'!$J$10:$J$55) -> 2 | I56: =SUMIF('SIDE ORDER & FOC'!$Q$11:$Q$204,C56,'SIDE ORDER & FOC'!$S$11:$S$204) -> 54 | M56: 56 | N56: 19 | O56: 41 | P56: 22 | Q56: 1.157894737 | R56: 7.26 | S56: 0.3928571429
B57: 15 | C57: SOTONG BALL | D57: 0.17 | E57: PCS | F57: 103 | G57: 50 | H57: =SUMIF('K-LUNCH & K DINNER'!$H$10:$H$55,C57,'K-LUNCH & K DINNER'!$J$10:$J$55) -> 2 | I57: =SUMIF('SIDE ORDER & FOC'!$Q$11:$Q$204,C57,'SIDE ORDER & FOC'!$S$11:$S$204) -> 54 | M57: 56 | N57: 97 | O57: 102 | P57: 5 | Q57: 0.05154639175 | R57: 0.85 | S57: 0.08928571429
B58: 16 | C58: SPRING ROLL | D58: 0.27 | E58: PCS | F58: 53 | G58: 720 | H58: =SUMIF('K-LUNCH & K DINNER'!$H$10:$H$55,C58,'K-LUNCH & K DINNER'!$J$10:$J$55) -> 48 | I58: =SUMIF('SIDE ORDER & FOC'!$Q$11:$Q$204,C58,'SIDE ORDER & FOC'!$S$11:$S$204) -> 464 | M58: 512 | N58: 261 | O58: 177 | P58: -84 | Q58: -0.3218390805 | R58: -22.68 | S58: -0.1640625
B59: 17 | C59: THAI ROLL | D59: 0.45 | E59: PCS | F59: 166 | G59: 285 | H59: =SUMIF('K-LUNCH & K DINNER'!$H$10:$H$55,C59,'K-LUNCH & K DINNER'!$J$10:$J$55) -> 42 | I59: =SUMIF('SIDE ORDER & FOC'!$Q$11:$Q$204,C59,'SIDE ORDER & FOC'!$S$11:$S$204) -> 147 | M59: 189 | N59: 262 | O59: 197 | P59: -65 | Q59: -0.2480916031 | R59: -29.25 | S59: -0.3439153439
B60: 18 | C60: 6" PIZZA BASE | D60: 1.25 | E60: PCS | F60: 26 | G60: 0 | H60: =SUMIF('K-LUNCH & K DINNER'!$H$10:$H$55,C60,'K-LUNCH & K DINNER'!$J$10:$J$55) -> 0 | I60: =SUMIF('SIDE ORDER & FOC'!$Q$11:$Q$204,C60,'SIDE ORDER & FOC'!$S$11:$S$204) -> 18 | M60: 18 | N60: 8 | O60: 0 | P60: =+O60-N60 -> -8 | Q60: -1 | R60: -10 | S60: =+P60/M60 -> -0.4444444444
B61: 19 | C61: 9" PIZZA BASE | D61: 2.3 | E61: PCS | F61: 0 | G61: 0 | H61: =SUMIF('K-LUNCH & K DINNER'!$H$10:$H$55,C61,'K-LUNCH & K DINNER'!$J$10:$J$55) -> 0 | I61: =SUMIF('SIDE ORDER & FOC'!$Q$11:$Q$204,C61,'SIDE ORDER & FOC'!$S$11:$S$204) -> 0 | M61: 0 | N61: 0 | O61: 0 | P61: 0 | R61: 0 | S61: =IF(M61=0,"",O61/M61) -> 
B63: GRAND TOTAL | R63: =SUM(R47:R62) -> 7.8692
B72: COMPARISON OF TOTAL LOSSES | J72: COMPARISON OF ACTUAL USAGE
B73: NO | C73: CATEGORIES | F73: JULY | G73: AUG | H73: DIFF | J73: NO | O73: JULY | P73: AUG | Q73: DIFF
F74: RM | G74: PCS | H74: % | O74: PCS | P74: PCS | Q74: %
B75: 1 | C75: MAIN SAUCE 主要酱料 | F75: 152.52 | G75: =+R32 -> 517.2708 | H75: =(+G75-F75)/F75 -> 2.391494886 | J75: 1 | K75: =+C36 -> CHICKEN CHOP (MARINATED) | O75: 1714.4 | P75: =+M36 -> 2492.2 | Q75: =(+P75-O75)/O75 -> 0.4536864209
B76: 2 | C76: MAIN COURSE MATERIAL 主餐食材 | F76: -130.324 | G76: =+R44 -> -99.372 | H76: -0.2375003837 | J76: 2 | K76: =+C40 -> CHICKEN WINGS -TOTAL | O76: 693 | P76: =+M40 -> 722 | Q76: =(+P76-O76)/O76 -> 0.04184704185
B77: 3 | C77: SNACKS MATERIAL 小吃食材 | F77: -109.69 | G77: =+R63 -> 7.8692 | H77: -1.071740359 | J77: 3 | K77: =+C42 -> DORY FISH FILLET | O77: 276 | P77: =+M42 -> 336 | Q77: 0.2173913043
J78: 4 | K78: =+C47 -> MCCAIN ONION RING | O78: 408 | P78: =+M47 -> 536 | Q78: 0.3137254902
B79: GRAND TOTAL | F79: =SUM(F75:F77) -> -87.494 | G79: =SUM(G75:G77) -> 425.768 | J79: 5 | K79: =+C48 -> MCCAIN SMILES | O79: 88 | P79: =+M48 -> 336 | Q79: 2.818181818
J80: 6 | K80: MCCAIN VERSITOT | O80: 668 | P80: 903 | Q80: 0.3517964072
J81: 7 | K81: MCCAIN SPIRAL FRIES | O81: 14.9 | P81: 1.56 | Q81: -0.8953020134
B82: COMPARISON OF ACTUAL USAGE (SAUCE) | J82: 8 | K82: CALAMARI RING | O82: 175 | P82: 364 | Q82: 1.08
J83: 9 | K83: CHICKEN NUGGET | O83: 1016 | P83: 1120 | Q83: 0.1023622047
B84: NO | C84: CATEGORIES | F84: JULY | G84: AUG | H84: DIFF | J84: 10 | K84: CHICKEN SAUSAGE | O84: 502.5 | P84: 680 | Q84: 0.3532338308
F85: KG | G85: KG | H85: % | J85: 11 | K85: FISH BALL (BIG) | O85: 216 | P85: 348 | Q85: 0.6111111111
B86: 1 | C86: =+C23 -> BLACK PEPPER SAUCE | F86: 34.28 | G86: =+M23 -> 54.89 | H86: =(+G86-F86)/F86 -> 0.6012252042 | J86: =+J85+1 -> 12 | K86: =+C55 -> SALMON BALL | O86: 38 | P86: 56 | Q86: 0.4736842105
B87: 2 | C87: =+C24 -> BLACK PEPPER SAUCE (UDON) | F87: 5.04 | G87: =+M24 -> 6.51 | H87: 0.2916666667 | J87: =+J86+1 -> 13 | K87: =+C56 -> SEAFOOD TOFU | O87: 38 | P87: 56 | Q87: 0.4736842105
B88: 3 | C88: =+C25 -> BOLOGNESE SAUCE | F88: 31.5 | G88: =+M25 -> 43.49 | H88: 0.3806349206 | J88: 14 | K88: SOTONG BALL | O88: 38 | P88: 56 | Q88: 0.4736842105
B89: =+B88+1 -> 4 | C89: =+C27 -> GRAVY SAUCE | F89: 8.63 | G89: =+M27 -> 13.5 | H89: =(+G89-F89)/F89 -> 0.5643105446 | J89: 15 | K89: SPRING ROLL | O89: 440 | P89: 512 | Q89: 0.1636363636
B90: =+B89+1 -> 5 | C90: MARMITE SAUCE | F90: 13.84 | G90: 18.15 | H90: 0.311416185 | J90: 16 | K90: THAI ROLL | O90: 126 | P90: 189 | Q90: 0.5
B91: 6 | C91: MUSHROOM SAUCE | F91: 38.28 | G91: 57.83 | H91: 0.5107105538 | J91: 17 | K91: 6" PIZZA BASE | O91: 15 | P91: 18 | Q91: 0.2
B92: 7 | C92: SAMBAL (FRIED)SAUCE | F92: 4.95 | G92: 7.47 | H92: 0.5090909091 | J92: 18 | K92: 9" PIZZA BASE | O92: 6 | P92: 0 | Q92: =(+P92-O92)/O92 -> -1
B93: 8 | C93: SWEET & SOUR SAUCE | F93: 10.2 | G93: 17.2 | H93: 0.6862745098

Sheet K-LUNCH & K DINNER
A1: MONTHLY SALES FOOD RECORD ( K LUNCH & K DINNER)
A3: Outlet : | B3: CCS OUTLET
A4: Month : | B4: 2013-08-01
D6: K-LUNCH & K DINNER | E6: TOTAL COST | I6: USAGE
A7: NO | B7: MENU ITEM | C7: Cost | D7: Sales | H7: MATERIAL USED | I7: PORTION | J7: TOTAL
C8: RM | D8: Q | E8: RM | H8: Q | I8: Q | J8: Q
A10: 1 | B10: DH01 91101:THAI CHK | C10: =SUMIF(DATABASE!$B$3:$B$73,'K-LUNCH & K DINNER'!B10,DATABASE!$C$3:$C$73) -> 3.29 | D10: =VLOOKUP(B10,Summary!$B$30:$AK$464,5,FALSE) -> 101 | E10: =+D10*C10 -> 332.29 | H10: CHICKEN CHOP (MARINATED) | I10: 0.66 | J10: =+I10*D10 -> 66.66
A11: =+A10+1 -> 2 | B11: DH02 91102:MAMITE CHK | C11: =SUMIF(DATABASE!$B$3:$B$73,'K-LUNCH & K DINNER'!B11,DATABASE!$C$3:$C$73) -> 3.02 | D11: =VLOOKUP(B11,Summary!$B$30:$AK$464,5,FALSE) -> 156 | E11: =+D11*C11 -> 471.12 | H11: CHICKEN CHOP (MARINATED) | I11: 0.66 | J11: 102.96
A12: =+A11+1 -> 3 | B12: DH03 91103:KO PO CHK | C12: =SUMIF(DATABASE!$B$3:$B$73,'K-LUNCH & K DINNER'!B12,DATABASE!$C$3:$C$73) -> 3.45 | D12: =VLOOKUP(B12,Summary!$B$30:$AK$464,5,FALSE) -> 0 | E12: 0 | H12: CHICKEN CHOP (MARINATED) | I12: 0.66 | J12: 0
A13: 4 | B13: DH04 91104:S&S CHK | C13: =SUMIF(DATABASE!$B$3:$B$73,'K-LUNCH & K DINNER'!B13,DATABASE!$C$3:$C$73) -> 3.45 | D13: =VLOOKUP(B13,Summary!$B$30:$AK$464,5,FALSE) -> 65 | E13: 224.25 | H13: CHICKEN CHOP (MARINATED) | I13: 0.66 | J13: 42.9
A14: 5 | B14: DH05 91105:BUTTER CHK | C14: =SUMIF(DATABASE!$B$3:$B$73,'K-LUNCH & K DINNER'!B14,DATABASE!$C$3:$C$73) -> 3.32 | D14: =VLOOKUP(B14,Summary!$B$30:$AK$464,5,FALSE) -> 217 | E14: 720.44 | H14: CHICKEN CHOP (MARINATED) | I14: 0.66 | J14: 143.22
A15: 6 | B15: DH06 91106:HK F.RICE | C15: =SUMIF(DATABASE!$B$3:$B$73,'K-LUNCH & K DINNER'!B15,DATABASE!$C$3:$C$73) -> 3.16 | D15: =VLOOKUP(B15,Summary!$B$30:$AK$464,5,FALSE) -> 154 | E15: 486.64 | J15: 0
A16: 7 | B16: DH07 91107:SBL F.RICE | C16: =SUMIF(DATABASE!$B$3:$B$73,'K-LUNCH & K DINNER'!B16,DATABASE!$C$3:$C$73) -> 2.41 | D16: =+Summary!F148 -> 33 | E16: 79.53 | J16: 0
A17: 8 | B17: DH08 91108:SBL F.MEE | C17: =SUMIF(DATABASE!$B$3:$B$73,'K-LUNCH & K DINNER'!B17,DATABASE!$C$3:$C$73) -> 2.8 | D17: =VLOOKUP(B17,Summary!$B$30:$AK$464,5,FALSE) -> 19 | E17: 53.2 | J17: 0
A18: 9 | B18: DH09 91109:BP UDON | C18: =SUMIF(DATABASE!$B$3:$B$73,'K-LUNCH & K DINNER'!B18,DATABASE!$C$3:$C$73) -> 2.08 | D18: =VLOOKUP(B18,Summary!$B$30:$AK$464,5,FALSE) -> 66 | E18: 137.28 | J18: 0
A19: 10 | B19: DH10 91110:NISSIN | C19: =SUMIF(DATABASE!$B$3:$B$73,'K-LUNCH & K DINNER'!B19,DATABASE!$C$3:$C$73) -> 2.32 | D19: =VLOOKUP(B19,Summary!$B$30:$AK$464,5,FALSE) -> 49 | E19: 113.68 | H19: CHICKEN SAUSAGE | I19: 1.5 | J19: 73.5
A20: 11 | B20: DH11 91111:VEG RICE | C20: =SUMIF(DATABASE!$B$3:$B$73,'K-LUNCH & K DINNER'!B20,DATABASE!$C$3:$C$73) -> 1.6 | D20: =VLOOKUP(B20,Summary!$B$30:$AK$464,5,FALSE) -> 25 | E20: 40 | J20: 0
A21: 12 | B21: DH12 91112:NASI LEMAK | C21: =SUMIF(DATABASE!$B$3:$B$73,'K-LUNCH & K DINNER'!B21,DATABASE!$C$3:$C$73) -> 3.56 | D21: =VLOOKUP(B21,Summary!$B$30:$AK$464,5,FALSE) -> 0 | E21: 0 | H21: CHICKEN WINGS (NON -MARINATED) | I21: 1 | J21: 0
A22: 13 | B22: DH13 91113:KUEY TEOW | C22: =SUMIF(DATABASE!$B$3:$B$73,'K-LUNCH & K DINNER'!B22,DATABASE!$C$3:$C$73) -> 3.16 | D22: =VLOOKUP(B22,Summary!$B$30:$AK$464,5,FALSE) -> 0 | E22: 0 | J22: 0
A23: 14 | B23: DH14 91114:F.BALL MEE | C23: =SUMIF(DATABASE!$B$3:$B$73,'K-LUNCH & K DINNER'!B23,DATABASE!$C$3:$C$73) -> 2.59 | D23: =VLOOKUP(B23,Summary!$B$30:$AK$464,5,FALSE) -> 0 | E23: 0 | H23: FISH BALL (SMALL) | I23: 5 | J23: 0
A24: 15 | B24: DH15 91115:CHK NOODLE | C24: =SUMIF(DATABASE!$B$3:$B$73,'K-LUNCH & K DINNER'!B24,DATABASE!$C$3:$C$73) -> 4.71 | D24: =VLOOKUP(B24,Summary!$B$30:$AK$464,5,FALSE) -> 57 | E24: 268.47 | H24: CHICKEN CHOP (MARINATED) | I24: 1 | J24: 57
A25: 16 | B25: DH16 91116:MGL CHK | C25: =SUMIF(DATABASE!$B$3:$B$73,'K-LUNCH & K DINNER'!B25,DATABASE!$C$3:$C$73) -> 3.54 | D25: =VLOOKUP(B25,Summary!$B$30:$AK$464,5,FALSE) -> 55 | E25: 194.7 | H25: CHICKEN CHOP (MARINATED) | I25: 0.66 | J25: =+I25*D25 -> 36.3
A26: =+A25+1 -> 17 | B26: DG01 91001:BP CHK CP | C26: =SUMIF(DATABASE!$B$3:$B$73,'K-LUNCH & K DINNER'!B26,DATABASE!$C$3:$C$73) -> 4.41 | D26: =VLOOKUP(B26,Summary!$B$30:$AK$464,5,FALSE) -> 510 | E26: =+D26*C26 -> 2249.1 | H26: CHICKEN CHOP (MARINATED) | I26: 1 | J26: 510
A27: =+A26+1 -> 18 | B27: DG02 91002:GVY CHK CP | C27: =SUMIF(DATABASE!$B$3:$B$73,'K-LUNCH & K DINNER'!B27,DATABASE!$C$3:$C$73) -> 4.43 | D27: =VLOOKUP(B27,Summary!$B$30:$AK$464,5,FALSE) -> 126 | E27: 558.18 | H27: CHICKEN CHOP (MARINATED) | I27: 1 | J27: 126
A28: 19 | B28: DG03 91003:MSR CHK CP | C28: =SUMIF(DATABASE!$B$3:$B$73,'K-LUNCH & K DINNER'!B28,DATABASE!$C$3:$C$73) -> 4.75 | D28: =VLOOKUP(B28,Summary!$B$30:$AK$464,5,FALSE) -> 535 | E28: 2541.25 | H28: CHICKEN CHOP (MARINATED) | I28: 1 | J28: 535
A29: 20 | B29: DG04 91004:CKN MARY | C29: =SUMIF(DATABASE!$B$3:$B$73,'K-LUNCH & K DINNER'!B29,DATABASE!$C$3:$C$73) -> 5.98 | D29: =VLOOKUP(B29,Summary!$B$30:$AK$464,5,FALSE) -> 290 | E29: 1734.2 | H29: CHICKEN CHOP (MARINATED) | I29: 1 | J29: 290
A30: 21 | B30: DG05 91005:FISH&CHIP | C30: =SUMIF(DATABASE!$B$3:$B$73,'K-LUNCH & K DINNER'!B30,DATABASE!$C$3:$C$73) -> 4.29 | D30: =VLOOKUP(B30,Summary!$B$30:$AK$464,5,FALSE) -> 295 | E30: 1265.55 | H30: DORY FISH FILLET | I30: 1 | J30: 295
A31: 22 | B31: DG06 91006:SPAGHETTI | C31: =SUMIF(DATABASE!$B$3:$B$73,'K-LUNCH & K DINNER'!B31,DATABASE!$C$3:$C$73) -> 2.1 | D31: =VLOOKUP(B31,Summary!$B$30:$AK$464,5,FALSE) -> 232 | E31: 487.2
A32: 23 | B32: DG07 91007:CHK SALAD | C32: =SUMIF(DATABASE!$B$3:$B$73,'K-LUNCH & K DINNER'!B32,DATABASE!$C$3:$C$73) -> 4.94 | D32: =VLOOKUP(B32,Summary!$B$30:$AK$464,5,FALSE) -> 87 | E32: 429.78 | H32: CHICKEN CHOP (MARINATED) | I32: 1 | J32: =+I32*D32 -> 87
A33: 24 | B33: DI01 91201:SFD STICK | C33: =SUMIF(DATABASE!$B$3:$B$73,'K-LUNCH & K DINNER'!B33,DATABASE!$C$3:$C$73) -> 2 | D33: =VLOOKUP(B33,Summary!$B$30:$AK$464,5,FALSE) -> 1 | E33: 2 | H33: SOTONG BALL | I33: 2 | J33: =+I33*$D$33 -> 2
H34: SALMON BALL | I34: 2 | J34: =+I34*$D$33 -> 2
H35: SEAFOOD TOFU | I35: 2 | J35: =+I35*$D$33 -> 2
A36: 25 | B36: DI02 91202:FREN FRIES | C36: =SUMIF(DATABASE!$B$3:$B$73,'K-LUNCH & K DINNER'!B36,DATABASE!$C$3:$C$73) -> 1.76 | D36: =VLOOKUP(B36,Summary!$B$30:$AK$464,5,FALSE) -> 30 | E36: 52.8 | J36: =+I36*D36 -> 0
A37: 26 | B37: DI03 91203:GOLD MROOM | C37: =SUMIF(DATABASE!$B$3:$B$73,'K-LUNCH & K DINNER'!B37,DATABASE!$C$3:$C$73) -> 2.15 | D37: =VLOOKUP(B37,Summary!$B$30:$AK$464,5,FALSE) -> 8 | E37: 17.2 | J37: 0
A38: 27 | B38: DI04 91204:FISHBALL | C38: =SUMIF(DATABASE!$B$3:$B$73,'K-LUNCH & K DINNER'!B38,DATABASE!$C$3:$C$73) -> 1.56 | D38: =VLOOKUP(B38,Summary!$B$30:$AK$464,5,FALSE) -> 7 | E38: 10.92 | H38: FISH BALL (BIG) | I38: 6 | J38: 42
A39: 28 | B39: DI05 91205:RAINBOW RL | C39: =SUMIF(DATABASE!$B$3:$B$73,'K-LUNCH & K DINNER'!B39,DATABASE!$C$3:$C$73) -> 2.5 | D39: =VLOOKUP(B39,Summary!$B$30:$AK$464,5,FALSE) -> 0 | E39: 0 | H39: RAINBOW ROLL | I39: 1 | J39: 0
A40: 29 | B40: DI06 91206:SPRING RL | C40: =SUMIF(DATABASE!$B$3:$B$73,'K-LUNCH & K DINNER'!B40,DATABASE!$C$3:$C$73) -> 2.67 | D40: =VLOOKUP(B40,Summary!$B$30:$AK$464,5,FALSE) -> 6 | E40: 16.02 | H40: SPRING ROLL | I40: 8 | J40: 48
A41: 30 | B41: DI07 91207:SAUSAGE | C41: =SUMIF(DATABASE!$B$3:$B$73,'K-LUNCH & K DINNER'!B41,DATABASE!$C$3:$C$73) -> 1.24 | D41: =VLOOKUP(B41,Summary!$B$30:$AK$464,5,FALSE) -> 22 | E41: 27.28 | H41: CHICKEN SAUSAGE | I41: 4 | J41: 88
A42: 31 | B42: DI08 91208:HOTDOG BUN | C42: =SUMIF(DATABASE!$B$3:$B$73,'K-LUNCH & K DINNER'!B42,DATABASE!$C$3:$C$73) -> 0 | D42: =VLOOKUP(B42,Summary!$B$30:$AK$464,5,FALSE) -> 0 | E42: 0 | H42: HOTDOG | J42: 0
A43: 32 | B43: DI09 91209:SFD TOFU | C43: =SUMIF(DATABASE!$B$3:$B$73,'K-LUNCH & K DINNER'!B43,DATABASE!$C$3:$C$73) -> 0 | D43: =VLOOKUP(B43,Summary!$B$30:$AK$464,5,FALSE) -> 0 | E43: 0 | H43: SEAFOOD TOFU | J43: 0
A44: 24 | B44: DI10 91301:DUMPLING | C44: =SUMIF(DATABASE!$B$3:$B$73,'K-LUNCH & K DINNER'!B44,DATABASE!$C$3:$C$73) -> 4.5 | D44: =VLOOKUP(B44,Summary!$B$30:$AK$464,5,FALSE) -> 0 | E44: 0 | H44: DUMPLING | I44: 6 | J44: 0
A45: 25 | B45: DI11 91302:NUGGET | C45: =SUMIF(DATABASE!$B$3:$B$73,'K-LUNCH & K DINNER'!B45,DATABASE!$C$3:$C$73) -> 2.43 | D45: =VLOOKUP(B45,Summary!$B$30:$AK$464,5,FALSE) -> 43 | E45: 104.49 | H45: CHICKEN NUGGET | I45: 8 | J45: 344
A46: 26 | B46: DI12 91303:CHK WING | C46: =SUMIF(DATABASE!$B$3:$B$73,'K-LUNCH & K DINNER'!B46,DATABASE!$C$3:$C$73) -> 3.97 | D46: =VLOOKUP(B46,Summary!$B$30:$AK$464,5,FALSE) -> 57 | E46: 226.29 | H46: CHICKEN WING (MARINATED) | I46: 3 | J46: 171
A47: 27 | B47: DI13 91304:IKAN BILIS | C47: =SUMIF(DATABASE!$B$3:$B$73,'K-LUNCH & K DINNER'!B47,DATABASE!$C$3:$C$73) -> 2.18 | D47: =VLOOKUP(B47,Summary!$B$30:$AK$464,5,FALSE) -> 6 | E47: 13.08 | J47: 0
A48: 28 | B48: DI14 91305:THAI RL | C48: =SUMIF(DATABASE!$B$3:$B$73,'K-LUNCH & K DINNER'!B48,DATABASE!$C$3:$C$73) -> 3.61 | D48: =VLOOKUP(B48,Summary!$B$30:$AK$464,5,FALSE) -> 6 | E48: 21.66 | H48: THAI ROLL | I48: 7 | J48: 42
A49: 29 | B49: DI15 91306:SLVR FISH | C49: =SUMIF(DATABASE!$B$3:$B$73,'K-LUNCH & K DINNER'!B49,DATABASE!$C$3:$C$73) -> 0 | D49: =VLOOKUP(B49,Summary!$B$30:$AK$464,5,FALSE) -> 0 | E49: 0 | J49: 0
A50: 30 | B50: DI16 91307:D/F C.WING | C50: =SUMIF(DATABASE!$B$3:$B$73,'K-LUNCH & K DINNER'!B50,DATABASE!$C$3:$C$73) -> 4.31 | D50: =VLOOKUP(B50,Summary!$B$30:$AK$464,5,FALSE) -> 28 | E50: 120.68 | H50: CHICKEN WING (MARINATED) | I50: 3 | J50: 84
A51: 31 | B51: DI17 91308:C/CALAMARI | C51: =SUMIF(DATABASE!$B$3:$B$73,'K-LUNCH & K DINNER'!B51,DATABASE!$C$3:$C$73) -> 3.69 | D51: =VLOOKUP(B51,Summary!$B$30:$AK$464,5,FALSE) -> 17 | E51: 62.73 | H51: CALAMARI RING | I51: 7 | J51: 119
A52: 32 | B52: DI18 91309:Mc O.RINGS | C52: =SUMIF(DATABASE!$B$3:$B$73,'K-LUNCH & K DINNER'!B52,DATABASE!$C$3:$C$73) -> 1.72 | D52: =VLOOKUP(B52,Summary!$B$30:$AK$464,5,FALSE) -> 8 | E52: 13.76 | H52: MCCAIN ONION RING | I52: 8 | J52: =+I52*D52 -> 64
A53: 33 | B53: DI19 91310:McSPIRAL.F | C53: =SUMIF(DATABASE!$B$3:$B$73,'K-LUNCH & K DINNER'!B53,DATABASE!$C$3:$C$73) -> 1.72 | D53: =VLOOKUP(B53,Summary!$B$30:$AK$464,5,FALSE) -> 18 | E53: 30.96 | H53: MCCAIN SPIRAL FRIES | I53: 0.22 | J53: 3.96
A54: 34 | B54: DI20 91311Mc H/SMILES | C54: =SUMIF(DATABASE!$B$3:$B$73,'K-LUNCH & K DINNER'!B54,DATABASE!$C$3:$C$73) -> 1.34 | D54: =VLOOKUP(B54,Summary!$B$30:$AK$464,5,FALSE) -> 5 | E54: 6.7 | H54: MCCAIN SMILES | I54: 8 | J54: 40
A55: 35 | B55: DI21 91312:Mc HASH.B | C55: =SUMIF(DATABASE!$B$3:$B$73,'K-LUNCH & K DINNER'!B55,DATABASE!$C$3:$C$73) -> 0.59 | D55: =VLOOKUP(B55,Summary!$B$30:$AK$464,5,FALSE) -> 11 | E55: 6.49 | H55: MCCAIN VERSITOT | I55: 15 | J55: 165
A56: Total Sales / COST | D56: =SUM(D10:D55) -> 3345 | E56: =SUM(E10:E55) -> 13119.92
I59: =SUBTOTAL(9,J19:J41) -> 2193.8
I60: =SUBTOTAL(9,J46:J50) -> 297

Sheet LOK LOK
A1: MONTHLY SALES FOOD RECORD ( LOK LOK BAR COUNTER )
A3: =+'K-LUNCH & K DINNER'!A3 -> Outlet : | B3: =+'K-LUNCH & K DINNER'!B3 -> CCS OUTLET
A4: =+'K-LUNCH & K DINNER'!A4 -> Month : | B4: =+'K-LUNCH & K DINNER'!B4 -> 2013-08-01
A6: CCS LOK LOK BAR SALES
D7: (A) | G7: (B) | I7: (A) - (B)
D8: SIDE ORDER (INCLUDING FOC) | G8: FOC | I8: SIDE ORDER (NETT SALES) | L8: SIDE ORDER (NETT COST) | N8: FOC (COST) | Q8: USAGE
A9: NO | B9: MENU ITEM | C9: S/P | D9: Sales | E9: TOTAL | G9: Sales | H9: TOTAL | I9: Sales | J9: TOTAL | L9: COST | M9: TOTAL | N9: COST | O9: TOTAL | Q9: MATERIAL | R9: RECIPE | S9: TOTAL
C10: RM | D10: Q | E10: RM | G10: Q | H10: RM | I10: Q | J10: RM | L10: RM | M10: RM | N10: RM | O10: RM | Q10: Q | R10: Q | S10: Q
B11: MAIN COURSE
A12: 1
A13: =+A12+1 -> 2 | B13: JK002 LLB G.S C. CHOP | C13: 12.9 | D13: =VLOOKUP(B13,Summary!$B$30:$AK$464,5,FALSE) -> 1 | E13: =D13*C13 -> 12.9 | G13: =+'DAILY FOC'!BO115 -> 0 | H13: =G13*C13 -> 0 | I13: =+D13-G13 -> 1 | J13: =+I13*C13 -> 12.9 | L13: 4.43 | M13: =+L13*I13 -> 4.43 | N13: =+L13 -> 4.43 | O13: =+N13*G13 -> 0 | Q13: CHICKEN CHOP (MARINATED) | R13: 1 | S13: =+R13*D13 -> 1
A14: 3 | B14: JK003 LLB MSR CHK CHOP | C14: 12.9 | D14: =VLOOKUP(B14,Summary!$B$30:$AK$464,5,FALSE) -> 1 | E14: =D14*C14 -> 12.9 | G14: =+'DAILY FOC'!BO116 -> 0 | H14: =G14*C14 -> 0 | I14: =+D14-G14 -> 1 | J14: =+I14*C14 -> 12.9 | L14: 4.75 | M14: =+L14*I14 -> 4.75 | N14: =+L14 -> 4.75 | O14: =+N14*G14 -> 0 | Q14: CHICKEN CHOP (MARINATED) | R14: 1 | S14: =+R14*D14 -> 1
A15: 4
A16: 5
A17: 6
A18: 7
A19: 8 | B19: JK101 LLB Thai Chk Ric | C19: 9.9 | D19: =VLOOKUP(B19,Summary!$B$30:$AK$464,5,FALSE) -> 1 | E19: =D19*C19 -> 9.9 | G19: =+'DAILY FOC'!BO117 -> 0 | H19: =G19*C19 -> 0 | I19: =+D19-G19 -> 1 | J19: =+I19*C19 -> 9.9 | L19: 3.29 | M19: =+L19*I19 -> 3.29 | N19: =+L19 -> 3.29 | O19: =+N19*G19 -> 0 | Q19: CHICKEN CHOP (MARINATED) | R19: 0.66 | S19: =+R19*D19 -> 0.66
A20: 9 | B20: JK102 Marmite Chk Rice | C20: 9.9 | D20: =VLOOKUP(B20,Summary!$B$30:$AK$464,5,FALSE) -> 3 | E20: =D20*C20 -> 29.7 | G20: =+'DAILY FOC'!BO118 -> 0 | H20: =G20*C20 -> 0 | I20: =+D20-G20 -> 3 | J20: =+I20*C20 -> 29.7 | L20: 3.02 | M20: =+L20*I20 -> 9.06 | N20: 3.02 | O20: =+N20*G20 -> 0 | Q20: CHICKEN CHOP (MARINATED) | R20: 0.66 | S20: =+R20*D20 -> 1.98
A21: 10 | B21: JK104 S&S Chk Rice | C21: 9.9 | D21: =VLOOKUP(B21,Summary!$B$30:$AK$464,5,FALSE) -> 2 | E21: =D21*C21 -> 19.8 | G21: =+'DAILY FOC'!BO119 -> 0 | H21: =G21*C21 -> 0 | I21: 0 | J21: =+I21*C21 -> 0 | L21: 3.45 | M21: =+L21*I21 -> 0 | N21: 3.45 | O21: =+N21*G21 -> 0 | Q21: CHICKEN CHOP (MARINATED) | R21: 0.66 | S21: =+R21*D21 -> 1.32
A22: 11 | B22: JK105 B.Cream.Chk Rice | C22: 9.9 | D22: =VLOOKUP(B22,Summary!$B$30:$AK$464,5,FALSE) -> 1 | E22: =D22*C22 -> 9.9 | G22: =+'DAILY FOC'!BO120 -> 0 | H22: =G22*C22 -> 0 | I22: =+D22-G22 -> 1 | J22: =+I22*C22 -> 9.9 | L22: 3.32 | M22: =+L22*I22 -> 3.32 | N22: 3.32 | O22: =+N22*G22 -> 0 | Q22: CHICKEN CHOP (MARINATED) | R22: 0.66 | S22: =+R22*D22 -> 0.66
A23: 12 | B23: JK106 H.K Fried Rice | C23: 9.9 | D23: =VLOOKUP(B23,Summary!$B$30:$AK$464,5,FALSE) -> 2 | E23: =D23*C23 -> 19.8 | G23: =+'DAILY FOC'!BO121 -> 0 | H23: =G23*C23 -> 0 | I23: =+D23-G23 -> 2 | J23: =+I23*C23 -> 19.8 | L23: 3.16 | M23: =+L23*I23 -> 6.32 | N23: 3.16 | O23: =+N23*G23 -> 0
A24: 13 | N24: 0
A25: 14 | N25: 0
A26: 15 | B26: JK109 LLB BP Udon Mee | C26: 9.9 | D26: =VLOOKUP(B26,Summary!$B$30:$AK$464,5,FALSE) -> 1 | E26: =D26*C26 -> 9.9 | G26: =+'DAILY FOC'!BO122 -> 0 | H26: =G26*C26 -> 0 | I26: =+D26-G26 -> 1 | J26: =+I26*C26 -> 9.9 | L26: 2.08 | M26: =+L26*I26 -> 2.08 | N26: 2.08 | O26: =+N26*G26 -> 0
A27: 16 | B27: JK111 LLB S.M.Ver Rice | C27: 9.9 | D27: =VLOOKUP(B27,Summary!$B$30:$AK$464,5,FALSE) -> 1 | E27: =D27*C27 -> 9.9 | G27: =+'DAILY FOC'!BO123 -> 0 | H27: =G27*C27 -> 0 | I27: =+D27-G27 -> 1 | J27: =+I27*C27 -> 9.9 | L27: 1.6 | M27: =+L27*I27 -> 1.6 | N27: 1.6 | O27: =+N27*G27 -> 0
A28: 17
A29: 18 | B29: JK116 LLB Mon.Chk Rice | C29: 9.9 | D29: =VLOOKUP(B29,Summary!$B$30:$AK$464,5,FALSE) -> 1 | E29: =D29*C29 -> 9.9 | G29: =+'DAILY FOC'!BO125 -> 0 | H29: =G29*C29 -> 0 | I29: =+D29-G29 -> 1 | J29: =+I29*C29 -> 9.9 | L29: 3.54 | M29: =+L29*I29 -> 3.54 | N29: =+L29 -> 3.54 | O29: =+N29*G29 -> 0 | Q29: CHICKEN CHOP (MARINATED) | R29: 0.66 | S29: =+R29*D29 -> 0.66
B31: PIZZA
A32: 1 | B32: JL001 6" HAWAIIAN | D32: =VLOOKUP(B32,Summary!$B$30:$AK$464,5,FALSE) -> 0 | E32: =D32*C32 -> 0 | G32: =+'DAILY FOC'!BO128 -> 0 | H32: =G32*C32 -> 0 | I32: =+D32-G32 -> 0 | J32: =+I32*C32 -> 0 | L32: 3.54 | M32: =+L32*I32 -> 0 | N32: =+L32 -> 3.54 | O32: =+N32*G32 -> 0 | Q32: 6" PIZZA BASE | R32: 1 | S32: =+R32*D32 -> 0
A33: =+A32+1 -> 2
A34: 3
A35: 4
A36: 5
A37: 6
A38: 7
A39: =+A38+1 -> 8
A40: 9
A41: 10
B43: LOK LOK
A44: 1 | B44: JM101 C.Chicken Sausag | C44: 1.5 | D44: =VLOOKUP(B44,Summary!$B$30:$AK$464,5,FALSE) -> 3 | E44: =D44*C44 -> 4.5 | G44: =+'DAILY FOC'!BO9 -> 0 | H44: =G44*C44 -> 0 | I44: =+D44-G44 -> 3 | J44: =+I44*C44 -> 4.5 | L44: 0.39 | M44: =+L44*I44 -> 1.17 | N44: =+L44 -> 0.39 | O44: =+N44*G44 -> 0 | Q44: CHICKEN SAUSAGE | R44: 3
A45: =+A44+1 -> 2 | B45: JM102 Beef Ball | C45: 2 | D45: =VLOOKUP(B45,Summary!$B$30:$AK$464,5,FALSE) -> 2 | E45: =D45*C45 -> 4 | G45: =+'DAILY FOC'!BO10 -> 0 | H45: 0 | I45: 2 | J45: 4 | L45: 0.65 | M45: =+L45*I45 -> 1.3 | N45: =+L45 -> 0.65 | O45: 0 | Q45: BEEF BALL | R45: 3
A46: =+A45+1 -> 3 | B46: JM103 Chicken Kidney | C46: 2.5 | D46: =VLOOKUP(B46,Summary!$B$30:$AK$464,5,FALSE) -> 3 | E46: 7.5 | G46: =+'DAILY FOC'!BO11 -> 0 | H46: 0 | I46: 3 | J46: 7.5 | L46: 1 | M46: 3 | N46: =+L46 -> 1 | O46: 0 | Q46: CHICKEN KIDNEY | R46: 3 | S46: =+R46*D46 -> 9
A47: 4 | B47: JM104 Chicken Liver | C47: 2.5 | D47: =VLOOKUP(B47,Summary!$B$30:$AK$464,5,FALSE) -> 3 | E47: 7.5 | G47: =+'DAILY FOC'!BO12 -> 0 | H47: 0 | I47: 3 | J47: 7.5 | L47: 1 | M47: 3 | N47: =+L47 -> 1 | O47: 0 | Q47: CHICKEN LIVER | R47: 3 | S47: =+R47*D47 -> 9
A48: 5 | B48: JM105 Cheese C.Sausage | C48: 2.5 | D48: =VLOOKUP(B48,Summary!$B$30:$AK$464,5,FALSE) -> 8 | E48: 20 | G48: =+'DAILY FOC'!BO13 -> 0 | H48: 0 | I48: 0 | J48: 0 | L48: 0.8 | M48: 0 | N48: 0.8 | O48: 0 | Q48: CHESS C.SAUSAGE | R48: 1 | S48: 8
A49: 6 | B49: JM106 B.P C.Sausage | C49: 2.5 | D49: =VLOOKUP(B49,Summary!$B$30:$AK$464,5,FALSE) -> 5 | E49: 12.5 | G49: =+'DAILY FOC'!BO14 -> 0 | H49: 0 | I49: 5 | J49: 12.5 | L49: 0.8 | M49: 4 | N49: 0.8 | O49: 0 | R49: 1 | S49: 5
A50: 7 | B50: JM107 S.Fill beef Ball | C50: 3 | D50: =VLOOKUP(B50,Summary!$B$30:$AK$464,5,FALSE) -> 2 | E50: 6 | G50: =+'DAILY FOC'!BO15 -> 0 | H50: 0 | I50: 2 | J50: 6 | L50: 1.05 | M50: 2.1 | N50: 1.05 | O50: 0 | Q50: BEEF BALL | R50: 3 | S50: 6
A51: 8 | B51: JM108 Pandan Chicken | C51: 4 | D51: =VLOOKUP(B51,Summary!$B$30:$AK$464,5,FALSE) -> 5 | E51: 20 | G51: =+'DAILY FOC'!BO16 -> 0 | H51: 0 | I51: 5 | J51: 20 | L51: 1.64 | M51: 8.2 | N51: 1.64 | O51: 0 | Q51: PANDAN CHICKEN | R51: 2 | S51: 10
A52: 9 | B52: JM109 S. Duck Breast | C52: 4 | D52: =VLOOKUP(B52,Summary!$B$30:$AK$464,5,FALSE) -> 7 | E52: 28 | G52: =+'DAILY FOC'!BO17 -> 1 | H52: 4 | I52: 6 | J52: 24 | L52: 2.13 | M52: 12.78 | N52: 2.13 | O52: 2.13 | Q52: DUCK BREAST | R52: 2 | S52: 14
A53: 10 | B53: JM110 Grill.B.Chk.Wing | C53: 4 | D53: =VLOOKUP(B53,Summary!$B$30:$AK$464,5,FALSE) -> 2 | E53: 8 | G53: =+'DAILY FOC'!BO18 -> 0 | H53: 0 | I53: 0 | J53: 0 | L53: 2.8 | M53: 0 | N53: 2.8 | O53: 0 | R53: 1 | S53: =+R53*D53 -> 2
A54: 11 | B54: JN211 Pork Meatball s | C54: 2 | D54: =VLOOKUP(B54,Summary!$B$30:$AK$464,5,FALSE) -> 10 | E54: 20 | G54: =+'DAILY FOC'!BO19 -> 0 | H54: 0 | I54: 0 | J54: 0 | L54: 0.55 | M54: 0 | N54: 0.55 | O54: 0 | Q54: PORK MEATBALL | R54: 5 | S54: =+R54*D54 -> 50
A55: 12 | B55: JN212 Wu Xiang Roll s | C55: 2 | D55: =VLOOKUP(B55,Summary!$B$30:$AK$464,5,FALSE) -> 4 | E55: 8 | G55: =+'DAILY FOC'!BO20 -> 0 | H55: 0 | I55: 4 | J55: 8 | L55: 0.54 | M55: 2.16 | N55: 0.54 | O55: 0 | Q55: RAINBOW ROLL | R55: 2 | S55: 8
A56: 13 | B56: JN213 P. Sauage Slices | C56: 2.5 | D56: =VLOOKUP(B56,Summary!$B$30:$AK$464,5,FALSE) -> 3 | E56: 7.5 | G56: =+'DAILY FOC'!BO21 -> 0 | H56: 0 | I56: 0 | J56: 0 | L56: 0.96 | M56: 0 | N56: 0.96 | O56: 0 | R56: 3 | S56: 9
A57: 14 | B57: JN214 Pork Dumplings | C57: 2.5 | D57: =VLOOKUP(B57,Summary!$B$30:$AK$464,5,FALSE) -> 6 | E57: 15 | G57: =+'DAILY FOC'!BO22 -> 0 | H57: 0 | I57: 0 | J57: 0 | L57: 1.2 | M57: 0 | N57: 1.2 | O57: 0 | Q57: PORK DUMPLINGS | R57: 3 | S57: 18
A58: 15 | B58: JN215 Pork Meatball B | C58: 2.5 | D58: =VLOOKUP(B58,Summary!$B$30:$AK$464,5,FALSE) -> 7 | E58: 17.5 | G58: =+'DAILY FOC'!BO23 -> 0 | H58: 0 | I58: 7 | J58: 17.5 | L58: 0.78 | M58: 5.46 | N58: 0.78 | O58: 0 | Q58: PORK MEATBALL | R58: 3 | S58: 21
A59: 16 | B59: JN216 Pork Liver | C59: 3 | D59: =VLOOKUP(B59,Summary!$B$30:$AK$464,5,FALSE) -> 3 | E59: 9 | G59: =+'DAILY FOC'!BO24 -> 0 | H59: 0 | I59: 3 | J59: 9 | L59: 1.2 | M59: 3.6 | N59: 1.2 | O59: 0 | Q59: PORK LIVER | R59: 3 | S59: 9
A60: 17 | B60: JN217 Taiwan Sausage | C60: 3 | D60: =VLOOKUP(B60,Summary!$B$30:$AK$464,5,FALSE) -> 23 | E60: 69 | G60: =+'DAILY FOC'!BO25 -> 0 | H60: 0 | I60: 23 | J60: 69 | L60: 1.02 | M60: 23.46 | N60: 1.02 | O60: 0 | Q60: TAIWAN SAUSAGE | R60: 3 | S60: 69
A61: 18 | B61: JN218 Bacon | C61: 3 | D61: =VLOOKUP(B61,Summary!$B$30:$AK$464,5,FALSE) -> 4 | E61: 12 | G61: =+'DAILY FOC'!BO26 -> 0 | H61: 0 | I61: 4 | J61: 12 | L61: 0.95 | M61: 3.8 | N61: 0.95 | O61: 0 | Q61: BACON | R61: 1 | S61: 4
A62: 19 | B62: JN219 Pork Rinds | C62: 4 | D62: =VLOOKUP(B62,Summary!$B$30:$AK$464,5,FALSE) -> 1 | E62: 4 | G62: =+'DAILY FOC'!BO27 -> 1 | H62: 4 | I62: 0 | J62: 0 | L62: 1.5 | M62: 0 | N62: 1.5 | O62: 1.5 | Q62: PORK RINDS | R62: 2 | S62: 2
A63: 20 | B63: JN220 Sauce Filll Ball | C63: 4 | D63: =VLOOKUP(B63,Summary!$B$30:$AK$464,5,FALSE) -> 4 | E63: 16 | G63: =+'DAILY FOC'!BO28 -> 0 | H63: 0 | I63: 4 | J63: 16 | L63: 1.5 | M63: 6 | N63: 1.5 | O63: 0 | R63: 3 | S63: 12
A64: 21 | B64: JN221 Roasted Pork | C64: 4 | D64: =VLOOKUP(B64,Summary!$B$30:$AK$464,5,FALSE) -> 11 | E64: 44 | G64: =+'DAILY FOC'!BO29 -> 3 | H64: 12 | I64: 8 | J64: 32 | L64: 1.5 | M64: 12 | N64: 1.5 | O64: 4.5 | Q64: ROASTED PORK | R64: 3 | S64: 33
A65: 22 | B65: JN222 Enoki Bacon Roll | C65: 4 | D65: =VLOOKUP(B65,Summary!$B$30:$AK$464,5,FALSE) -> 7 | E65: 28 | G65: =+'DAILY FOC'!BO30 -> 4 | H65: 16 | I65: 3 | J65: 12 | L65: 1.5 | M65: 4.5 | N65: 1.5 | O65: 6 | Q65: ENOKI BACON | R65: 3 | S65: 21
A66: 23 | B66: JO323 Fish Wanton | C66: 1.5 | D66: =VLOOKUP(B66,Summary!$B$30:$AK$464,5,FALSE) -> 1 | E66: 1.5 | G66: =+'DAILY FOC'!BO31 -> 1 | H66: 1.5 | I66: 0 | J66: 0 | L66: 0.45 | M66: 0 | N66: 0.45 | O66: 0.45 | Q66: FISH WANTON | R66: 3 | S66: 3
A67: 24 | B67: JO324 M. Fried F. Cake | C67: 1.5 | D67: =VLOOKUP(B67,Summary!$B$30:$AK$464,5,FALSE) -> 4 | E67: 6 | G67: =+'DAILY FOC'!BO32 -> 2 | H67: 3 | I67: 2 | J67: 3 | L67: 0.6 | M67: 1.2 | N67: 0.6 | O67: 1.2 | R67: 3 | S67: 12
A68: 25 | B68: JO325 Spicy Fish Cake | C68: 1.5 | D68: =VLOOKUP(B68,Summary!$B$30:$AK$464,5,FALSE) -> 1 | E68: 1.5 | G68: =+'DAILY FOC'!BO33 -> 0 | H68: 0 | I68: 1 | J68: 1.5 | L68: 0.48 | M68: 0.48 | N68: 0.48 | O68: 0 | R68: 1.5 | S68: 1.5
A69: 26 | B69: JO326 Fresh Clam | C69: 1.5 | D69: =VLOOKUP(B69,Summary!$B$30:$AK$464,5,FALSE) -> 20 | E69: =D69*C69 -> 30 | G69: =+'DAILY FOC'!BO34 -> 0 | H69: 0 | I69: 0 | J69: =+I69*C69 -> 0 | L69: 1.5 | M69: 0 | N69: =+L69 -> 1.5 | O69: 0 | R69: 7 | S69: 140
A70: 27 | B70: JO327 Wu Xiang F.Ball | C70: 2 | L70: 0.75 | R70: 3 | S70: 0
A71: 28 | B71: JO328 Xi Dao Fish Ball | C71: 2 | L71: 0.65 | Q71: FISH BALL | R71: 5 | S71: 0
A72: 29 | B72: JO329 Fish Ball (S) | C72: 2 | D72: =VLOOKUP(B72,Summary!$B$30:$AK$464,5,FALSE) -> 5 | E72: =D72*C72 -> 10 | G72: =+'DAILY FOC'!BO35 -> 0 | H72: =G72*C72 -> 0 | I72: =+D72-G72 -> 5 | J72: =+I72*C72 -> 10 | L72: 0.65 | M72: 3.25 | N72: =+L72 -> 0.65 | O72: 0 | Q72: FISH BALL (S ) | R72: 5 | S72: 25
A73: 30 | B73: JO330 Tofu Fish Ball | C73: 2 | D73: =VLOOKUP(B73,Summary!$B$30:$AK$464,5,FALSE) -> 4 | E73: 8 | G73: =+'DAILY FOC'!BO36 -> 0 | H73: 0 | I73: 4 | J73: =+I73*C73 -> 8 | L73: 0.6 | M73: 2.4 | N73: 0.6 | O73: 0 | Q73: TOFU FISH BALL | R73: 3 | S73: 12
A74: 31 | B74: JO331 Prawn Ball | C74: 2 | D74: =VLOOKUP(B74,Summary!$B$30:$AK$464,5,FALSE) -> 2 | E74: 4 | G74: =+'DAILY FOC'!BO37 -> 0 | H74: 0 | I74: 2 | J74: 4 | L74: 0.39 | M74: 0.78 | N74: 0.39 | O74: 0 | Q74: PRAWN BALL | R74: 3 | S74: 6
A75: 32 | B75: JO332 Abalone Slices | C75: 2 | D75: =VLOOKUP(B75,Summary!$B$30:$AK$464,5,FALSE) -> 4 | E75: 8 | G75: =+'DAILY FOC'!BO38 -> 0 | H75: 0 | I75: 0 | J75: 0 | L75: 0.72 | M75: 0 | N75: 0.72 | O75: 0 | Q75: ABALONE SLICES | R75: 3 | S75: 12
A76: 33 | B76: JO333 Prawn C. sausage | C76: 2 | D76: =VLOOKUP(B76,Summary!$B$30:$AK$464,5,FALSE) -> 1 | E76: 2 | G76: =+'DAILY FOC'!BO39 -> 0 | H76: =G76*C76 -> 0 | I76: 1 | J76: =+I76*C76 -> 2 | L76: 0.57 | M76: 0.57 | N76: 0.57 | O76: 0 | Q76: PRAWN. C.SAUSAGE | R76: 3 | S76: 3
A77: 34 | B77: JO334 FISH BALL BIG | C77: 2.5 | D77: =VLOOKUP(B77,Summary!$B$30:$AK$464,5,FALSE) -> 2 | E77: 5 | G77: =+'DAILY FOC'!BO40 -> 0 | H77: 0 | I77: 2 | J77: 5 | L77: 1 | M77: 2 | N77: 1 | O77: 0 | Q77: FISH BALL (B) | R77: 3 | S77: 6
A78: 35 | B78: JO335 Tempura Prawn | C78: 2.5 | D78: =VLOOKUP(B78,Summary!$B$30:$AK$464,5,FALSE) -> 3 | E78: 7.5 | G78: =+'DAILY FOC'!BO41 -> 0 | H78: 0 | I78: 0 | J78: 0 | L78: 0.9 | M78: 0 | N78: 0.9 | O78: 0 | Q78: TEMPURA PRAWN | R78: 1 | S78: 3
A79: 36 | B79: JO336 Breaded CarbClaw | C79: 2.5 | D79: =VLOOKUP(B79,Summary!$B$30:$AK$464,5,FALSE) -> 4 | E79: 10 | G79: =+'DAILY FOC'!BO42 -> 0 | H79: 0 | I79: 4 | J79: 10 | L79: 0.9 | M79: 3.6 | N79: 0.9 | O79: 0 | R79: 3 | S79: 12
A80: 37 | C80: 2.5 | L80: 0.73 | R80: 3 | S80: 0
A81: 38 | B81: JO338 Otak Fish Paste | C81: 2.5 | D81: =VLOOKUP(B81,Summary!$B$30:$AK$464,5,FALSE) -> 8 | E81: 20 | G81: =+'DAILY FOC'!BO43 -> 1 | H81: 2.5 | I81: 7 | J81: 17.5 | L81: 0.67 | M81: 4.69 | N81: 0.67 | O81: 0.67 | R81: 3 | S81: 24 | T81: 105
A82: 39 | B82: JO339 Salmon Ball | C82: 2.5 | D82: =VLOOKUP(B82,Summary!$B$30:$AK$464,5,FALSE) -> 1 | E82: 2.5 | G82: =+'DAILY FOC'!BO44 -> 1 | H82: 2.5 | I82: 0 | J82: 0 | L82: 0.9 | M82: 0 | N82: 0.9 | O82: 0.9 | Q82: SALMON BALL | R82: 3 | S82: 3
A83: 40 | C83: 3 | L83: 1.29 | R83: 3 | S83: 0
A84: 41 | B84: JO341 Scallop Ball | C84: 3 | D84: =VLOOKUP(B84,Summary!$B$30:$AK$464,5,FALSE) -> 4 | E84: 12 | G84: =+'DAILY FOC'!BO45 -> 1 | H84: 3 | I84: 3 | J84: 9 | L84: 1.02 | M84: 3.06 | N84: 1.02 | O84: 1.02 | Q84: SCALLOP BALL | R84: 3 | S84: 12
A85: 42 | B85: JO342 Taiwan C.F. Ball | C85: 3 | D85: =VLOOKUP(B85,Summary!$B$30:$AK$464,5,FALSE) -> 1 | E85: 3 | G85: =+'DAILY FOC'!BO46 -> 0 | H85: 0 | I85: 1 | J85: 3 | L85: 1.17 | M85: 1.17 | N85: 1.17 | O85: 0 | Q85: TAIWAN C.F. BALL | R85: 3 | S85: 3
A86: 43 | B86: JO343 Cuttlefish Roll | C86: 3 | D86: =VLOOKUP(B86,Summary!$B$30:$AK$464,5,FALSE) -> 2 | E86: 6 | G86: =+'DAILY FOC'!BO47 -> 0 | H86: 0 | I86: 2 | J86: 6 | L86: 1.06 | M86: 2.12 | N86: 1.06 | O86: 0 | R86: 3 | S86: 6 | T86: 48
A87: 44 | B87: JO344 M.Seafood Ball | C87: 3 | D87: =VLOOKUP(B87,Summary!$B$30:$AK$464,5,FALSE) -> 1 | E87: =D87*C87 -> 3 | G87: =+'DAILY FOC'!BO48 -> 0 | H87: 0 | I87: 1 | J87: 3 | L87: 1.02 | M87: 1.02 | N87: 1.02 | O87: 0 | Q87: SEAFOOD BALL | R87: 3 | S87: 3
A88: 45 | B88: JO345 Cuttlefish | C88: 3 | D88: =VLOOKUP(B88,Summary!$B$30:$AK$464,5,FALSE) -> 12 | E88: 36 | G88: =+'DAILY FOC'!BO49 -> 0 | H88: 0 | I88: 12 | J88: 36 | L88: 1.5 | M88: 18 | N88: 1.5 | O88: 0 | R88: 3 | S88: 36
A89: 46 | B89: JO346 Shisamo | C89: 4 | D89: =VLOOKUP(B89,Summary!$B$30:$AK$464,5,FALSE) -> 9 | E89: 36 | G89: =+'DAILY FOC'!BO50 -> 0 | H89: 0 | I89: 9 | J89: 36 | L89: 1.5 | M89: 13.5 | N89: 1.5 | O89: 0 | R89: 1 | S89: 9
A90: 47 | B90: JO347 Tiger Prawn | C90: 4 | D90: =VLOOKUP(B90,Summary!$B$30:$AK$464,5,FALSE) -> 6 | E90: 24 | G90: =+'DAILY FOC'!BO51 -> 0 | H90: 0 | I90: 6 | J90: 24 | L90: 1.5 | M90: 9 | N90: 1.5 | O90: 0 | Q90: TIGER PRAWN | R90: 3 | S90: 18
A91: 48 | B91: JP448 Botton Mushroom | C91: 1.5 | D91: =VLOOKUP(B91,Summary!$B$30:$AK$464,5,FALSE) -> 5 | E91: =D91*C91 -> 7.5 | G91: =+'DAILY FOC'!BO52 -> 0 | H91: =G91*C91 -> 0 | I91: =+D91-G91 -> 5 | J91: =+I91*C91 -> 7.5 | L91: 0.6 | M91: =+L91*I91 -> 3 | N91: =+L91 -> 0.6 | O91: =+N91*G91 -> 0 | R91: 3 | S91: 15
A92: 49 | B92: JP449 Kang Kong | C92: 1.5 | D92: =VLOOKUP(B92,Summary!$B$30:$AK$464,5,FALSE) -> 10 | E92: 15 | G92: =+'DAILY FOC'!BO53 -> 0 | H92: 0 | I92: 10 | J92: 15 | L92: 0.4 | M92: 4 | N92: 0.4 | O92: 0 | R92: 3 | S92: 30
A93: 50 | B93: JP450 Broccali | C93: 1.5 | D93: =VLOOKUP(B93,Summary!$B$30:$AK$464,5,FALSE) -> 16 | E93: 24 | G93: =+'DAILY FOC'!BO54 -> 0 | H93: 0 | I93: 16 | J93: 24 | L93: 0.5 | M93: 8 | N93: 0.5 | O93: 0 | R93: 3 | S93: 48
A94: 51 | B94: JP451 Long Bean | C94: 1.5 | D94: =VLOOKUP(B94,Summary!$B$30:$AK$464,5,FALSE) -> 5 | E94: 7.5 | G94: =+'DAILY FOC'!BO55 -> 0 | H94: 0 | I94: 5 | J94: 7.5 | L94: 0.3 | M94: 1.5 | N94: 0.3 | O94: 0 | R94: 1 | S94: 5
A95: 52 | B95: JP452 Fried A.Mushroom | C95: 2 | D95: =VLOOKUP(B95,Summary!$B$30:$AK$464,5,FALSE) -> 11 | E95: 22 | G95: =+'DAILY FOC'!BO56 -> 0 | H95: 0 | I95: 11 | J95: 22 | L95: 0.4 | M95: 4.4 | N95: 0.4 | O95: 0 | R95: 3 | S95: 33
A96: 53 | B96: JP453 Shiitake Mushrom | C96: 2 | D96: =VLOOKUP(B96,Summary!$B$30:$AK$464,5,FALSE) -> 6 | E96: 12 | G96: =+'DAILY FOC'!BO57 -> 0 | H96: 0 | I96: 6 | J96: 12 | L96: 0.7 | M96: 4.2 | N96: 0.7 | O96: 0 | R96: 3 | S96: 18
A97: 54 | B97: JQ554 M.Fish Eggplant | C97: 1.5 | D97: =VLOOKUP(B97,Summary!$B$30:$AK$464,5,FALSE) -> 3 | E97: 4.5 | G97: =+'DAILY FOC'!BO58 -> 0 | H97: 0 | I97: 3 | J97: 4.5 | L97: 0.52 | M97: 1.56 | N97: 0.52 | O97: 0 | R97: 1 | S97: 3
A98: 55 | B98: JQ555 M.Fish Chilli | C98: 1.5 | D98: =VLOOKUP(B98,Summary!$B$30:$AK$464,5,FALSE) -> 2 | E98: 3 | G98: =+'DAILY FOC'!BO59 -> 0 | H98: 0 | I98: 2 | J98: 3 | L98: 0.52 | M98: 1.04 | N98: 0.52 | O98: 0 | R98: 1 | S98: 2
A99: 56 | B99: JQ556 M.Fish Lady's F | C99: 1.5 | D99: =VLOOKUP(B99,Summary!$B$30:$AK$464,5,FALSE) -> 2 | E99: 3 | G99: =+'DAILY FOC'!BO60 -> 0 | H99: 0 | I99: 2 | J99: 3 | L99: 0.52 | M99: 1.04 | N99: 0.52 | O99: 0 | R99: 1 | S99: 2
A100: 57 | B100: JQ557 Chrisy Beabcurd | C100: 1.5 | D100: =VLOOKUP(B100,Summary!$B$30:$AK$464,5,FALSE) -> 11 | E100: 16.5 | G100: =+'DAILY FOC'!BO61 -> 0 | H100: 0 | I100: 11 | J100: 16.5 | L100: 0.33 | M100: 3.63 | N100: 0.33 | O100: 0 | R100: 3 | S100: 33
A101: 58 | B101: JQ558 Quail Eggs | C101: 1.5 | D101: =VLOOKUP(B101,Summary!$B$30:$AK$464,5,FALSE) -> 13 | E101: 19.5 | G101: =+'DAILY FOC'!BO62 -> 0 | H101: 0 | I101: 13 | J101: 19.5 | L101: 0.56 | M101: 7.28 | N101: 0.56 | O101: 0 | Q101: QUAIL EGGS | R101: 4 | S101: 52
A102: 59 | B102: JQ559 Fried Wanton | C102: 2 | D102: =VLOOKUP(B102,Summary!$B$30:$AK$464,5,FALSE) -> 8 | E102: 16 | G102: =+'DAILY FOC'!BO63 -> 0 | H102: 0 | I102: 8 | J102: 16 | L102: 0.9 | M102: 7.2 | N102: 0.9 | O102: 0 | Q102: FRIED WANTON | R102: 3 | S102: 24
A103: 60 | B103: JQ560 L.G.Potato Samos | C103: 2 | D103: =VLOOKUP(B103,Summary!$B$30:$AK$464,5,FALSE) -> 2 | E103: 4 | G103: =+'DAILY FOC'!BO64 -> 0 | H103: 0 | I103: 2 | J103: 4 | L103: 0.7 | M103: 1.4 | N103: 0.7 | O103: 0 | R103: 2 | S103: 4
A104: 61 | B104: JQ561 F.Vege Ball | C104: 2 | D104: =VLOOKUP(B104,Summary!$B$30:$AK$464,5,FALSE) -> 1 | E104: 2 | G104: =+'DAILY FOC'!BO65 -> 0 | H104: 0 | I104: 1 | J104: 2 | L104: 0.75 | M104: 0.75 | N104: 0.75 | O104: 0 | Q104: VEGE BALL | R104: 3 | S104: 3
A105: 62 | C105: 2.5 | L105: 1.02 | M105: 0 | N105: 1.02 | O105: 0 | R105: 3 | S105: 0
A106: 63 | B106: JQ563 Seafood Tofu | C106: 2.5 | D106: =VLOOKUP(B106,Summary!$B$30:$AK$464,5,FALSE) -> 3 | E106: 7.5 | G106: =+'DAILY FOC'!BO67 -> 0 | H106: 0 | I106: 3 | J106: 7.5 | L106: 0.87 | M106: 2.61 | N106: 0.87 | O106: 0 | Q106: SEAFOOD TOFU | R106: 3 | S106: 9
A107: 64 | B107: JQ564 Spring Roll | C107: 2.5 | D107: =VLOOKUP(B107,Summary!$B$30:$AK$464,5,FALSE) -> 1 | E107: 2.5 | G107: =+'DAILY FOC'!BO68 -> 0 | H107: 0 | I107: 1 | J107: 2.5 | L107: 1 | M107: 1 | N107: 1 | O107: 0 | Q107: SPRING ROLL | R107: 2 | S107: 2
A108: 65 | B108: JQ565 Quail Century Eg | C108: 2.5 | D108: =VLOOKUP(B108,Summary!$B$30:$AK$464,5,FALSE) -> 3 | E108: 7.5 | G108: =+'DAILY FOC'!BO69 -> 0 | H108: 0 | I108: 3 | J108: 7.5 | L108: 0.81 | M108: 2.43 | N108: 0.81 | O108: 0 | Q108: QUAIL CENTURY EGG | R108: 3 | S108: 9
A109: 66 | B109: JQ566 Thai Roll | C109: 3 | D109: =VLOOKUP(B109,Summary!$B$30:$AK$464,5,FALSE) -> 4 | E109: 12 | G109: =+'DAILY FOC'!BO70 -> 0 | H109: 0 | I109: 4 | J109: 12 | L109: 1.2 | M109: 4.8 | N109: 1.2 | O109: 0 | Q109: THAI ROLL | R109: 2 | S109: 8
A110: =+A109+1 -> 67 | B110: JQ567 Cheese S.Tofu | C110: 3 | D110: =VLOOKUP(B110,Summary!$B$30:$AK$464,5,FALSE) -> 2 | E110: 6 | G110: =+'DAILY FOC'!BO71 -> 0 | H110: 0 | I110: 2 | J110: 6 | L110: 1.02 | M110: 2.04 | N110: 1.02 | O110: 0 | Q110: CHEESE. TOFU | R110: 3 | S110: 6
A111: 68 | B111: JQ568 Rice Skin Roll | C111: 3 | D111: =VLOOKUP(B111,Summary!$B$30:$AK$464,5,FALSE) -> 13 | E111: 39 | G111: =+'DAILY FOC'!BO72 -> 0 | H111: 0 | I111: 13 | J111: 39 | L111: 1.2 | M111: 15.6 | N111: 1.2 | O111: 0 | Q111: RICE SKIN ROLL | R111: 2 | S111: 26
A116: Total Sales / COST | D116: =SUM(D11:D115) -> 353 | E116: =SUM(E11:E115) -> 979.6 | G116: =SUM(G26:G114) -> 15 | H116: =SUM(H11:H115) -> 48.5 | I116: =SUM(I26:I115) -> 271 | J116: =SUM(J11:J112) -> 795.3 | M116: =SUM(M11:M115) -> 279.24 | O116: =SUM(O26:O115) -> 18.37

Sheet SIDE ORDER & FOC
A1: MONTHLY SALES FOOD RECORD ( SIDE ORDER & FOC )
A3: =+'K-LUNCH & K DINNER'!A3 -> Outlet : | B3: =+'K-LUNCH & K DINNER'!B3 -> CCS OUTLET
A4: =+'K-LUNCH & K DINNER'!A4 -> Month : | B4: =+'K-LUNCH & K DINNER'!B4 -> 2013-08-01
A6: LOCAL DELIGHTS / WESTERN CRUISE / APPETIZER
D7: (A) | G7: (B) | I7: (A) - (B)
D8: SIDE ORDER (INCLUDING FOC) | G8: FOC | I8: SIDE ORDER (NETT SALES) | L8: SIDE ORDER (NETT COST) | N8: FOC (COST) | Q8: USAGE
A9: NO | B9: MENU ITEM | C9: S/P | D9: Sales | E9: TOTAL | G9: Sales | H9: TOTAL | I9: Sales | J9: TOTAL | L9: COST | M9: TOTAL | N9: COST | O9: TOTAL | Q9: MATERIAL | R9: RECIPE | S9: TOTAL
C10: RM | D10: Q | E10: RM | G10: Q | H10: RM | I10: Q | J10: RM | L10: RM | M10: RM | N10: RM | O10: RM | Q10: Q | R10: Q | S10: Q
A11: 1 | B11: DF01 ADD RICE | C11: 1 | D11: =VLOOKUP(B11,Summary!$B$30:$AK$464,5,FALSE) -> 17 | E11: =D11*C11 -> 17 | G11: =+'DAILY FOC'!BO9 -> 0 | H11: =G11*C11 -> 0 | I11: =+D11-G11 -> 17 | J11: =+I11*C11 -> 17 | L11: =SUMIF(DATABASE!$F$3:$F$89,B11,DATABASE!$I$3:$I$81) -> 0.5 | M11: =+L11*I11 -> 8.5 | N11: =+L11 -> 0.5 | O11: =+N11*G11 -> 0
A12: =+A11+1 -> 2 | B12: DF02 ADD F.EGG | C12: 1.5 | D12: =VLOOKUP(B12,Summary!$B$30:$AK$464,5,FALSE) -> 5 | E12: 7.5 | G12: =+'DAILY FOC'!BO10 -> 0 | H12: 0 | I12: =+D12-G12 -> 5 | J12: 7.5 | L12: =SUMIF(DATABASE!$F$3:$F$89,B12,DATABASE!$I$3:$I$81) -> 0.34 | M12: 1.7 | N12: 0.34 | O12: 0
A13: 3 | B13: DC01 1101:THAI CHK | C13: 9.9 | D13: =VLOOKUP(B13,Summary!$B$30:$AK$464,5,FALSE) -> 53 | E13: 524.7 | G13: =+'DAILY FOC'!BO11 -> 0 | H13: 0 | I13: =+D13-G13 -> 53 | J13: 524.7 | L13: =SUMIF(DATABASE!$F$3:$F$89,B13,DATABASE!$I$3:$I$81) -> 3.29 | M13: 174.37 | N13: 3.29 | O13: 0 | Q13: CHICKEN CHOP (MARINATED) | R13: 0.66 | S13: =+R13*D13 -> 34.98
A14: 4 | B14: DC02 1102:MAMITE CHK | C14: 9.9 | D14: =VLOOKUP(B14,Summary!$B$30:$AK$464,5,FALSE) -> 70 | E14: 693 | G14: =+'DAILY FOC'!BO12 -> 0 | H14: 0 | I14: =+D14-G14 -> 70 | J14: 693 | L14: =SUMIF(DATABASE!$F$3:$F$89,B14,DATABASE!$I$3:$I$81) -> 3.02 | M14: 211.4 | N14: 3.02 | O14: 0 | Q14: CHICKEN CHOP (MARINATED) | R14: 0.66 | S14: =+R14*D14 -> 46.2
A15: 5 | B15: DC03 1103:KO PO CHK | C15: 9.9 | D15: =VLOOKUP(B15,Summary!$B$30:$AK$464,5,FALSE) -> 0 | E15: 0 | G15: =+'DAILY FOC'!BO13 -> 0 | H15: 0 | I15: 0 | J15: 0 | L15: =SUMIF(DATABASE!$F$3:$F$89,B15,DATABASE!$I$3:$I$81) -> 3.45 | M15: 0 | N15: 3.45 | O15: 0 | Q15: CHICKEN CHOP (MARINATED) | R15: 0.66 | S15: =+R15*D15 -> 0
A16: 6 | B16: DC04 1104:S&S CHK | C16: 9.9 | D16: =VLOOKUP(B16,Summary!$B$30:$AK$464,5,FALSE) -> 21 | E16: 207.9 | G16: =+'DAILY FOC'!BO14 -> 0 | H16: 0 | I16: =+D16-G16 -> 21 | J16: 207.9 | L16: =SUMIF(DATABASE!$F$3:$F$89,B16,DATABASE!$I$3:$I$81) -> 3.45 | M16: 72.45 | N16: 3.45 | O16: 0 | Q16: CHICKEN CHOP (MARINATED) | R16: 0.66 | S16: =+R16*D16 -> 13.86
A17: 7 | B17: DC05 1105:BUTTER CHK | C17: 9.9 | D17: =VLOOKUP(B17,Summary!$B$30:$AK$464,5,FALSE) -> 105 | E17: 1039.5 | G17: =+'DAILY FOC'!BO15 -> 0 | H17: 0 | I17: =+D17-G17 -> 105 | J17: 1039.5 | L17: =SUMIF(DATABASE!$F$3:$F$89,B17,DATABASE!$I$3:$I$81) -> 3.32 | M17: 348.6 | N17: 3.32 | O17: 0 | Q17: CHICKEN CHOP (MARINATED) | R17: 0.66 | S17: =+R17*D17 -> 69.3
A18: 8 | B18: DC06 1106:HK F.RICE | C18: 9.9 | D18: =VLOOKUP(B18,Summary!$B$30:$AK$464,5,FALSE) -> 60 | E18: 594 | G18: =+'DAILY FOC'!BO16 -> 0 | H18: 0 | I18: =+D18-G18 -> 60 | J18: 594 | L18: =SUMIF(DATABASE!$F$3:$F$89,B18,DATABASE!$I$3:$I$81) -> 3.16 | M18: 189.6 | N18: 3.16 | O18: 0
A19: 9 | B19: DC07 1107:SBL F.RICE | C19: 9.9 | D19: =VLOOKUP(B19,Summary!$B$30:$AK$464,5,FALSE) -> 38 | E19: 376.2 | G19: =+'DAILY FOC'!BO17 -> 1 | H19: 9.9 | I19: =+D19-G19 -> 37 | J19: 366.3 | L19: =SUMIF(DATABASE!$F$3:$F$89,B19,DATABASE!$I$3:$I$81) -> 2.41 | M19: 89.17 | N19: 2.41 | O19: 2.41
A20: 10 | B20: DC08 1108:SBL F.MEE | C20: 9.9 | D20: =VLOOKUP(B20,Summary!$B$30:$AK$464,5,FALSE) -> 8 | E20: 79.2 | G20: =+'DAILY FOC'!BO18 -> 0 | H20: 0 | I20: 0 | J20: 0 | L20: =SUMIF(DATABASE!$F$3:$F$89,B20,DATABASE!$I$3:$I$81) -> 2.8 | M20: 0 | N20: 2.8 | O20: 0
A21: 11 | B21: DC09 1109:BP UDON | C21: 9.9 | D21: =VLOOKUP(B21,Summary!$B$30:$AK$464,5,FALSE) -> 27 | E21: 267.3 | G21: =+'DAILY FOC'!BO19 -> 0 | H21: 0 | I21: 0 | J21: 0 | L21: =SUMIF(DATABASE!$F$3:$F$89,B21,DATABASE!$I$3:$I$81) -> 2.08 | M21: 0 | N21: 2.08 | O21: 0
A22: 12 | B22: DC10 1110:NISSIN | C22: 9.9 | D22: =VLOOKUP(B22,Summary!$B$30:$AK$464,5,FALSE) -> 33 | E22: 326.7 | G22: =+'DAILY FOC'!BO20 -> 0 | H22: 0 | I22: =+D22-G22 -> 33 | J22: 326.7 | L22: =SUMIF(DATABASE!$F$3:$F$89,B22,DATABASE!$I$3:$I$81) -> 2.32 | M22: 76.56 | N22: 2.32 | O22: 0 | Q22: CHICKEN SAUSAGE | R22: 1.5 | S22: =+R22*D22 -> 49.5
A23: 13 | B23: DC11 1111:VEG RICE | C23: 9.9 | D23: =VLOOKUP(B23,Summary!$B$30:$AK$464,5,FALSE) -> 5 | E23: 49.5 | G23: =+'DAILY FOC'!BO21 -> 0 | H23: 0 | I23: 0 | J23: 0 | L23: =SUMIF(DATABASE!$F$3:$F$89,B23,DATABASE!$I$3:$I$81) -> 1.6 | M23: 0 | N23: 1.6 | O23: 0
A24: 14 | B24: DC12 1112:NASI LEMAK | C24: 9.9 | D24: =VLOOKUP(B24,Summary!$B$30:$AK$464,5,FALSE) -> 0 | E24: 0 | G24: =+'DAILY FOC'!BO22 -> 0 | H24: 0 | I24: 0 | J24: 0 | L24: =SUMIF(DATABASE!$F$3:$F$89,B24,DATABASE!$I$3:$I$81) -> 3.56 | M24: 0 | N24: 3.56 | O24: 0 | Q24: CHICKEN WINGS (NON -MARINATED) | R24: 1 | S24: =+R24*D24 -> 0
A25: 15 | B25: DC13 1113:KUEY TEOW | C25: 9.9 | D25: =VLOOKUP(B25,Summary!$B$30:$AK$464,5,FALSE) -> 0 | E25: 0 | G25: =+'DAILY FOC'!BO23 -> 0 | H25: 0 | I25: =+D25-G25 -> 0 | J25: 0 | L25: =SUMIF(DATABASE!$F$3:$F$89,B25,DATABASE!$I$3:$I$81) -> 3.16 | M25: 0 | N25: 3.16 | O25: 0
A26: 16 | B26: DC14 1114:F.BALL MEE | C26: 9.9 | D26: =VLOOKUP(B26,Summary!$B$30:$AK$464,5,FALSE) -> 0 | E26: 0 | G26: =+'DAILY FOC'!BO24 -> 0 | H26: 0 | I26: 0 | J26: 0 | L26: =SUMIF(DATABASE!$F$3:$F$89,B26,DATABASE!$I$3:$I$81) -> 2.59 | M26: 0 | N26: 2.59 | O26: 0 | Q26: FISH BALL (SMALL) | R26: 5 | S26: =+R26*D26 -> 0
A27: 17 | B27: DC15 1115:CHK NOODLE | C27: 9.9 | D27: =VLOOKUP(B27,Summary!$B$30:$AK$464,5,FALSE) -> 22 | E27: 217.8 | G27: =+'DAILY FOC'!BO25 -> 0 | H27: 0 | I27: 22 | J27: 217.8 | L27: =SUMIF(DATABASE!$F$3:$F$89,B27,DATABASE!$I$3:$I$81) -> 4.71 | M27: 103.62 | N27: 4.71 | O27: 0 | Q27: CHICKEN CHOP (MARINATED) | R27: 1 | S27: 22
A28: 18 | B28: DC16 1116:MGL CHICKEN | C28: 9.9 | D28: =VLOOKUP(B28,Summary!$B$30:$AK$464,5,FALSE) -> 27 | E28: 267.3 | G28: =+'DAILY FOC'!BO26 -> 0 | H28: 0 | I28: 27 | J28: 267.3 | L28: =SUMIF(DATABASE!$F$3:$F$89,B28,DATABASE!$I$3:$I$81) -> 3.54 | M28: 95.58 | N28: 3.54 | O28: 0 | Q28: CHICKEN CHOP (MARINATED) | R28: 0.66 | S28: 17.82
A29: 19 | B29: DB01 1001:BP CKN CP | C29: 12.9 | D29: =VLOOKUP(B29,Summary!$B$30:$AK$464,5,FALSE) -> 99 | E29: 1277.1 | G29: =+'DAILY FOC'!BO27 -> 1 | H29: 12.9 | I29: 98 | J29: 1264.2 | L29: =SUMIF(DATABASE!$F$3:$F$89,B29,DATABASE!$I$3:$I$81) -> 4.41 | M29: 432.18 | N29: 4.41 | O29: 4.41 | Q29: CHICKEN CHOP (MARINATED) | R29: 1 | S29: 99
A30: 20 | B30: DB02 1002:GVY CHK CP | C30: 12.9 | D30: =VLOOKUP(B30,Summary!$B$30:$AK$464,5,FALSE) -> 24 | E30: 309.6 | G30: =+'DAILY FOC'!BO28 -> 0 | H30: 0 | I30: 24 | J30: 309.6 | L30: =SUMIF(DATABASE!$F$3:$F$89,B30,DATABASE!$I$3:$I$81) -> 4.43 | M30: 106.32 | N30: 4.43 | O30: 0 | Q30: CHICKEN CHOP (MARINATED) | R30: 1 | S30: 24
A31: 21 | B31: DB03 1003:MSR CKN CP | C31: 12.9 | D31: =VLOOKUP(B31,Summary!$B$30:$AK$464,5,FALSE) -> 96 | E31: 1238.4 | G31: =+'DAILY FOC'!BO29 -> 3 | H31: 38.7 | I31: 93 | J31: 1199.7 | L31: =SUMIF(DATABASE!$F$3:$F$89,B31,DATABASE!$I$3:$I$81) -> 4.75 | M31: 441.75 | N31: 4.75 | O31: 14.25 | Q31: CHICKEN CHOP (MARINATED) | R31: 1 | S31: 96
A32: 22 | B32: DB04 1004:CKN MARY | C32: 12.9 | D32: =VLOOKUP(B32,Summary!$B$30:$AK$464,5,FALSE) -> 41 | E32: 528.9 | G32: =+'DAILY FOC'!BO30 -> 4 | H32: 51.6 | I32: 37 | J32: 477.3 | L32: =SUMIF(DATABASE!$F$3:$F$89,B32,DATABASE!$I$3:$I$81) -> 5.98 | M32: 221.26 | N32: 5.98 | O32: 23.92 | Q32: CHICKEN CHOP (MARINATED) | R32: 1 | S32: 41
A33: 23 | B33: DB05 1005:FISH&CHIP | C33: 12.9 | D33: =VLOOKUP(B33,Summary!$B$30:$AK$464,5,FALSE) -> 38 | E33: 490.2 | G33: =+'DAILY FOC'!BO31 -> 1 | H33: 12.9 | I33: 37 | J33: 477.3 | L33: =SUMIF(DATABASE!$F$3:$F$89,B33,DATABASE!$I$3:$I$81) -> 4.29 | M33: 158.73 | N33: 4.29 | O33: 4.29 | Q33: DORY FISH FILLET | R33: 1 | S33: 38
A34: 24 | B34: DB06 1006:SPAGHETTI | C34: 12.9 | D34: =VLOOKUP(B34,Summary!$B$30:$AK$464,5,FALSE) -> 57 | E34: 735.3 | G34: =+'DAILY FOC'!BO32 -> 2 | H34: 25.8 | I34: 55 | J34: 709.5 | L34: =SUMIF(DATABASE!$F$3:$F$89,B34,DATABASE!$I$3:$I$81) -> 2.1 | M34: 115.5 | N34: 2.1 | O34: 4.2
A35: 25 | B35: DB07 1007:CHK SALAD | C35: 12.9 | D35: =VLOOKUP(B35,Summary!$B$30:$AK$464,5,FALSE) -> 23 | E35: 296.7 | G35: =+'DAILY FOC'!BO33 -> 0 | H35: 0 | I35: 23 | J35: 296.7 | L35: =SUMIF(DATABASE!$F$3:$F$89,B35,DATABASE!$I$3:$I$81) -> 4.94 | M35: 113.62 | N35: 4.94 | O35: 0 | Q35: CHICKEN CHOP (MARINATED) | R35: 1 | S35: =+R35*D35 -> 23
A36: 26 | B36: DD01 1201:SFD STICK | C36: 5.9 | D36: =VLOOKUP(B36,Summary!$B$30:$AK$464,5,FALSE) -> 5 | E36: 29.5 | G36: =+'DAILY FOC'!BO34 -> 0 | H36: 0 | I36: 0 | J36: 0 | L36: =SUMIF(DATABASE!$F$3:$F$89,B36,DATABASE!$I$3:$I$81) -> 2 | M36: 0 | N36: 2 | O36: 0 | Q36: SOTONG BALL | R36: 2 | S36: =+R36*$D$36 -> 10
Q37: SALMON BALL | R37: 2 | S37: =+R37*$D$36 -> 10
Q38: SEAFOOD TOFU | R38: 2 | S38: =+R38*$D$36 -> 10
A39: =+A36+1 -> 27 | B39: DD02 1202:FREN FRIES | C39: 5.9 | D39: =VLOOKUP(B39,Summary!$B$30:$AK$464,5,FALSE) -> 98 | E39: =D39*C39 -> 578.2 | G39: =+'DAILY FOC'!BO35 -> 0 | H39: =G39*C39 -> 0 | I39: =+D39-G39 -> 98 | J39: =+I39*C39 -> 578.2 | L39: =SUMIF(DATABASE!$F$3:$F$89,B39,DATABASE!$I$3:$I$81) -> 1.76 | M39: =+L39*I39 -> 172.48 | N39: =+L39 -> 1.76 | O39: =+N39*G39 -> 0
A40: =+A39+1 -> 28 | B40: DD03 1203:GOLD MROOM | C40: 5.9 | D40: =VLOOKUP(B40,Summary!$B$30:$AK$464,5,FALSE) -> 9 | E40: 53.1 | G40: =+'DAILY FOC'!BO36 -> 0 | H40: 0 | I40: =+D40-G40 -> 9 | J40: 53.1 | L40: =SUMIF(DATABASE!$F$3:$F$89,B40,DATABASE!$I$3:$I$81) -> 2.15 | M40: 19.35 | N40: 2.15 | O40: 0
A41: 29 | B41: DD04 1204:FISHBALL | C41: 5.9 | D41: =VLOOKUP(B41,Summary!$B$30:$AK$464,5,FALSE) -> 10 | E41: 59 | G41: =+'DAILY FOC'!BO37 -> 0 | H41: 0 | I41: =+D41-G41 -> 10 | J41: 59 | L41: =SUMIF(DATABASE!$F$3:$F$89,B41,DATABASE!$I$3:$I$81) -> 1.56 | M41: 15.6 | N41: 1.56 | O41: 0 | Q41: FISH BALL (BIG) | R41: 6 | S41: =+R41*D41 -> 60
A42: 30 | B42: DD05 1205:RAINBOW RL | C42: 5.9 | D42: =VLOOKUP(B42,Summary!$B$30:$AK$464,5,FALSE) -> 0 | E42: 0 | G42: =+'DAILY FOC'!BO38 -> 0 | H42: 0 | I42: 0 | J42: 0 | L42: =SUMIF(DATABASE!$F$3:$F$89,B42,DATABASE!$I$3:$I$81) -> 2.5 | M42: 0 | N42: 2.5 | O42: 0 | Q42: RAINBOW ROLL | R42: 1 | S42: 0
A43: 31 | B43: DD06 1206:SPRING RL | C43: 5.9 | D43: =VLOOKUP(B43,Summary!$B$30:$AK$464,5,FALSE) -> 8 | E43: 47.2 | G43: =+'DAILY FOC'!BO39 -> 0 | H43: 0 | I43: =+D43-G43 -> 8 | J43: 47.2 | L43: =SUMIF(DATABASE!$F$3:$F$89,B43,DATABASE!$I$3:$I$81) -> 2.67 | M43: 21.36 | N43: 2.67 | O43: 0 | Q43: SPRING ROLL | R43: 8 | S43: 64
A44: 32 | B44: DD07 1207:SAUSAGE | C44: 5.9 | D44: =VLOOKUP(B44,Summary!$B$30:$AK$464,5,FALSE) -> 17 | E44: 100.3 | G44: =+'DAILY FOC'!BO40 -> 0 | H44: 0 | I44: =+D44-G44 -> 17 | J44: 100.3 | L44: =SUMIF(DATABASE!$F$3:$F$89,B44,DATABASE!$I$3:$I$81) -> 1.24 | M44: 21.08 | N44: 1.24 | O44: 0 | Q44: CHICKEN SAUSAGE | R44: 4 | S44: 68
A45: 33 | B45: DD10 1301:DUMPLING | C45: 5.9 | D45: =VLOOKUP(B45,Summary!$B$30:$AK$464,5,FALSE) -> 0 | E45: 0 | G45: =+'DAILY FOC'!BO41 -> 0 | H45: 0 | I45: 0 | J45: 0 | L45: =SUMIF(DATABASE!$F$3:$F$89,B45,DATABASE!$I$3:$I$81) -> 4.5 | M45: 0 | N45: 4.5 | O45: 0 | Q45: DUMPLING | R45: 6 | S45: 0
A46: 34 | B46: DD11 1302:NUGGET | C46: 7.9 | D46: =VLOOKUP(B46,Summary!$B$30:$AK$464,5,FALSE) -> 35 | E46: 276.5 | G46: =+'DAILY FOC'!BO42 -> 0 | H46: 0 | I46: =+D46-G46 -> 35 | J46: 276.5 | L46: =SUMIF(DATABASE!$F$3:$F$89,B46,DATABASE!$I$3:$I$81) -> 2.43 | M46: 85.05 | N46: 2.43 | O46: 0 | Q46: CHICKEN NUGGET | R46: 8 | S46: 280
A47: 35 | B47: DD12 1303:CHK WING | C47: 7.9 | D47: =VLOOKUP(B47,Summary!$B$30:$AK$464,5,FALSE) -> 24 | E47: 189.6 | G47: =+'DAILY FOC'!BO43 -> 1 | H47: 7.9 | I47: 23 | J47: 181.7 | L47: =SUMIF(DATABASE!$F$3:$F$89,B47,DATABASE!$I$3:$I$81) -> 3.97 | M47: 91.31 | N47: 3.97 | O47: 3.97 | Q47: CHICKEN WING (MARINATED) | R47: 3 | S47: 72 | T47: 105
A48: 36 | B48: DD13 1304:IKAN BILIS | C48: 7.9 | D48: =VLOOKUP(B48,Summary!$B$30:$AK$464,5,FALSE) -> 8 | E48: 63.2 | G48: =+'DAILY FOC'!BO44 -> 1 | H48: 7.9 | I48: 7 | J48: 55.3 | L48: =SUMIF(DATABASE!$F$3:$F$89,B48,DATABASE!$I$3:$I$81) -> 2.18 | M48: 15.26 | N48: 2.18 | O48: 2.18 | S48: 0
A49: 37 | B49: DD14 1305:THAI RL | C49: 7.9 | D49: =VLOOKUP(B49,Summary!$B$30:$AK$464,5,FALSE) -> 5 | E49: 39.5 | G49: =+'DAILY FOC'!BO45 -> 1 | H49: 7.9 | I49: 4 | J49: 31.6 | L49: =SUMIF(DATABASE!$F$3:$F$89,B49,DATABASE!$I$3:$I$81) -> 3.61 | M49: 14.44 | N49: 3.61 | O49: 3.61 | Q49: THAI ROLL | R49: 7 | S49: 35
A50: 38 | B50: DD15 1306:SLVR FISH | C50: 7.9 | D50: =VLOOKUP(B50,Summary!$B$30:$AK$464,5,FALSE) -> 0 | E50: 0 | G50: =+'DAILY FOC'!BO46 -> 0 | H50: 0 | I50: 0 | J50: 0 | L50: =SUMIF(DATABASE!$F$3:$F$89,B50,DATABASE!$I$3:$I$81) -> 0 | M50: 0 | N50: 0 | O50: 0 | S50: 0
A51: 39 | B51: DD16 1307:D.F C/WING | C51: 7.9 | D51: =VLOOKUP(B51,Summary!$B$30:$AK$464,5,FALSE) -> 18 | E51: 142.2 | G51: =+'DAILY FOC'!BO47 -> 0 | H51: 0 | I51: 18 | J51: 142.2 | L51: =SUMIF(DATABASE!$F$3:$F$89,B51,DATABASE!$I$3:$I$81) -> 4.31 | M51: 77.58 | N51: 4.31 | O51: 0 | Q51: CHICKEN WING (MARINATED) | R51: 3 | S51: 54 | T51: 48
A52: 40 | B52: DD17 1308 C/CALAMARI | C52: 7.9 | D52: =VLOOKUP(B52,Summary!$B$30:$AK$464,5,FALSE) -> 6 | E52: 47.4 | G52: =+'DAILY FOC'!BO48 -> 0 | H52: 0 | I52: 6 | J52: 47.4 | L52: =SUMIF(DATABASE!$F$3:$F$89,B52,DATABASE!$I$3:$I$81) -> 3.69 | M52: 22.14 | N52: 3.69 | O52: 0 | Q52: CALAMARI RING | R52: 7 | S52: 42
A53: 41 | B53: DD18 1309 Mc C/O.RING | C53: 7.9 | D53: =VLOOKUP(B53,Summary!$B$30:$AK$464,5,FALSE) -> 6 | E53: 47.4 | G53: =+'DAILY FOC'!BO49 -> 0 | H53: 0 | I53: 6 | J53: 47.4 | L53: =SUMIF(DATABASE!$F$3:$F$89,B53,DATABASE!$I$3:$I$81) -> 1.72 | M53: 10.32 | N53: 1.72 | O53: 0 | Q53: MCCAIN ONION RING | R53: 8 | S53: 48
A54: 42 | B54: DD19 1310:Mc SPIRAL/F | C54: 7.9 | D54: =VLOOKUP(B54,Summary!$B$30:$AK$464,5,FALSE) -> 9 | E54: 71.1 | G54: =+'DAILY FOC'!BO50 -> 0 | H54: 0 | I54: 9 | J54: 71.1 | L54: =SUMIF(DATABASE!$F$3:$F$89,B54,DATABASE!$I$3:$I$81) -> 1.72 | M54: 15.48 | N54: 1.72 | O54: 0 | Q54: MCCAIN SPIRAL FRIES | R54: 0.22 | S54: 1.98
A55: 43 | B55: DD20 1311:Mc H/SMILES | C55: 7.9 | D55: =VLOOKUP(B55,Summary!$B$30:$AK$464,5,FALSE) -> 4 | E55: 31.6 | G55: =+'DAILY FOC'!BO51 -> 0 | H55: 0 | I55: 4 | J55: 31.6 | L55: =SUMIF(DATABASE!$F$3:$F$89,B55,DATABASE!$I$3:$I$81) -> 1.34 | M55: 5.36 | N55: 1.34 | O55: 0 | Q55: MCCAIN SMILES | R55: 8 | S55: 32
A56: 44 | B56: DD21 1312:Mc HASH BRW | C56: 7.9 | D56: =VLOOKUP(B56,Summary!$B$30:$AK$464,5,FALSE) -> 11 | E56: 86.9 | G56: =+'DAILY FOC'!BO52 -> 0 | H56: 0 | I56: 11 | J56: 86.9 | L56: =SUMIF(DATABASE!$F$3:$F$89,B56,DATABASE!$I$3:$I$81) -> 0.59 | M56: 6.49 | N56: 0.59 | O56: 0 | Q56: MCCAIN VERSITOT | R56: 15 | S56: 165
B58: COMBO SET
A59: 1 | B59: ZAB01 1201:SFD STICK | C59: 4.95 | D59: =VLOOKUP(B59,Summary!$B$30:$AK$464,5,FALSE) -> 22 | E59: =D59*C59 -> 108.9 | I59: =+D59-G59 -> 22 | J59: =+I59*C59 -> 108.9 | L59: =SUMIF(DATABASE!$F$3:$F$89,B59,DATABASE!$I$3:$I$81) -> 2 | M59: =+L59*I59 -> 44 | N59: =+L59 -> 2 | O59: =+N59*G59 -> 0 | Q59: SOTONG BALL | R59: 2 | S59: =+R59*D59 -> 44
Q60: SALMON BALL | R60: 2 | S60: =+R60*$D$59 -> 44
Q61: SEAFOOD TOFU | R61: 2 | S61: =+R61*$D$59 -> 44
A62: =+A59+1 -> 2 | B62: ZAB02 1202:FRIES | C62: 4.95 | D62: =VLOOKUP(B62,Summary!$B$30:$AK$464,5,FALSE) -> 168 | E62: =D62*C62 -> 831.6 | I62: =+D62-G62 -> 168 | J62: =+I62*C62 -> 831.6 | L62: =SUMIF(DATABASE!$F$3:$F$89,B62,DATABASE!$I$3:$I$81) -> 1.76 | M62: =+L62*I62 -> 295.68 | N62: =+L62 -> 1.76 | O62: =+N62*G62 -> 0 | S62: =+R62*D62 -> 0
A63: =+A62+1 -> 3 | B63: ZAB03 1203:GOLD MROOM | C63: 4.95 | D63: =VLOOKUP(B63,Summary!$B$30:$AK$464,5,FALSE) -> 34 | E63: 168.3 | I63: 34 | J63: 168.3 | L63: =SUMIF(DATABASE!$F$3:$F$89,B63,DATABASE!$I$3:$I$81) -> 2.15 | M63: 73.1 | N63: 2.15 | O63: 0 | S63: 0
A64: 4 | B64: ZAB04 1204:F.BALL | C64: 4.95 | D64: =VLOOKUP(B64,Summary!$B$30:$AK$464,5,FALSE) -> 41 | E64: 202.95 | I64: 41 | J64: 202.95 | L64: =SUMIF(DATABASE!$F$3:$F$89,B64,DATABASE!$I$3:$I$81) -> 1.56 | M64: 63.96 | N64: 1.56 | O64: 0 | Q64: FISH BALL (BIG) | R64: 6 | S64: 246
A65: 5 | B65: ZAB06 1206:SPRING RL | C65: 4.95 | D65: =VLOOKUP(B65,Summary!$B$30:$AK$464,5,FALSE) -> 50 | E65: 247.5 | I65: 50 | J65: 247.5 | L65: =SUMIF(DATABASE!$F$3:$F$89,B65,DATABASE!$I$3:$I$81) -> 2.5 | M65: 125 | N65: 2.5 | O65: 0 | Q65: SPRING ROLL | R65: 8 | S65: 400
A66: 6 | B66: ZAB07 1207:SAUSAGE | C66: 4.95 | D66: =VLOOKUP(B66,Summary!$B$30:$AK$464,5,FALSE) -> 89 | E66: 440.55 | I66: 89 | J66: 440.55 | L66: =SUMIF(DATABASE!$F$3:$F$89,B66,DATABASE!$I$3:$I$81) -> 2.67 | M66: 237.63 | N66: 2.67 | O66: 0 | Q66: CHICKEN SAUSAGE | R66: 4 | S66: 356
A67: 7 | B67: ZAC02 1302:NUGGET | C67: 6.95 | D67: =VLOOKUP(B67,Summary!$B$30:$AK$464,5,FALSE) -> 62 | E67: 430.9 | I67: 62 | J67: 430.9 | L67: =SUMIF(DATABASE!$F$3:$F$89,B67,DATABASE!$I$3:$I$81) -> 1.24 | M67: 76.88 | N67: 1.24 | O67: 0 | Q67: CHICKEN NUGGET | R67: 8 | S67: 496
A68: 8 | B68: ZAC03 1303:CHK WING | C68: 6.95 | D68: =VLOOKUP(B68,Summary!$B$30:$AK$464,5,FALSE) -> 74 | E68: 514.3 | I68: 74 | J68: 514.3 | L68: =SUMIF(DATABASE!$F$3:$F$89,B68,DATABASE!$I$3:$I$81) -> 3.97 | M68: 293.78 | N68: 3.97 | O68: 0 | Q68: CHICKEN WING (MARINATED) | R68: 3 | S68: 222
A69: 9 | B69: ZAC04 1304:IKAN BILIS | C69: 6.95 | D69: =VLOOKUP(B69,Summary!$B$30:$AK$464,5,FALSE) -> 9 | E69: 62.55 | I69: 9 | J69: 62.55 | L69: =SUMIF(DATABASE!$F$3:$F$89,B69,DATABASE!$I$3:$I$81) -> 2.18 | M69: 19.62 | N69: 2.18 | O69: 0 | S69: 0
A70: 10 | B70: ZAC05 1305:THAI RL | C70: 6.95 | D70: =VLOOKUP(B70,Summary!$B$30:$AK$464,5,FALSE) -> 16 | E70: 111.2 | I70: 16 | J70: 111.2 | L70: =SUMIF(DATABASE!$F$3:$F$89,B70,DATABASE!$I$3:$I$81) -> 3.61 | M70: 57.76 | N70: 3.61 | O70: 0 | Q70: THAI ROLL | R70: 7 | S70: 112
A71: 11 | B71: ZAC07 1307:D/F C.WINGS | C71: 6.95 | D71: =VLOOKUP(B71,Summary!$B$30:$AK$464,5,FALSE) -> 37 | E71: 257.15 | I71: 37 | J71: 257.15 | L71: =SUMIF(DATABASE!$F$3:$F$89,B71,DATABASE!$I$3:$I$81) -> 4.31 | M71: 159.47 | N71: 4.31 | O71: 0 | Q71: CHICKEN WING (MARINATED) | R71: 3 | S71: 111
A72: 12 | B72: ZAC08 1308:C/CALAMARI | C72: 6.95 | D72: =VLOOKUP(B72,Summary!$B$30:$AK$464,5,FALSE) -> 29 | E72: 201.55 | I72: 29 | J72: 201.55 | L72: =SUMIF(DATABASE!$F$3:$F$89,B72,DATABASE!$I$3:$I$81) -> 3.69 | M72: 107.01 | N72: 3.69 | O72: 0 | Q72: CALAMARI RING | R72: 7 | S72: 203
A73: 13 | B73: ZAC09 1309:Mc /O.RINGS | C73: 6.95 | D73: =VLOOKUP(B73,Summary!$B$30:$AK$464,5,FALSE) -> 17 | E73: 118.15 | I73: 17 | J73: 118.15 | L73: =SUMIF(DATABASE!$F$3:$F$89,B73,DATABASE!$I$3:$I$81) -> 1.72 | M73: 29.24 | N73: 1.72 | O73: 0 | Q73: MCCAIN ONION RING | R73: 8 | S73: 136
A74: 14 | B74: ZAC10 1310:Mc SPIRAL/F | C74: 6.95 | D74: =VLOOKUP(B74,Summary!$B$30:$AK$464,5,FALSE) -> 17 | E74: 118.15 | I74: 17 | J74: 118.15 | L74: =SUMIF(DATABASE!$F$3:$F$89,B74,DATABASE!$I$3:$I$81) -> 1.72 | M74: 29.24 | N74: 1.72 | O74: 0 | Q74: MCCAIN SPIRAL FRIES | R74: 0.22 | S74: 3.74
A75: 15 | B75: ZAC11 1311:Mc H/SMILES | C75: 6.95 | D75: =VLOOKUP(B75,Summary!$B$30:$AK$464,5,FALSE) -> 6 | E75: 41.7 | I75: 6 | J75: 41.7 | L75: =SUMIF(DATABASE!$F$3:$F$89,B75,DATABASE!$I$3:$I$81) -> 1.34 | M75: 8.04 | N75: 1.34 | O75: 0 | Q75: MCCAIN SMILES | R75: 8 | S75: 48
A76: 16 | B76: ZAC12 1312:Mc HASH/B | C76: 6.95 | D76: =VLOOKUP(B76,Summary!$B$30:$AK$464,5,FALSE) -> 19 | E76: 132.05 | I76: 19 | J76: 132.05 | L76: =SUMIF(DATABASE!$F$3:$F$89,B76,DATABASE!$I$3:$I$81) -> 0.59 | M76: 11.21 | N76: 0.59 | O76: 0 | Q76: MCCAIN VERSITOT | R76: 15 | S76: 285
B78: HOMEMADE PIZZA
A79: 1 | B79: DL01 3001:6'HAWAIIAN | C79: 12.9 | D79: =VLOOKUP(B79,Summary!$B$30:$AK$464,5,FALSE) -> 7 | E79: =D79*C79 -> 90.3 | G79: =+'DAILY FOC'!BO53 -> 0 | H79: =G79*C79 -> 0 | I79: =+D79-G79 -> 7 | J79: =+I79*C79 -> 90.3 | L79: =SUMIF(DATABASE!$F$3:$F$89,B79,DATABASE!$I$3:$I$81) -> 3.25 | M79: =+L79*I79 -> 22.75 | N79: =+L79 -> 3.25 | O79: =+N79*G79 -> 0 | Q79: 6" PIZZA BASE | R79: 1 | S79: =+R79*D79 -> 7
A80: =+A79+1 -> 2 | B80: DL02 3002:6'SMOKE BBQ | C80: 12.9 | D80: =VLOOKUP(B80,Summary!$B$30:$AK$464,5,FALSE) -> 4 | E80: =D80*C80 -> 51.6 | G80: =+'DAILY FOC'!BO54 -> 0 | H80: =G80*C80 -> 0 | I80: =+D80-G80 -> 4 | J80: =+I80*C80 -> 51.6 | L80: =SUMIF(DATABASE!$F$3:$F$89,B80,DATABASE!$I$3:$I$81) -> 4.59 | M80: =+L80*I80 -> 18.36 | N80: =+L80 -> 4.59 | O80: =+N80*G80 -> 0 | Q80: CHICKEN CHOP (MARINATED) | R80: 0.5 | S80: =+R80*$D$80 -> 2
Q81: 6" PIZZA BASE | R81: 1 | S81: =+R81*$D$80 -> 4
A82: =+A80+1 -> 3 | B82: DL03 3003:6'SEAFOOD | C82: 12.9 | D82: =VLOOKUP(B82,Summary!$B$30:$AK$464,5,FALSE) -> 3 | E82: =D82*C82 -> 38.7 | G82: =+'DAILY FOC'!BO56 -> 0 | H82: =G82*C82 -> 0 | I82: =+D82-G82 -> 3 | J82: =+I82*C82 -> 38.7 | L82: =SUMIF(DATABASE!$F$3:$F$89,B82,DATABASE!$I$3:$I$81) -> 5.13 | M82: =+L82*I82 -> 15.39 | N82: =+L82 -> 5.13 | O82: =+N82*G82 -> 0 | Q82: 6" PIZZA BASE | R82: 1 | S82: =+R82*D82 -> 3
A83: =+A82+1 -> 4 | B83: DL04 3004:6'SPICY BUF | C83: 12.9 | D83: =VLOOKUP(B83,Summary!$B$30:$AK$464,5,FALSE) -> 3 | E83: =D83*C83 -> 38.7 | G83: =+'DAILY FOC'!BO57 -> 0 | H83: =G83*C83 -> 0 | I83: =+D83-G83 -> 3 | J83: =+I83*C83 -> 38.7 | L83: =SUMIF(DATABASE!$F$3:$F$89,B83,DATABASE!$I$3:$I$81) -> 2.99 | M83: =+L83*I83 -> 8.97 | N83: =+L83 -> 2.99 | O83: =+N83*G83 -> 0 | Q83: CHICKEN SAUSAGE | R83: 1 | S83: =+R83*$D$83 -> 3
G84: =+'DAILY FOC'!BO58 -> 0 | Q84: 6" PIZZA BASE | R84: 1 | S84: =+R84*D84 -> 0
A85: =+A83+1 -> 5 | B85: DL05 3005:6'VEGGIE | C85: 12.9 | D85: =VLOOKUP(B85,Summary!$B$30:$AK$464,5,FALSE) -> 4 | E85: =D85*C85 -> 51.6 | G85: =+'DAILY FOC'!BO59 -> 0 | H85: =G85*C85 -> 0 | I85: =+D85-G85 -> 4 | J85: =+I85*C85 -> 51.6 | L85: =SUMIF(DATABASE!$F$3:$F$89,B85,DATABASE!$I$3:$I$81) -> 3.62 | M85: =+L85*I85 -> 14.48 | N85: =+L85 -> 3.62 | O85: =+N85*G85 -> 0 | Q85: 6" PIZZA BASE | R85: 1 | S85: 4
A86: =+A85+1 -> 6 | B86: DL06 3001:9'HAWAIIAN | C86: 16.9 | D86: =VLOOKUP(B86,Summary!$B$30:$AK$464,5,FALSE) -> 0 | E86: =D86*C86 -> 0 | G86: =+'DAILY FOC'!BO58 -> 0 | H86: =G86*C86 -> 0 | I86: =+D86-G86 -> 0 | J86: =+I86*C86 -> 0 | L86: =SUMIF(DATABASE!$F$3:$F$89,B86,DATABASE!$I$3:$I$81) -> 5.79 | M86: =+L86*I86 -> 0 | N86: =+L86 -> 5.79 | O86: =+N86*G86 -> 0 | Q86: 9" PIZZA BASE | R86: 1 | S86: 0
G87: =+'DAILY FOC'!BO59 -> 0 | Q87: CHICKEN HAM | R87: 2 | S87: 0
A88: =+A86+1 -> 7 | B88: DL07 3002:9'SMOKED | C88: 16.9 | D88: =VLOOKUP(B88,Summary!$B$30:$AK$464,5,FALSE) -> 0 | E88: =D88*C88 -> 0 | G88: =+'DAILY FOC'!BO60 -> 0 | H88: =G88*C88 -> 0 | I88: =+D88-G88 -> 0 | J88: =+I88*C88 -> 0 | L88: =SUMIF(DATABASE!$F$3:$F$89,B88,DATABASE!$I$3:$I$81) -> 8.21 | M88: =+L88*I88 -> 0 | N88: =+L88 -> 8.21 | O88: =+N88*G88 -> 0 | Q88: 9" PIZZA BASE | R88: 1 | S88: 0
G89: =+'DAILY FOC'!BO61 -> 0 | Q89: CHICKEN WING (MARINATED) | R89: 1 | S89: 0
A90: =+A88+1 -> 8 | B90: DL08 3003:9'SEAFOOD | C90: 16.9 | D90: =VLOOKUP(B90,Summary!$B$30:$AK$464,5,FALSE) -> 0 | E90: =D90*C90 -> 0 | G90: =+'DAILY FOC'!BO62 -> 0 | H90: =G90*C90 -> 0 | I90: =+D90-G90 -> 0 | J90: =+I90*C90 -> 0 | L90: =SUMIF(DATABASE!$F$3:$F$89,B90,DATABASE!$I$3:$I$81) -> 9.48 | M90: =+L90*I90 -> 0 | N90: =+L90 -> 9.48 | O90: =+N90*G90 -> 0 | Q90: 9" PIZZA BASE | R90: 1 | S90: 0
A91: =+A90+1 -> 9 | B91: DL09 3004:9'SPICY B | C91: 16.9 | D91: =VLOOKUP(B91,Summary!$B$30:$AK$464,5,FALSE) -> 0 | E91: =D91*C91 -> 0 | G91: =+'DAILY FOC'!BO61 -> 0 | H91: =G91*C91 -> 0 | I91: =+D91-G91 -> 0 | J91: =+I91*C91 -> 0 | L91: =SUMIF(DATABASE!$F$3:$F$89,B91,DATABASE!$I$3:$I$81) -> 5.38 | M91: =+L91*I91 -> 0 | N91: =+L91 -> 5.38 | O91: =+N91*G91 -> 0 | Q91: CHICKEN SAUSAGE | R91: 1 | S91: =+R91*$D$91 -> 0
G92: =+'DAILY FOC'!BO64 -> 0 | Q92: 9" PIZZA BASE | R92: 1 | S92: =+R92*$D$91 -> 0
A93: 10 | B93: DL10 3005:9'VEGGIE | C93: 16.9 | D93: =VLOOKUP(B93,Summary!$B$30:$AK$464,5,FALSE) -> 0 | E93: =D93*C93 -> 0 | G93: =+'DAILY FOC'!BO65 -> 0 | H93: =G93*C93 -> 0 | I93: =+D93-G93 -> 0 | J93: =+I93*C93 -> 0 | L93: =SUMIF(DATABASE!$F$3:$F$89,B93,DATABASE!$I$3:$I$81) -> 6.96 | M93: =+L93*I93 -> 0 | N93: =+L93 -> 6.96 | O93: =+N93*G93 -> 0 | Q93: 9" PIZZA BASE | R93: 1 | S93: =+R93*D93 -> 0
B95: PLATTER
A96: 1 | B96: DM01 SNACK PLATTER(A) | C96: 16.9 | D96: =VLOOKUP(B96,Summary!$B$30:$AK$464,5,FALSE) -> 28 | E96: =D96*C96 -> 473.2 | I96: =+D96-G96 -> 28 | J96: =+I96*C96 -> 473.2 | L96: =SUMIF(DATABASE!$F$3:$F$89,B96,DATABASE!$I$3:$I$81) -> 4.6 | M96: =+L96*I96 -> 128.8 | N96: =+L96 -> 4.6 | O96: =+N96*G96 -> 0 | Q96: MCCAIN VERSITOT | R96: 8 | S96: =+R96*$D$96 -> 224
Q97: MCCAIN SMILES | R97: 6 | S97: =+R97*$D$96 -> 168
Q98: MCCAIN ONION RING | R98: 8 | S98: =+R98*$D$96 -> 224
Q99: MCCAIN SPIRAL FRIES | R99: 0.12 | S99: =+R99*$D$96 -> 3.36
A100: 2 | B100: DM02 SNACK PLATTER(B) | C100: 12.9 | D100: =VLOOKUP(B100,Summary!$B$30:$AK$464,5,FALSE) -> 8 | E100: =D100*C100 -> 103.2 | I100: =+D100-G100 -> 8 | J100: =+I100*C100 -> 103.2 | L100: =SUMIF(DATABASE!$F$3:$F$89,B100,DATABASE!$I$3:$I$81) -> 4.6 | M100: =+L100*I100 -> 36.8 | N100: =+L100 -> 4.6 | O100: =+N100*G100 -> 0 | Q100: MCCAIN VERSITOT | R100: 8 | S100: =+R100*$D$100 -> 64
Q101: MCCAIN SMILES | R101: 6 | S101: =+R101*$D$100 -> 48
Q102: MCCAIN ONION RING | R102: 8 | S102: =+R102*$D$100 -> 64
Q103: MCCAIN SPIRAL FRIES | R103: 0.12 | S103: =+R103*$D$96 -> 3.36
A104: 3 | B104: DM03 CNY platter(A) | C104: 19.9 | D104: =VLOOKUP(B104,Summary!$B$30:$AK$464,5,FALSE) -> 0 | E104: =D104*C104 -> 0 | I104: =+D104-G104 -> 0 | J104: =+I104*C104 -> 0 | L104: =SUMIF(DATABASE!$F$3:$F$89,B104,DATABASE!$I$3:$I$81) -> 9.81 | M104: =+L104*I104 -> 0 | N104: =+L104 -> 9.81 | O104: =+N104*G104 -> 0 | Q104: CHICKEN WINGS (NON -MARINATED) | R104: 4 | S104: =+R104*D104 -> 0
Q105: MCCAIN ONION RING | R105: 8 | S105: =+R105*$D$104 -> 0
A106: 4 | B106: DM04 CNY platter (B) | C106: 23.9 | D106: =VLOOKUP(B106,Summary!$B$30:$AK$464,5,FALSE) -> 0 | E106: =D106*C106 -> 0 | I106: =+D106-G106 -> 0 | J106: =+I106*C106 -> 0 | L106: =SUMIF(DATABASE!$F$3:$F$89,B106,DATABASE!$I$3:$I$81) -> 9.81 | M106: =+L106*I106 -> 0 | N106: =+L106 -> 9.81 | O106: =+N106*G106 -> 0 | Q106: CHICKEN WINGS (NON -MARINATED) | R106: 4 | S106: =+R106*$D$106 -> 0
Q107: MCCAIN ONION RING | R107: 8 | S107: =+R107*$D$106 -> 0
A110: Total Sales / COST | D110: =SUM(D11:D109) -> 1889 | E110: =SUM(E11:E109) -> 16241.3 | G110: =SUM(G11:G108) -> 15 | H110: =SUM(H11:H109) -> 175.5 | I110: =SUM(I11:I109) -> 1829 | J110: =SUM(J11:J109) -> 15640.3 | M110: =SUM(M11:M109) -> 5431.38 | O110: =SUM(O11:O109) -> 63.24
R201: =SUBTOTAL(9,S79:S85) -> 0 | S201: =SUBTOTAL(9,S49:S70) -> 400

Sheet DAILY FOC
A1: MONTHLY SALES FOOD RECORD ( K LUNCH & K DINNER)
A3: Outlet : | B3: =+'K-LUNCH & K DINNER'!B3 -> CCS OUTLET
A4: Month : | B4: =+'K-LUNCH & K DINNER'!B4 -> 2013-08-01
A7: CODE | B7: Item | C7: S/P | D7: 1 | F7: =+D7+1 -> 2 | H7: =+F7+1 -> 3 | J7: =+H7+1 -> 4 | L7: =+J7+1 -> 5 | N7: =+L7+1 -> 6 | P7: =+N7+1 -> 7 | R7: =+P7+1 -> 8 | T7: =+R7+1 -> 9 | V7: =+T7+1 -> 10 | X7: =+V7+1 -> 11 | Z7: =+X7+1 -> 12 | AB7: =+Z7+1 -> 13 | AD7: =+AB7+1 -> 14 | AF7: =+AD7+1 -> 15 | AH7: =+AF7+1 -> 16 | AJ7: =+AH7+1 -> 17 | AL7: =+AJ7+1 -> 18 | AN7: =+AL7+1 -> 19 | AP7: =+AN7+1 -> 20 | AR7: =+AP7+1 -> 21 | AT7: =+AR7+1 -> 22 | AV7: =+AT7+1 -> 23 | AX7: =+AV7+1 -> 24 | AZ7: =+AX7+1 -> 25 | BB7: =+AZ7+1 -> 26 | BD7: =+BB7+1 -> 27 | BF7: =+BD7+1 -> 28 | BH7: =+BF7+1 -> 29 | BJ7: =+BH7+1 -> 30 | BL7: =+BJ7+1 -> 31 | BO7: TOTAL | BP7: TOTAL | BQ7: %
C8: RM | D8: Q | E8: RM | F8: Q | G8: RM | H8: Q | I8: RM | J8: Q | K8: RM | L8: Q | M8: RM | N8: Q | O8: RM | P8: Q | Q8: RM | R8: Q | S8: RM | T8: Q | U8: RM | V8: Q | W8: RM | X8: Q | Y8: RM | Z8: Q | AA8: RM | AB8: Q | AC8: RM | AD8: Q | AE8: RM | AF8: Q | AG8: RM | AH8: Q | AI8: RM | AJ8: Q | AK8: RM | AL8: Q | AM8: RM | AN8: Q | AO8: RM | AP8: Q | AQ8: RM | AR8: Q | AS8: RM | AT8: Q | AU8: RM | AV8: Q | AW8: RM | AX8: Q | AY8: RM | AZ8: Q | BA8: RM | BB8: Q | BC8: RM | BD8: Q | BE8: RM | BF8: Q | BG8: RM | BH8: Q | BI8: RM | BJ8: Q | BK8: RM | BL8: Q | BM8: RM | BO8: Q | BP8: RM
A9: DF 01 | B9: Plain Rice | C9: 1 | D9: 0 | E9: =D9*C9 -> 0 | F9: 0 | G9: =F9*C9 -> 0 | H9: 0 | I9: =H9*C9 -> 0 | J9: 0 | K9: =J9*C9 -> 0 | L9: 0 | M9: =L9*C9 -> 0 | N9: 0 | O9: =N9*C9 -> 0 | P9: 0 | Q9: =P9*C9 -> 0 | R9: 0 | S9: =R9*C9 -> 0 | T9: 0 | U9: =T9*C9 -> 0 | V9: 0 | W9: =V9*C9 -> 0 | X9: 0 | Y9: =X9*C9 -> 0 | Z9: 0 | AA9: =Z9*C9 -> 0 | AB9: 0 | AC9: =AB9*C9 -> 0 | AD9: 0 | AE9: =AD9*C9 -> 0 | AF9: 0 | AG9: =AF9*C9 -> 0 | AH9: 0 | AI9: =AH9*C9 -> 0 | AJ9: 0 | AK9: =AJ9*C9 -> 0 | AL9: 0 | AM9: =AL9*C9 -> 0 | AN9: 0 | AO9: =AN9*C9 -> 0 | AP9: 0 | AQ9: =AP9*C9 -> 0 | AR9: 0 | AS9: =AR9*C9 -> 0 | AT9: 0 | AU9: =AT9*C9 -> 0 | AV9: 0 | AW9: =AV9*C9 -> 0 | AX9: 0 | AY9: =AX9*C9 -> 0 | AZ9: 0 | BA9: =AZ9*C9 -> 0 | BB9: 0 | BC9: =BB9*C9 -> 0 | BD9: 0 | BE9: =BD9*C9 -> 0 | BF9: 0 | BG9: =BF9*C9 -> 0 | BH9: 0 | BI9: =BH9*C9 -> 0 | BJ9: 0 | BK9: =BJ9*C9 -> 0 | BL9: 0 | BM9: =BL9*C9 -> 0 | BO9: =D9+F9+H9+J9+L9+N9+P9+R9+T9+V9+X9+Z9+AB9+AD9+AF9+AH9+AJ9+AL9+AN9+AP9+AR9+AT9+AV9+AX9+AZ9+BB9+BD9+BF9+BH9+BJ9+BL9 -> 0 | BP9: =BO9*C9 -> 0
A10: DF 02 | B10: Egg | C10: 1.5 | D10: 0 | E10: 0 | F10: 0 | G10: 0 | H10: 0 | I10: 0 | J10: 0 | K10: 0 | L10: 0 | M10: 0 | N10: 0 | O10: 0 | P10: 0 | Q10: 0 | R10: 0 | S10: 0 | T10: 0 | U10: 0 | V10: 0 | W10: 0 | X10: 0 | Y10: 0 | Z10: 0 | AA10: 0 | AB10: 0 | AC10: 0 | AD10: 0 | AE10: 0 | AF10: 0 | AG10: 0 | AH10: 0 | AI10: 0 | AJ10: 0 | AK10: 0 | AL10: 0 | AM10: 0 | AN10: 0 | AO10: 0 | AP10: 0 | AQ10: 0 | AR10: 0 | AS10: 0 | AT10: 0 | AU10: 0 | AV10: 0 | AW10: 0 | AX10: 0 | AY10: 0 | AZ10: 0 | BA10: 0 | BB10: 0 | BC10: 0 | BD10: 0 | BE10: 0 | BF10: 0 | BG10: 0 | BH10: 0 | BI10: 0 | BJ10: 0 | BK10: 0 | BL10: 0 | BM10: 0 | BO10: 0 | BP10: 0
A11: 1101 | B11: Thai Ckn Chop | C11: 9.9 | D11: 0 | E11: =D11*C11 -> 0 | F11: 0 | G11: =F11*C11 -> 0 | H11: 0 | I11: =H11*C11 -> 0 | J11: 0 | K11: =J11*C11 -> 0 | L11: 0 | M11: =L11*C11 -> 0 | N11: 0 | O11: =N11*C11 -> 0 | P11: 0 | Q11: =P11*C11 -> 0 | R11: 0 | S11: =R11*C11 -> 0 | T11: 0 | U11: =T11*C11 -> 0 | V11: 0 | W11: =V11*C11 -> 0 | X11: 0 | Y11: =X11*C11 -> 0 | Z11: 0 | AA11: =Z11*C11 -> 0 | AB11: 0 | AC11: =AB11*C11 -> 0 | AD11: 0 | AE11: =AD11*C11 -> 0 | AF11: 0 | AG11: =AF11*C11 -> 0 | AH11: 0 | AI11: =AH11*C11 -> 0 | AJ11: 0 | AK11: =AJ11*C11 -> 0 | AL11: 0 | AM11: =AL11*C11 -> 0 | AN11: 0 | AO11: =AN11*C11 -> 0 | AP11: 0 | AQ11: =AP11*C11 -> 0 | AR11: 0 | AS11: =AR11*C11 -> 0 | AT11: 0 | AU11: =AT11*C11 -> 0 | AV11: 0 | AW11: =AV11*C11 -> 0 | AX11: 0 | AY11: =AX11*C11 -> 0 | AZ11: 0 | BA11: =AZ11*C11 -> 0 | BB11: 0 | BC11: =BB11*C11 -> 0 | BD11: 0 | BE11: =BD11*C11 -> 0 | BF11: 0 | BG11: =BF11*C11 -> 0 | BH11: 0 | BI11: =BH11*C11 -> 0 | BJ11: 0 | BK11: =BJ11*C11 -> 0 | BL11: 0 | BM11: =BL11*C11 -> 0 | BO11: =D11+F11+H11+J11+L11+N11+P11+R11+T11+V11+X11+Z11+AB11+AD11+AF11+AH11+AJ11+AL11+AN11+AP11+AR11+AT11+AV11+AX11+AZ11+BB11+BD11+BF11+BH11+BJ11+BL11 -> 0 | BP11: =BO11*C11 -> 0
A12: 1102 | B12: Marmite Ckn Chop | C12: 9.9 | D12: 0 | E12: 0 | F12: 0 | G12: 0 | H12: 0 | I12: 0 | J12: 0 | K12: 0 | L12: 0 | M12: 0 | N12: 0 | O12: 0 | P12: 0 | Q12: 0 | R12: 0 | S12: 0 | T12: 0 | U12: 0 | V12: 0 | W12: 0 | X12: 0 | Y12: 0 | Z12: 0 | AA12: 0 | AB12: 0 | AC12: 0 | AD12: 0 | AE12: 0 | AF12: 0 | AG12: 0 | AH12: 0 | AI12: 0 | AJ12: 0 | AK12: 0 | AL12: 0 | AM12: 0 | AN12: 0 | AO12: 0 | AP12: 0 | AQ12: 0 | AR12: 0 | AS12: 0 | AT12: 0 | AU12: 0 | AV12: 0 | AW12: 0 | AX12: 0 | AY12: 0 | AZ12: 0 | BA12: 0 | BB12: 0 | BC12: 0 | BD12: 0 | BE12: 0 | BF12: 0 | BG12: 0 | BH12: 0 | BI12: 0 | BJ12: 0 | BK12: 0 | BL12: 0 | BM12: 0 | BO12: 0 | BP12: 0
A13: 1103 | B13: Kong Po Ckn Chop | C13: 9.9 | D13: 0 | E13: 0 | F13: 0 | G13: 0 | H13: 0 | I13: 0 | J13: 0 | K13: 0 | L13: 0 | M13: 0 | N13: 0 | O13: 0 | P13: 0 | Q13: 0 | R13: 0 | S13: 0 | T13: 0 | U13: 0 | V13: 0 | W13: 0 | X13: 0 | Y13: 0 | Z13: 0 | AA13: 0 | AB13: 0 | AC13: 0 | AD13: 0 | AE13: 0 | AF13: 0 | AG13: 0 | AH13: 0 | AI13: 0 | AJ13: 0 | AK13: 0 | AL13: 0 | AM13: 0 | AN13: 0 | AO13: 0 | AP13: 0 | AQ13: 0 | AR13: 0 | AS13: 0 | AT13: 0 | AU13: 0 | AV13: 0 | AW13: 0 | AX13: 0 | AY13: 0 | AZ13: 0 | BA13: 0 | BB13: 0 | BC13: 0 | BD13: 0 | BE13: 0 | BF13: 0 | BG13: 0 | BH13: 0 | BI13: 0 | BJ13: 0 | BK13: 0 | BL13: 0 | BM13: 0 | BO13: 0 | BP13: 0
A14: 1104 | B14: S/Sour Ckn Chop | C14: 9.9 | D14: 0 | E14: 0 | F14: 0 | G14: 0 | H14: 0 | I14: 0 | J14: 0 | K14: 0 | L14: 0 | M14: 0 | N14: 0 | O14: 0 | P14: 0 | Q14: 0 | R14: 0 | S14: 0 | T14: 0 | U14: 0 | V14: 0 | W14: 0 | X14: 0 | Y14: 0 | Z14: 0 | AA14: 0 | AB14: 0 | AC14: 0 | AD14: 0 | AE14: 0 | AF14: 0 | AG14: 0 | AH14: 0 | AI14: 0 | AJ14: 0 | AK14: 0 | AL14: 0 | AM14: 0 | AN14: 0 | AO14: 0 | AP14: 0 | AQ14: 0 | AR14: 0 | AS14: 0 | AT14: 0 | AU14: 0 | AV14: 0 | AW14: 0 | AX14: 0 | AY14: 0 | AZ14: 0 | BA14: 0 | BB14: 0 | BC14: 0 | BD14: 0 | BE14: 0 | BF14: 0 | BG14: 0 | BH14: 0 | BI14: 0 | BJ14: 0 | BK14: 0 | BL14: 0 | BM14: 0 | BO14: 0 | BP14: 0
A15: 1105 | B15: Butter Ckn Chop | C15: 9.9 | D15: 0 | E15: 0 | F15: 0 | G15: 0 | H15: 0 | I15: 0 | J15: 0 | K15: 0 | L15: 0 | M15: 0 | N15: 0 | O15: 0 | P15: 0 | Q15: 0 | R15: 0 | S15: 0 | T15: 0 | U15: 0 | V15: 0 | W15: 0 | X15: 0 | Y15: 0 | Z15: 0 | AA15: 0 | AB15: 0 | AC15: 0 | AD15: 0 | AE15: 0 | AF15: 0 | AG15: 0 | AH15: 0 | AI15: 0 | AJ15: 0 | AK15: 0 | AL15: 0 | AM15: 0 | AN15: 0 | AO15: 0 | AP15: 0 | AQ15: 0 | AR15: 0 | AS15: 0 | AT15: 0 | AU15: 0 | AV15: 0 | AW15: 0 | AX15: 0 | AY15: 0 | AZ15: 0 | BA15: 0 | BB15: 0 | BC15: 0 | BD15: 0 | BE15: 0 | BF15: 0 | BG15: 0 | BH15: 0 | BI15: 0 | BJ15: 0 | BK15: 0 | BL15: 0 | BM15: 0 | BO15: 0 | BP15: 0
A16: 1106 | B16: HK Prawn F/Rice | C16: 9.9 | D16: 0 | E16: 0 | F16: 0 | G16: 0 | H16: 0 | I16: 0 | J16: 0 | K16: 0 | L16: 0 | M16: 0 | N16: 0 | O16: 0 | P16: 0 | Q16: 0 | R16: 0 | S16: 0 | T16: 0 | U16: 0 | V16: 0 | W16: 0 | X16: 0 | Y16: 0 | Z16: 0 | AA16: 0 | AB16: 0 | AC16: 0 | AD16: 0 | AE16: 0 | AF16: 0 | AG16: 0 | AH16: 0 | AI16: 0 | AJ16: 0 | AK16: 0 | AL16: 0 | AM16: 0 | AN16: 0 | AO16: 0 | AP16: 0 | AQ16: 0 | AR16: 0 | AS16: 0 | AT16: 0 | AU16: 0 | AV16: 0 | AW16: 0 | AX16: 0 | AY16: 0 | AZ16: 0 | BA16: 0 | BB16: 0 | BC16: 0 | BD16: 0 | BE16: 0 | BF16: 0 | BG16: 0 | BH16: 0 | BI16: 0 | BJ16: 0 | BK16: 0 | BL16: 0 | BM16: 0 | BO16: 0 | BP16: 0
A17: 1107 | B17: Sambal F/Rice | C17: 9.9 | D17: 0 | E17: 0 | F17: 0 | G17: 0 | H17: 0 | I17: 0 | J17: 0 | K17: 0 | L17: 0 | M17: 0 | N17: 0 | O17: 0 | P17: 0 | Q17: 0 | R17: 0 | S17: 0 | T17: 0 | U17: 0 | V17: 0 | W17: 0 | X17: 0 | Y17: 0 | Z17: 0 | AA17: 0 | AB17: 0 | AC17: 0 | AD17: 0 | AE17: 0 | AF17: 0 | AG17: 0 | AH17: 1 | AI17: 9.9 | AJ17: 0 | AK17: 0 | AL17: 0 | AM17: 0 | AN17: 0 | AO17: 0 | AP17: 0 | AQ17: 0 | AR17: 0 | AS17: 0 | AT17: 0 | AU17: 0 | AV17: 0 | AW17: 0 | AX17: 0 | AY17: 0 | AZ17: 0 | BA17: 0 | BB17: 0 | BC17: 0 | BD17: 0 | BE17: 0 | BF17: 0 | BG17: 0 | BH17: 0 | BI17: 0 | BJ17: 0 | BK17: 0 | BL17: 0 | BM17: 0 | BO17: 1 | BP17: 9.9
A18: 1108 | B18: Sambal F/Mee | C18: 9.9 | D18: 0 | E18: 0 | F18: 0 | G18: 0 | H18: 0 | I18: 0 | J18: 0 | K18: 0 | L18: 0 | M18: 0 | N18: 0 | O18: 0 | P18: 0 | Q18: 0 | R18: 0 | S18: 0 | T18: 0 | U18: 0 | V18: 0 | W18: 0 | X18: 0 | Y18: 0 | Z18: 0 | AA18: 0 | AB18: 0 | AC18: 0 | AD18: 0 | AE18: 0 | AF18: 0 | AG18: 0 | AH18: 0 | AI18: 0 | AJ18: 0 | AK18: 0 | AL18: 0 | AM18: 0 | AN18: 0 | AO18: 0 | AP18: 0 | AQ18: 0 | AR18: 0 | AS18: 0 | AT18: 0 | AU18: 0 | AV18: 0 | AW18: 0 | AX18: 0 | AY18: 0 | AZ18: 0 | BA18: 0 | BB18: 0 | BC18: 0 | BD18: 0 | BE18: 0 | BF18: 0 | BG18: 0 | BH18: 0 | BI18: 0 | BJ18: 0 | BK18: 0 | BL18: 0 | BM18: 0 | BO18: 0 | BP18: 0
A19: 1109 | B19: B/Pepper Udon Noodle | C19: 9.9 | D19: 0 | E19: 0 | F19: 0 | G19: 0 | H19: 0 | I19: 0 | J19: 0 | K19: 0 | L19: 0 | M19: 0 | N19: 0 | O19: 0 | P19: 0 | Q19: 0 | R19: 0 | S19: 0 | T19: 0 | U19: 0 | V19: 0 | W19: 0 | X19: 0 | Y19: 0 | Z19: 0 | AA19: 0 | AB19: 0 | AC19: 0 | AD19: 0 | AE19: 0 | AF19: 0 | AG19: 0 | AH19: 0 | AI19: 0 | AJ19: 0 | AK19: 0 | AL19: 0 | AM19: 0 | AN19: 0 | AO19: 0 | AP19: 0 | AQ19: 0 | AR19: 0 | AS19: 0 | AT19: 0 | AU19: 0 | AV19: 0 | AW19: 0 | AX19: 0 | AY19: 0 | AZ19: 0 | BA19: 0 | BB19: 0 | BC19: 0 | BD19: 0 | BE19: 0 | BF19: 0 | BG19: 0 | BH19: 0 | BI19: 0 | BJ19: 0 | BK19: 0 | BL19: 0 | BM19: 0 | BO19: 0 | BP19: 0
A20: 1110 | B20: Nissin Noodle Soup | C20: 9.9 | D20: 0 | E20: 0 | F20: 0 | G20: 0 | H20: 0 | I20: 0 | J20: 0 | K20: 0 | L20: 0 | M20: 0 | N20: 0 | O20: 0 | P20: 0 | Q20: 0 | R20: 0 | S20: 0 | T20: 0 | U20: 0 | V20: 0 | W20: 0 | X20: 0 | Y20: 0 | Z20: 0 | AA20: 0 | AB20: 0 | AC20: 0 | AD20: 0 | AE20: 0 | AF20: 0 | AG20: 0 | AH20: 0 | AI20: 0 | AJ20: 0 | AK20: 0 | AL20: 0 | AM20: 0 | AN20: 0 | AO20: 0 | AP20: 0 | AQ20: 0 | AR20: 0 | AS20: 0 | AT20: 0 | AU20: 0 | AV20: 0 | AW20: 0 | AX20: 0 | AY20: 0 | AZ20: 0 | BA20: 0 | BB20: 0 | BC20: 0 | BD20: 0 | BE20: 0 | BF20: 0 | BG20: 0 | BH20: 0 | BI20: 0 | BJ20: 0 | BK20: 0 | BL20: 0 | BM20: 0 | BO20: 0 | BP20: 0
A21: 1111 | B21: Fried Mix Vegetable W/Rice | C21: 9.9 | D21: 0 | E21: 0 | F21: 0 | G21: 0 | H21: 0 | I21: 0 | J21: 0 | K21: 0 | L21: 0 | M21: 0 | N21: 0 | O21: 0 | P21: 0 | Q21: 0 | R21: 0 | S21: 0 | T21: 0 | U21: 0 | V21: 0 | W21: 0 | X21: 0 | Y21: 0 | Z21: 0 | AA21: 0 | AB21: 0 | AC21: 0 | AD21: 0 | AE21: 0 | AF21: 0 | AG21: 0 | AH21: 0 | AI21: 0 | AJ21: 0 | AK21: 0 | AL21: 0 | AM21: 0 | AN21: 0 | AO21: 0 | AP21: 0 | AQ21: 0 | AR21: 0 | AS21: 0 | AT21: 0 | AU21: 0 | AV21: 0 | AW21: 0 | AX21: 0 | AY21: 0 | AZ21: 0 | BA21: 0 | BB21: 0 | BC21: 0 | BD21: 0 | BE21: 0 | BF21: 0 | BG21: 0 | BH21: 0 | BI21: 0 | BJ21: 0 | BK21: 0 | BL21: 0 | BM21: 0 | BO21: 0 | BP21: 0
A22: 1112 | B22: Nasi Lemak W/F Ckn Wing | C22: 9.9 | D22: 0 | E22: 0 | F22: 0 | G22: 0 | H22: 0 | I22: 0 | J22: 0 | K22: 0 | L22: 0 | M22: 0 | N22: 0 | O22: 0 | P22: 0 | Q22: 0 | R22: 0 | S22: 0 | T22: 0 | U22: 0 | V22: 0 | W22: 0 | X22: 0 | Y22: 0 | Z22: 0 | AA22: 0 | AB22: 0 | AC22: 0 | AD22: 0 | AE22: 0 | AF22: 0 | AG22: 0 | AH22: 0 | AI22: 0 | AJ22: 0 | AK22: 0 | AL22: 0 | AM22: 0 | AN22: 0 | AO22: 0 | AP22: 0 | AQ22: 0 | AR22: 0 | AS22: 0 | AT22: 0 | AU22: 0 | AV22: 0 | AW22: 0 | AX22: 0 | AY22: 0 | AZ22: 0 | BA22: 0 | BB22: 0 | BC22: 0 | BD22: 0 | BE22: 0 | BF22: 0 | BG22: 0 | BH22: 0 | BI22: 0 | BJ22: 0 | BK22: 0 | BL22: 0 | BM22: 0 | BO22: 0 | BP22: 0
A23: 1113 | B23: H & S F/Kuey Teow | C23: 9.9 | D23: 0 | E23: 0 | F23: 0 | G23: 0 | H23: 0 | I23: 0 | J23: 0 | K23: 0 | L23: 0 | M23: 0 | N23: 0 | O23: 0 | P23: 0 | Q23: 0 | R23: 0 | S23: 0 | T23: 0 | U23: 0 | V23: 0 | W23: 0 | X23: 0 | Y23: 0 | Z23: 0 | AA23: 0 | AB23: 0 | AC23: 0 | AD23: 0 | AE23: 0 | AF23: 0 | AG23: 0 | AH23: 0 | AI23: 0 | AJ23: 0 | AK23: 0 | AL23: 0 | AM23: 0 | AN23: 0 | AO23: 0 | AP23: 0 | AQ23: 0 | AR23: 0 | AS23: 0 | AT23: 0 | AU23: 0 | AV23: 0 | AW23: 0 | AX23: 0 | AY23: 0 | AZ23: 0 | BA23: 0 | BB23: 0 | BC23: 0 | BD23: 0 | BE23: 0 | BF23: 0 | BG23: 0 | BH23: 0 | BI23: 0 | BJ23: 0 | BK23: 0 | BL23: 0 | BM23: 0 | BO23: 0 | BP23: 0
A24: 1114 | B24: Seaweed Fishball Noodle Soup | C24: 9.9 | D24: 0 | E24: 0 | F24: 0 | G24: 0 | H24: 0 | I24: 0 | J24: 0 | K24: 0 | L24: 0 | M24: 0 | N24: 0 | O24: 0 | P24: 0 | Q24: 0 | R24: 0 | S24: 0 | T24: 0 | U24: 0 | V24: 0 | W24: 0 | X24: 0 | Y24: 0 | Z24: 0 | AA24: 0 | AB24: 0 | AC24: 0 | AD24: 0 | AE24: 0 | AF24: 0 | AG24: 0 | AH24: 0 | AI24: 0 | AJ24: 0 | AK24: 0 | AL24: 0 | AM24: 0 | AN24: 0 | AO24: 0 | AP24: 0 | AQ24: 0 | AR24: 0 | AS24: 0 | AT24: 0 | AU24: 0 | AV24: 0 | AW24: 0 | AX24: 0 | AY24: 0 | AZ24: 0 | BA24: 0 | BB24: 0 | BC24: 0 | BD24: 0 | BE24: 0 | BF24: 0 | BG24: 0 | BH24: 0 | BI24: 0 | BJ24: 0 | BK24: 0 | BL24: 0 | BM24: 0 | BO24: 0 | BP24: 0
A25: 1115 | B25: Braised Noodle W/Chicken Chop | C25: 9.9 | D25: 0 | E25: 0 | F25: 0 | G25: 0 | H25: 0 | I25: 0 | J25: 0 | K25: 0 | L25: 0 | M25: 0 | N25: 0 | O25: 0 | P25: 0 | Q25: 0 | R25: 0 | S25: 0 | T25: 0 | U25: 0 | V25: 0 | W25: 0 | X25: 0 | Y25: 0 | Z25: 0 | AA25: 0 | AB25: 0 | AC25: 0 | AD25: 0 | AE25: 0 | AF25: 0 | AG25: 0 | AH25: 0 | AI25: 0 | AJ25: 0 | AK25: 0 | AL25: 0 | AM25: 0 | AN25: 0 | AO25: 0 | AP25: 0 | AQ25: 0 | AR25: 0 | AS25: 0 | AT25: 0 | AU25: 0 | AV25: 0 | AW25: 0 | AX25: 0 | AY25: 0 | AZ25: 0 | BA25: 0 | BB25: 0 | BC25: 0 | BD25: 0 | BE25: 0 | BF25: 0 | BG25: 0 | BH25: 0 | BI25: 0 | BJ25: 0 | BK25: 0 | BL25: 0 | BM25: 0 | BO25: 0 | BP25: 0
A26: 1116 | B26: Mongolian Chicken Chop | C26: 9.9 | D26: 0 | E26: 0 | F26: 0 | G26: 0 | H26: 0 | I26: 0 | J26: 0 | K26: 0 | L26: 0 | M26: 0 | N26: 0 | O26: 0 | P26: 0 | Q26: 0 | R26: 0 | S26: 0 | T26: 0 | U26: 0 | V26: 0 | W26: 0 | X26: 0 | Y26: 0 | Z26: 0 | AA26: 0 | AB26: 0 | AC26: 0 | AD26: 0 | AE26: 0 | AF26: 0 | AG26: 0 | AH26: 0 | AI26: 0 | AJ26: 0 | AK26: 0 | AL26: 0 | AM26: 0 | AN26: 0 | AO26: 0 | AP26: 0 | AQ26: 0 | AR26: 0 | AS26: 0 | AT26: 0 | AU26: 0 | AV26: 0 | AW26: 0 | AX26: 0 | AY26: 0 | AZ26: 0 | BA26: 0 | BB26: 0 | BC26: 0 | BD26: 0 | BE26: 0 | BF26: 0 | BG26: 0 | BH26: 0 | BI26: 0 | BJ26: 0 | BK26: 0 | BL26: 0 | BM26: 0 | BO26: 0 | BP26: 0
A27: 1001 | B27: Black Pepper Chicken Chop | C27: 12.9 | D27: 0 | E27: 0 | F27: 0 | G27: 0 | H27: 0 | I27: 0 | J27: 0 | K27: 0 | L27: 0 | M27: 0 | N27: 0 | O27: 0 | P27: 0 | Q27: 0 | R27: 0 | S27: 0 | T27: 0 | U27: 0 | V27: 0 | W27: 0 | X27: 0 | Y27: 0 | Z27: 0 | AA27: 0 | AB27: 0 | AC27: 0 | AD27: 0 | AE27: 0 | AF27: 0 | AG27: 0 | AH27: 0 | AI27: 0 | AJ27: 0 | AK27: 0 | AL27: 0 | AM27: 0 | AN27: 1 | AO27: 12.9 | AP27: 0 | AQ27: 0 | AR27: 0 | AS27: 0 | AT27: 0 | AU27: 0 | AV27: 0 | AW27: 0 | AX27: 0 | AY27: 0 | AZ27: 0 | BA27: 0 | BB27: 0 | BC27: 0 | BD27: 0 | BE27: 0 | BF27: 0 | BG27: 0 | BH27: 0 | BI27: 0 | BJ27: 0 | BK27: 0 | BL27: 0 | BM27: 0 | BO27: 1 | BP27: 12.9
A28: 1002 | B28: Gravy Chicken Chop | C28: 12.9 | D28: 0 | E28: 0 | F28: 0 | G28: 0 | H28: 0 | I28: 0 | J28: 0 | K28: 0 | L28: 0 | M28: 0 | N28: 0 | O28: 0 | P28: 0 | Q28: 0 | R28: 0 | S28: 0 | T28: 0 | U28: 0 | V28: 0 | W28: 0 | X28: 0 | Y28: 0 | Z28: 0 | AA28: 0 | AB28: 0 | AC28: 0 | AD28: 0 | AE28: 0 | AF28: 0 | AG28: 0 | AH28: 0 | AI28: 0 | AJ28: 0 | AK28: 0 | AL28: 0 | AM28: 0 | AN28: 0 | AO28: 0 | AP28: 0 | AQ28: 0 | AR28: 0 | AS28: 0 | AT28: 0 | AU28: 0 | AV28: 0 | AW28: 0 | AX28: 0 | AY28: 0 | AZ28: 0 | BA28: 0 | BB28: 0 | BC28: 0 | BD28: 0 | BE28: 0 | BF28: 0 | BG28: 0 | BH28: 0 | BI28: 0 | BJ28: 0 | BK28: 0 | BL28: 0 | BM28: 0 | BO28: 0 | BP28: 0
A29: 1003 | B29: Mushroom Chicken Chop | C29: 12.9 | D29: 0 | E29: 0 | F29: 0 | G29: 0 | H29: 0 | I29: 0 | J29: 0 | K29: 0 | L29: 0 | M29: 0 | N29: 0 | O29: 0 | P29: 0 | Q29: 0 | R29: 1 | S29: 12.9 | T29: 0 | U29: 0 | V29: 0 | W29: 0 | X29: 0 | Y29: 0 | Z29: 0 | AA29: 0 | AB29: 0 | AC29: 0 | AD29: 0 | AE29: 0 | AF29: 0 | AG29: 0 | AH29: 2 | AI29: 25.8 | AJ29: 0 | AK29: 0 | AL29: 0 | AM29: 0 | AN29: 0 | AO29: 0 | AP29: 0 | AQ29: 0 | AR29: 0 | AS29: 0 | AT29: 0 | AU29: 0 | AV29: 0 | AW29: 0 | AX29: 0 | AY29: 0 | AZ29: 0 | BA29: 0 | BB29: 0 | BC29: 0 | BD29: 0 | BE29: 0 | BF29: 0 | BG29: 0 | BH29: 0 | BI29: 0 | BJ29: 0 | BK29: 0 | BL29: 0 | BM29: 0 | BO29: 3 | BP29: 38.7
A30: 1004 | B30: Chicken Maryland | C30: 12.9 | D30: 0 | E30: 0 | F30: 0 | G30: 0 | H30: 0 | I30: 0 | J30: 0 | K30: 0 | L30: 0 | M30: 0 | N30: 0 | O30: 0 | P30: 0 | Q30: 0 | R30: 0 | S30: 0 | T30: 2 | U30: 25.8 | V30: 1 | W30: 12.9 | X30: 0 | Y30: 0 | Z30: 0 | AA30: 0 | AB30: 1 | AC30: 12.9 | AD30: 0 | AE30: 0 | AF30: 0 | AG30: 0 | AH30: 0 | AI30: 0 | AJ30: 0 | AK30: 0 | AL30: 0 | AM30: 0 | AN30: 0 | AO30: 0 | AP30: 0 | AQ30: 0 | AR30: 0 | AS30: 0 | AT30: 0 | AU30: 0 | AV30: 0 | AW30: 0 | AX30: 0 | AY30: 0 | AZ30: 0 | BA30: 0 | BB30: 0 | BC30: 0 | BD30: 0 | BE30: 0 | BF30: 0 | BG30: 0 | BH30: 0 | BI30: 0 | BJ30: 0 | BK30: 0 | BL30: 0 | BM30: 0 | BO30: 4 | BP30: 51.6
A31: 1005 | B31: Fish & chip | C31: 12.9 | D31: 0 | E31: 0 | F31: 0 | G31: 0 | H31: 0 | I31: 0 | J31: 0 | K31: 0 | L31: 0 | M31: 0 | N31: 0 | O31: 0 | P31: 0 | Q31: 0 | R31: 0 | S31: 0 | T31: 0 | U31: 0 | V31: 0 | W31: 0 | X31: 0 | Y31: 0 | Z31: 0 | AA31: 0 | AB31: 0 | AC31: 0 | AD31: 0 | AE31: 0 | AF31: 0 | AG31: 0 | AH31: 0 | AI31: 0 | AJ31: 0 | AK31: 0 | AL31: 0 | AM31: 0 | AN31: 0 | AO31: 0 | AP31: 0 | AQ31: 0 | AR31: 0 | AS31: 0 | AT31: 1 | AU31: 12.9 | AV31: 0 | AW31: 0 | AX31: 0 | AY31: 0 | AZ31: 0 | BA31: 0 | BB31: 0 | BC31: 0 | BD31: 0 | BE31: 0 | BF31: 0 | BG31: 0 | BH31: 0 | BI31: 0 | BJ31: 0 | BK31: 0 | BL31: 0 | BM31: 0 | BO31: 1 | BP31: 12.9
A32: 1006 | B32: Spaghetti Bolognese | C32: 12.9 | D32: 0 | E32: 0 | F32: 0 | G32: 0 | H32: 1 | I32: 12.9 | J32: 0 | K32: 0 | L32: 0 | M32: 0 | N32: 0 | O32: 0 | P32: 0 | Q32: 0 | R32: 0 | S32: 0 | T32: 0 | U32: 0 | V32: 0 | W32: 0 | X32: 0 | Y32: 0 | Z32: 0 | AA32: 0 | AB32: 0 | AC32: 0 | AD32: 0 | AE32: 0 | AF32: 0 | AG32: 0 | AH32: 0 | AI32: 0 | AJ32: 0 | AK32: 0 | AL32: 0 | AM32: 0 | AN32: 0 | AO32: 0 | AP32: 0 | AQ32: 0 | AR32: 0 | AS32: 0 | AT32: 0 | AU32: 0 | AV32: 0 | AW32: 0 | AX32: 0 | AY32: 0 | AZ32: 0 | BA32: 0 | BB32: 0 | BC32: 0 | BD32: 0 | BE32: 0 | BF32: 0 | BG32: 0 | BH32: 0 | BI32: 0 | BJ32: 1 | BK32: 12.9 | BL32: 0 | BM32: 0 | BO32: 2 | BP32: 25.8
A33: 1007 | B33: Chicken Chop Salad | C33: 12.9 | D33: 0 | E33: 0 | F33: 0 | G33: 0 | H33: 0 | I33: 0 | J33: 0 | K33: 0 | L33: 0 | M33: 0 | N33: 0 | O33: 0 | P33: 0 | Q33: 0 | R33: 0 | S33: 0 | T33: 0 | U33: 0 | V33: 0 | W33: 0 | X33: 0 | Y33: 0 | Z33: 0 | AA33: 0 | AB33: 0 | AC33: 0 | AD33: 0 | AE33: 0 | AF33: 0 | AG33: 0 | AH33: 0 | AI33: 0 | AJ33: 0 | AK33: 0 | AL33: 0 | AM33: 0 | AN33: 0 | AO33: 0 | AP33: 0 | AQ33: 0 | AR33: 0 | AS33: 0 | AT33: 0 | AU33: 0 | AV33: 0 | AW33: 0 | AX33: 0 | AY33: 0 | AZ33: 0 | BA33: 0 | BB33: 0 | BC33: 0 | BD33: 0 | BE33: 0 | BF33: 0 | BG33: 0 | BH33: 0 | BI33: 0 | BJ33: 0 | BK33: 0 | BL33: 0 | BM33: 0 | BO33: 0 | BP33: 0
A34: 1201 | B34: Seafood Stick | C34: 5.9 | D34: 0 | E34: 0 | F34: 0 | G34: 0 | H34: 0 | I34: 0 | J34: 0 | K34: 0 | L34: 0 | M34: 0 | N34: 0 | O34: 0 | P34: 0 | Q34: 0 | R34: 0 | S34: 0 | T34: 0 | U34: 0 | V34: 0 | W34: 0 | X34: 0 | Y34: 0 | Z34: 0 | AA34: 0 | AB34: 0 | AC34: 0 | AD34: 0 | AE34: 0 | AF34: 0 | AG34: 0 | AH34: 0 | AI34: 0 | AJ34: 0 | AK34: 0 | AL34: 0 | AM34: 0 | AN34: 0 | AO34: 0 | AP34: 0 | AQ34: 0 | AR34: 0 | AS34: 0 | AT34: 0 | AU34: 0 | AV34: 0 | AW34: 0 | AX34: 0 | AY34: 0 | AZ34: 0 | BA34: 0 | BB34: 0 | BC34: 0 | BD34: 0 | BE34: 0 | BF34: 0 | BG34: 0 | BH34: 0 | BI34: 0 | BJ34: 0 | BK34: 0 | BL34: 0 | BM34: 0 | BO34: 0 | BP34: 0
A35: 1202 | B35: French Fries | C35: 5.9 | D35: 0 | E35: 0 | F35: 0 | G35: 0 | H35: 0 | I35: 0 | J35: 0 | K35: 0 | L35: 0 | M35: 0 | N35: 0 | O35: 0 | P35: 0 | Q35: 0 | R35: 0 | S35: 0 | T35: 0 | U35: 0 | V35: 0 | W35: 0 | X35: 0 | Y35: 0 | Z35: 0 | AA35: 0 | AB35: 0 | AC35: 0 | AD35: 0 | AE35: 0 | AF35: 0 | AG35: 0 | AH35: 0 | AI35: 0 | AJ35: 0 | AK35: 0 | AL35: 0 | AM35: 0 | AN35: 0 | AO35: 0 | AP35: 0 | AQ35: 0 | AR35: 0 | AS35: 0 | AT35: 0 | AU35: 0 | AV35: 0 | AW35: 0 | AX35: 0 | AY35: 0 | AZ35: 0 | BA35: 0 | BB35: 0 | BC35: 0 | BD35: 0 | BE35: 0 | BF35: 0 | BG35: 0 | BH35: 0 | BI35: 0 | BJ35: 0 | BK35: 0 | BL35: 0 | BM35: 0 | BO35: 0 | BP35: 0
A36: 1203 | B36: S/Pepper Golden Mushroom | C36: 5.9 | D36: 0 | E36: 0 | F36: 0 | G36: 0 | H36: 0 | I36: 0 | J36: 0 | K36: 0 | L36: 0 | M36: 0 | N36: 0 | O36: 0 | P36: 0 | Q36: 0 | R36: 0 | S36: 0 | T36: 0 | U36: 0 | V36: 0 | W36: 0 | X36: 0 | Y36: 0 | Z36: 0 | AA36: 0 | AB36: 0 | AC36: 0 | AD36: 0 | AE36: 0 | AF36: 0 | AG36: 0 | AH36: 0 | AI36: 0 | AJ36: 0 | AK36: 0 | AL36: 0 | AM36: 0 | AN36: 0 | AO36: 0 | AP36: 0 | AQ36: 0 | AR36: 0 | AS36: 0 | AT36: 0 | AU36: 0 | AV36: 0 | AW36: 0 | AX36: 0 | AY36: 0 | AZ36: 0 | BA36: 0 | BB36: 0 | BC36: 0 | BD36: 0 | BE36: 0 | BF36: 0 | BG36: 0 | BH36: 0 | BI36: 0 | BJ36: 0 | BK36: 0 | BL36: 0 | BM36: 0 | BO36: 0 | BP36: 0
A37: 1204 | B37: Fried Fish Ball | C37: 5.9 | D37: 0 | E37: 0 | F37: 0 | G37: 0 | H37: 0 | I37: 0 | J37: 0 | K37: 0 | L37: 0 | M37: 0 | N37: 0 | O37: 0 | P37: 0 | Q37: 0 | R37: 0 | S37: 0 | T37: 0 | U37: 0 | V37: 0 | W37: 0 | X37: 0 | Y37: 0 | Z37: 0 | AA37: 0 | AB37: 0 | AC37: 0 | AD37: 0 | AE37: 0 | AF37: 0 | AG37: 0 | AH37: 0 | AI37: 0 | AJ37: 0 | AK37: 0 | AL37: 0 | AM37: 0 | AN37: 0 | AO37: 0 | AP37: 0 | AQ37: 0 | AR37: 0 | AS37: 0 | AT37: 0 | AU37: 0 | AV37: 0 | AW37: 0 | AX37: 0 | AY37: 0 | AZ37: 0 | BA37: 0 | BB37: 0 | BC37: 0 | BD37: 0 | BE37: 0 | BF37: 0 | BG37: 0 | BH37: 0 | BI37: 0 | BJ37: 0 | BK37: 0 | BL37: 0 | BM37: 0 | BO37: 0 | BP37: 0
A38: 1205 | B38: Rainbow Roll | C38: 5.9 | D38: 0 | E38: 0 | F38: 0 | G38: 0 | H38: 0 | I38: 0 | J38: 0 | K38: 0 | L38: 0 | M38: 0 | N38: 0 | O38: 0 | P38: 0 | Q38: 0 | R38: 0 | S38: 0 | T38: 0 | U38: 0 | V38: 0 | W38: 0 | X38: 0 | Y38: 0 | Z38: 0 | AA38: 0 | AB38: 0 | AC38: 0 | AD38: 0 | AE38: 0 | AF38: 0 | AG38: 0 | AH38: 0 | AI38: 0 | AJ38: 0 | AK38: 0 | AL38: 0 | AM38: 0 | AN38: 0 | AO38: 0 | AP38: 0 | AQ38: 0 | AR38: 0 | AS38: 0 | AT38: 0 | AU38: 0 | AV38: 0 | AW38: 0 | AX38: 0 | AY38: 0 | AZ38: 0 | BA38: 0 | BB38: 0 | BC38: 0 | BD38: 0 | BE38: 0 | BF38: 0 | BG38: 0 | BH38: 0 | BI38: 0 | BJ38: 0 | BK38: 0 | BL38: 0 | BM38: 0 | BO38: 0 | BP38: 0
A39: 1206 | B39: Spring Roll | C39: 5.9 | D39: 0 | E39: 0 | F39: 0 | G39: 0 | H39: 0 | I39: 0 | J39: 0 | K39: 0 | L39: 0 | M39: 0 | N39: 0 | O39: 0 | P39: 0 | Q39: 0 | R39: 0 | S39: 0 | T39: 0 | U39: 0 | V39: 0 | W39: 0 | X39: 0 | Y39: 0 | Z39: 0 | AA39: 0 | AB39: 0 | AC39: 0 | AD39: 0 | AE39: 0 | AF39: 0 | AG39: 0 | AH39: 0 | AI39: 0 | AJ39: 0 | AK39: 0 | AL39: 0 | AM39: 0 | AN39: 0 | AO39: 0 | AP39: 0 | AQ39: 0 | AR39: 0 | AS39: 0 | AT39: 0 | AU39: 0 | AV39: 0 | AW39: 0 | AX39: 0 | AY39: 0 | AZ39: 0 | BA39: 0 | BB39: 0 | BC39: 0 | BD39: 0 | BE39: 0 | BF39: 0 | BG39: 0 | BH39: 0 | BI39: 0 | BJ39: 0 | BK39: 0 | BL39: 0 | BM39: 0 | BO39: 0 | BP39: 0
A40: 1207 | B40: Crispy Ckn Sausage | C40: 5.9 | D40: 0 | E40: 0 | F40: 0 | G40: 0 | H40: 0 | I40: 0 | J40: 0 | K40: 0 | L40: 0 | M40: 0 | N40: 0 | O40: 0 | P40: 0 | Q40: 0 | R40: 0 | S40: 0 | T40: 0 | U40: 0 | V40: 0 | W40: 0 | X40: 0 | Y40: 0 | Z40: 0 | AA40: 0 | AB40: 0 | AC40: 0 | AD40: 0 | AE40: 0 | AF40: 0 | AG40: 0 | AH40: 0 | AI40: 0 | AJ40: 0 | AK40: 0 | AL40: 0 | AM40: 0 | AN40: 0 | AO40: 0 | AP40: 0 | AQ40: 0 | AR40: 0 | AS40: 0 | AT40: 0 | AU40: 0 | AV40: 0 | AW40: 0 | AX40: 0 | AY40: 0 | AZ40: 0 | BA40: 0 | BB40: 0 | BC40: 0 | BD40: 0 | BE40: 0 | BF40: 0 | BG40: 0 | BH40: 0 | BI40: 0 | BJ40: 0 | BK40: 0 | BL40: 0 | BM40: 0 | BO40: 0 | BP40: 0
A41: 1301 | B41: Shanghai Guo Tie | C41: 7.9 | D41: 0 | E41: 0 | F41: 0 | G41: 0 | H41: 0 | I41: 0 | J41: 0 | K41: 0 | L41: 0 | M41: 0 | N41: 0 | O41: 0 | P41: 0 | Q41: 0 | R41: 0 | S41: 0 | T41: 0 | U41: 0 | V41: 0 | W41: 0 | X41: 0 | Y41: 0 | Z41: 0 | AA41: 0 | AB41: 0 | AC41: 0 | AD41: 0 | AE41: 0 | AF41: 0 | AG41: 0 | AH41: 0 | AI41: 0 | AJ41: 0 | AK41: 0 | AL41: 0 | AM41: 0 | AN41: 0 | AO41: 0 | AP41: 0 | AQ41: 0 | AR41: 0 | AS41: 0 | AT41: 0 | AU41: 0 | AV41: 0 | AW41: 0 | AX41: 0 | AY41: 0 | AZ41: 0 | BA41: 0 | BB41: 0 | BC41: 0 | BD41: 0 | BE41: 0 | BF41: 0 | BG41: 0 | BH41: 0 | BI41: 0 | BJ41: 0 | BK41: 0 | BL41: 0 | BM41: 0 | BO41: 0 | BP41: 0
A42: 1302 | B42: Chicken Nugget | C42: 7.9 | D42: 0 | E42: 0 | F42: 0 | G42: 0 | H42: 0 | I42: 0 | J42: 0 | K42: 0 | L42: 0 | M42: 0 | N42: 0 | O42: 0 | P42: 0 | Q42: 0 | R42: 0 | S42: 0 | T42: 0 | U42: 0 | V42: 0 | W42: 0 | X42: 0 | Y42: 0 | Z42: 0 | AA42: 0 | AB42: 0 | AC42: 0 | AD42: 0 | AE42: 0 | AF42: 0 | AG42: 0 | AH42: 0 | AI42: 0 | AJ42: 0 | AK42: 0 | AL42: 0 | AM42: 0 | AN42: 0 | AO42: 0 | AP42: 0 | AQ42: 0 | AR42: 0 | AS42: 0 | AT42: 0 | AU42: 0 | AV42: 0 | AW42: 0 | AX42: 0 | AY42: 0 | AZ42: 0 | BA42: 0 | BB42: 0 | BC42: 0 | BD42: 0 | BE42: 0 | BF42: 0 | BG42: 0 | BH42: 0 | BI42: 0 | BJ42: 0 | BK42: 0 | BL42: 0 | BM42: 0 | BO42: 0 | BP42: 0
A43: 1303 | B43: Ckn Wing | C43: 7.9 | D43: 0 | E43: 0 | F43: 0 | G43: 0 | H43: 0 | I43: 0 | J43: 0 | K43: 0 | L43: 0 | M43: 0 | N43: 0 | O43: 0 | P43: 0 | Q43: 0 | R43: 0 | S43: 0 | T43: 0 | U43: 0 | V43: 0 | W43: 0 | X43: 0 | Y43: 0 | Z43: 0 | AA43: 0 | AB43: 1 | AC43: 7.9 | AD43: 0 | AE43: 0 | AF43: 0 | AG43: 0 | AH43: 0 | AI43: 0 | AJ43: 0 | AK43: 0 | AL43: 0 | AM43: 0 | AN43: 0 | AO43: 0 | AP43: 0 | AQ43: 0 | AR43: 0 | AS43: 0 | AT43: 0 | AU43: 0 | AV43: 0 | AW43: 0 | AX43: 0 | AY43: 0 | AZ43: 0 | BA43: 0 | BB43: 0 | BC43: 0 | BD43: 0 | BE43: 0 | BF43: 0 | BG43: 0 | BH43: 0 | BI43: 0 | BJ43: 0 | BK43: 0 | BL43: 0 | BM43: 0 | BO43: 1 | BP43: 7.9
A44: 1304 | B44: Hot & Spicy Achiovice | C44: 7.9 | D44: 0 | E44: 0 | F44: 0 | G44: 0 | H44: 0 | I44: 0 | J44: 0 | K44: 0 | L44: 0 | M44: 0 | N44: 0 | O44: 0 | P44: 0 | Q44: 0 | R44: 0 | S44: 0 | T44: 0 | U44: 0 | V44: 0 | W44: 0 | X44: 0 | Y44: 0 | Z44: 0 | AA44: 0 | AB44: 0 | AC44: 0 | AD44: 0 | AE44: 0 | AF44: 0 | AG44: 0 | AH44: 0 | AI44: 0 | AJ44: 0 | AK44: 0 | AL44: 1 | AM44: 7.9 | AN44: 0 | AO44: 0 | AP44: 0 | AQ44: 0 | AR44: 0 | AS44: 0 | AT44: 0 | AU44: 0 | AV44: 0 | AW44: 0 | AX44: 0 | AY44: 0 | AZ44: 0 | BA44: 0 | BB44: 0 | BC44: 0 | BD44: 0 | BE44: 0 | BF44: 0 | BG44: 0 | BH44: 0 | BI44: 0 | BJ44: 0 | BK44: 0 | BL44: 0 | BM44: 0 | BO44: 1 | BP44: 7.9
A45: 1305 | B45: Crispy Thai Roll | C45: 7.9 | D45: 0 | E45: 0 | F45: 0 | G45: 0 | H45: 0 | I45: 0 | J45: 0 | K45: 0 | L45: 0 | M45: 0 | N45: 0 | O45: 0 | P45: 0 | Q45: 0 | R45: 0 | S45: 0 | T45: 0 | U45: 0 | V45: 0 | W45: 0 | X45: 0 | Y45: 0 | Z45: 0 | AA45: 0 | AB45: 0 | AC45: 0 | AD45: 0 | AE45: 0 | AF45: 0 | AG45: 0 | AH45: 0 | AI45: 0 | AJ45: 0 | AK45: 0 | AL45: 0 | AM45: 0 | AN45: 1 | AO45: 7.9 | AP45: 0 | AQ45: 0 | AR45: 0 | AS45: 0 | AT45: 0 | AU45: 0 | AV45: 0 | AW45: 0 | AX45: 0 | AY45: 0 | AZ45: 0 | BA45: 0 | BB45: 0 | BC45: 0 | BD45: 0 | BE45: 0 | BF45: 0 | BG45: 0 | BH45: 0 | BI45: 0 | BJ45: 0 | BK45: 0 | BL45: 0 | BM45: 0 | BO45: 1 | BP45: 7.9
A46: 1306 | B46: S/Pepper Silver Fish | C46: 7.9 | D46: 0 | E46: 0 | F46: 0 | G46: 0 | H46: 0 | I46: 0 | J46: 0 | K46: 0 | L46: 0 | M46: 0 | N46: 0 | O46: 0 | P46: 0 | Q46: 0 | R46: 0 | S46: 0 | T46: 0 | U46: 0 | V46: 0 | W46: 0 | X46: 0 | Y46: 0 | Z46: 0 | AA46: 0 | AB46: 0 | AC46: 0 | AD46: 0 | AE46: 0 | AF46: 0 | AG46: 0 | AH46: 0 | AI46: 0 | AJ46: 0 | AK46: 0 | AL46: 0 | AM46: 0 | AN46: 0 | AO46: 0 | AP46: 0 | AQ46: 0 | AR46: 0 | AS46: 0 | AT46: 0 | AU46: 0 | AV46: 0 | AW46: 0 | AX46: 0 | AY46: 0 | AZ46: 0 | BA46: 0 | BB46: 0 | BC46: 0 | BD46: 0 | BE46: 0 | BF46: 0 | BG46: 0 | BH46: 0 | BI46: 0 | BJ46: 0 | BK46: 0 | BL46: 0 | BM46: 0 | BO46: 0 | BP46: 0
A47: 1307 | B47: Deep Fried Chicken Wing | C47: 7.9 | D47: 0 | E47: 0 | F47: 0 | G47: 0 | H47: 0 | I47: 0 | J47: 0 | K47: 0 | L47: 0 | M47: 0 | N47: 0 | O47: 0 | P47: 0 | Q47: 0 | R47: 0 | S47: 0 | T47: 0 | U47: =T47*C47 -> 0 | V47: 0 | W47: 0 | X47: 0 | Y47: 0 | Z47: 0 | AA47: 0 | AB47: 0 | AC47: 0 | AD47: 0 | AE47: 0 | AF47: 0 | AG47: 0 | AH47: 0 | AI47: 0 | AJ47: 0 | AK47: 0 | AL47: 0 | AM47: 0 | AN47: 0 | AO47: 0 | AP47: 0 | AQ47: 0 | AR47: 0 | AS47: 0 | AT47: 0 | AU47: 0 | AV47: 0 | AW47: 0 | AX47: 0 | AY47: 0 | AZ47: 0 | BA47: 0 | BB47: 0 | BC47: 0 | BD47: 0 | BE47: 0 | BF47: 0 | BG47: 0 | BH47: 0 | BI47: 0 | BJ47: 0 | BK47: 0 | BL47: 0 | BM47: 0 | BO47: 0 | BP47: 0
A48: 1308 | B48: Crunchy Calamari Ring | C48: 7.9 | D48: 0 | E48: 0 | F48: 0 | G48: 0 | H48: 0 | I48: 0 | J48: 0 | K48: 0 | L48: 0 | M48: 0 | N48: 0 | O48: 0 | P48: 0 | Q48: 0 | R48: 0 | S48: 0 | T48: 0 | U48: =T48*C48 -> 0 | V48: 0 | W48: 0 | X48: 0 | Y48: 0 | Z48: 0 | AA48: 0 | AB48: 0 | AC48: 0 | AD48: 0 | AE48: 0 | AF48: 0 | AG48: 0 | AH48: 0 | AI48: 0 | AJ48: 0 | AK48: 0 | AL48: 0 | AM48: 0 | AN48: 0 | AO48: 0 | AP48: 0 | AQ48: 0 | AR48: 0 | AS48: 0 | AT48: 0 | AU48: 0 | AV48: 0 | AW48: 0 | AX48: 0 | AY48: 0 | AZ48: 0 | BA48: 0 | BB48: 0 | BC48: 0 | BD48: 0 | BE48: 0 | BF48: 0 | BG48: 0 | BH48: 0 | BI48: 0 | BJ48: 0 | BK48: 0 | BL48: 0 | BM48: 0 | BO48: 0 | BP48: 0
A49: 1309 | B49: Mccain Breaded Onion Ring | C49: 7.9 | D49: 0 | E49: 0 | F49: 0 | G49: 0 | H49: 0 | I49: 0 | J49: 0 | K49: 0 | L49: 0 | M49: 0 | N49: 0 | O49: 0 | P49: 0 | Q49: 0 | R49: 0 | S49: 0 | T49: 0 | U49: =T49*C49 -> 0 | V49: 0 | W49: 0 | X49: 0 | Y49: 0 | Z49: 0 | AA49: 0 | AB49: 0 | AC49: 0 | AD49: 0 | AE49: 0 | AF49: 0 | AG49: 0 | AH49: 0 | AI49: 0 | AJ49: 0 | AK49: 0 | AL49: 0 | AM49: 0 | AN49: 0 | AO49: 0 | AP49: 0 | AQ49: 0 | AR49: 0 | AS49: 0 | AT49: 0 | AU49: 0 | AV49: 0 | AW49: 0 | AX49: 0 | AY49: 0 | AZ49: 0 | BA49: 0 | BB49: 0 | BC49: 0 | BD49: 0 | BE49: 0 | BF49: 0 | BG49: 0 | BH49: 0 | BI49: 0 | BJ49: 0 | BK49: 0 | BL49: 0 | BM49: 0 | BO49: 0 | BP49: 0
A50: 1310 | B50: Mccain Spiral Fries | C50: 7.9 | D50: 0 | E50: 0 | F50: 0 | G50: 0 | H50: 0 | I50: 0 | J50: 0 | K50: 0 | L50: 0 | M50: 0 | N50: 0 | O50: 0 | P50: 0 | Q50: 0 | R50: 0 | S50: 0 | T50: 0 | U50: =T50*E50 -> 0 | V50: 0 | W50: 0 | X50: 0 | Y50: 0 | Z50: 0 | AA50: 0 | AB50: 0 | AC50: 0 | AD50: 0 | AE50: 0 | AF50: 0 | AG50: 0 | AH50: 0 | AI50: 0 | AJ50: 0 | AK50: 0 | AL50: 0 | AM50: 0 | AN50: 0 | AO50: 0 | AP50: 0 | AQ50: 0 | AR50: 0 | AS50: 0 | AT50: 0 | AU50: 0 | AV50: 0 | AW50: 0 | AX50: 0 | AY50: 0 | AZ50: 0 | BA50: 0 | BB50: 0 | BC50: 0 | BD50: 0 | BE50: 0 | BF50: 0 | BG50: 0 | BH50: 0 | BI50: 0 | BJ50: 0 | BK50: 0 | BL50: 0 | BM50: 0 | BO50: 0 | BP50: 0
A51: 1311 | B51: Mccain Happy Crispy Smiles | C51: 7.9 | D51: 0 | E51: 0 | F51: 0 | G51: 0 | H51: 0 | I51: 0 | J51: 0 | K51: 0 | L51: 0 | M51: 0 | N51: 0 | O51: 0 | P51: 0 | Q51: 0 | R51: 0 | S51: 0 | T51: 0 | U51: =T51*C51 -> 0 | V51: 0 | W51: 0 | X51: 0 | Y51: 0 | Z51: 0 | AA51: 0 | AB51: 0 | AC51: 0 | AD51: 0 | AE51: 0 | AF51: 0 | AG51: 0 | AH51: 0 | AI51: 0 | AJ51: 0 | AK51: 0 | AL51: 0 | AM51: 0 | AN51: 0 | AO51: 0 | AP51: 0 | AQ51: 0 | AR51: 0 | AS51: 0 | AT51: 0 | AU51: 0 | AV51: 0 | AW51: 0 | AX51: 0 | AY51: 0 | AZ51: 0 | BA51: 0 | BB51: 0 | BC51: 0 | BD51: 0 | BE51: 0 | BF51: 0 | BG51: 0 | BH51: 0 | BI51: 0 | BJ51: 0 | BK51: 0 | BL51: 0 | BM51: 0 | BO51: 0 | BP51: 0
A52: 1312 | B52: Mccain Mini Hash Brown | C52: 7.9 | D52: 0 | E52: 0 | F52: 0 | G52: 0 | H52: 0 | I52: 0 | J52: 0 | K52: 0 | L52: 0 | M52: 0 | N52: 0 | O52: 0 | P52: 0 | Q52: 0 | R52: 0 | S52: 0 | T52: 0 | U52: =T52*C52 -> 0 | V52: 0 | W52: 0 | X52: 0 | Y52: 0 | Z52: 0 | AA52: 0 | AB52: 0 | AC52: 0 | AD52: 0 | AE52: 0 | AF52: 0 | AG52: 0 | AH52: 0 | AI52: 0 | AJ52: 0 | AK52: 0 | AL52: 0 | AM52: 0 | AN52: 0 | AO52: 0 | AP52: 0 | AQ52: 0 | AR52: 0 | AS52: 0 | AT52: 0 | AU52: 0 | AV52: 0 | AW52: 0 | AX52: 0 | AY52: 0 | AZ52: 0 | BA52: 0 | BB52: 0 | BC52: 0 | BD52: 0 | BE52: 0 | BF52: 0 | BG52: 0 | BH52: 0 | BI52: 0 | BJ52: 0 | BK52: 0 | BL52: 0 | BM52: 0 | BO52: 0 | BP52: 0
A53: 3001 | B53: 6' Hawaiian Pizza | C53: 12.9 | D53: 0 | E53: =D53*C53 -> 0 | F53: 0 | G53: =F53*C53 -> 0 | H53: 0 | I53: 0 | J53: 0 | K53: =J53*C53 -> 0 | L53: 0 | M53: 0 | N53: 0 | O53: 0 | P53: 0 | Q53: 0 | R53: 0 | S53: 0 | T53: 0 | U53: 0 | V53: 0 | W53: 0 | X53: 0 | Y53: 0 | Z53: 0 | AA53: 0 | AB53: 0 | AC53: 0 | AD53: 0 | AE53: 0 | AF53: 0 | AG53: 0 | AH53: 0 | AI53: =AH53*AG53 -> 0 | AJ53: 0 | AK53: 0 | AL53: 0 | AM53: 0 | AN53: 0 | AO53: 0 | AP53: 0 | AQ53: 0 | AR53: 0 | AS53: 0 | AT53: 0 | AU53: 0 | AV53: 0 | AW53: 0 | AX53: 0 | AY53: 0 | AZ53: 0 | BA53: 0 | BB53: 0 | BC53: 0 | BD53: 0 | BE53: 0 | BF53: 0 | BG53: 0 | BH53: 0 | BI53: =BH53*C53 -> 0 | BJ53: 0 | BK53: 0 | BL53: 0 | BM53: 0 | BO53: 0 | BP53: 0
A54: 3002 | B54: 6' Smoke BBQ Pizza | C54: 12.9 | D54: 0 | E54: =D54*C54 -> 0 | F54: 0 | G54: =F54*C54 -> 0 | H54: 0 | I54: 0 | J54: 0 | K54: =J54*C54 -> 0 | L54: 0 | M54: 0 | N54: 0 | O54: 0 | P54: 0 | Q54: 0 | R54: 0 | S54: 0 | T54: 0 | U54: 0 | V54: 0 | W54: 0 | X54: 0 | Y54: 0 | Z54: 0 | AA54: 0 | AB54: 0 | AC54: 0 | AD54: 0 | AE54: 0 | AF54: 0 | AG54: 0 | AH54: 0 | AI54: 0 | AJ54: 0 | AK54: 0 | AL54: 0 | AM54: 0 | AN54: 0 | AO54: 0 | AP54: 0 | AQ54: 0 | AR54: 0 | AS54: 0 | AT54: 0 | AU54: 0 | AV54: 0 | AW54: 0 | AX54: 0 | AY54: 0 | AZ54: 0 | BA54: 0 | BB54: 0 | BC54: 0 | BD54: 0 | BE54: 0 | BF54: 0 | BG54: 0 | BH54: 0 | BI54: =BH54*C54 -> 0 | BJ54: 0 | BK54: 0 | BL54: 0 | BM54: 0 | BO54: 0 | BP54: 0
A55: 3003 | B55: 6' Seafood Pizza | C55: 12.9 | D55: 0 | E55: 0 | F55: 0 | G55: 0 | H55: 0 | I55: 0 | J55: 0 | K55: 0 | L55: 0 | M55: 0 | N55: 0 | O55: =N55*C55 -> 0 | P55: 0 | Q55: 0 | R55: 0 | S55: 0 | T55: 0 | U55: 0 | V55: 0 | W55: 0 | X55: 0 | Y55: 0 | Z55: 0 | AA55: 0 | AB55: 0 | AC55: 0 | AD55: 0 | AE55: 0 | AF55: 0 | AG55: 0 | AH55: 0 | AI55: 0 | AJ55: 0 | AK55: 0 | AL55: 0 | AM55: 0 | AN55: 0 | AO55: 0 | AP55: 0 | AQ55: 0 | AR55: 0 | AS55: 0 | AT55: 0 | AU55: 0 | AV55: 0 | AW55: 0 | AX55: 0 | AY55: 0 | AZ55: 0 | BA55: 0 | BB55: 0 | BC55: 0 | BD55: 0 | BE55: 0 | BF55: 0 | BG55: 0 | BH55: 0 | BI55: 0 | BJ55: 0 | BK55: 0 | BL55: 0 | BM55: 0 | BO55: 0 | BP55: 0
A56: 3004 | B56: 6' Spicy Buf Pizza | C56: 12.9 | D56: 0 | E56: 0 | F56: 0 | G56: 0 | H56: 0 | I56: 0 | J56: 0 | K56: 0 | L56: 0 | M56: 0 | N56: 0 | O56: =N56*C56 -> 0 | P56: 0 | Q56: 0 | R56: 0 | S56: 0 | T56: 0 | U56: 0 | V56: 0 | W56: 0 | X56: 0 | Y56: 0 | Z56: 0 | AA56: 0 | AB56: 0 | AC56: 0 | AD56: 0 | AE56: 0 | AF56: 0 | AG56: 0 | AH56: 0 | AI56: 0 | AJ56: 0 | AK56: 0 | AL56: 0 | AM56: 0 | AN56: 0 | AO56: 0 | AP56: 0 | AQ56: 0 | AR56: 0 | AS56: 0 | AT56: 0 | AU56: 0 | AV56: 0 | AW56: 0 | AX56: 0 | AY56: 0 | AZ56: 0 | BA56: 0 | BB56: 0 | BC56: 0 | BD56: 0 | BE56: 0 | BF56: 0 | BG56: 0 | BH56: 0 | BI56: 0 | BJ56: 0 | BK56: 0 | BL56: 0 | BM56: 0 | BO56: 0 | BP56: 0
A57: 3005 | B57: 6' Veggie | C57: 12.9 | D57: 0 | E57: 0 | F57: 0 | G57: 0 | H57: 0 | I57: 0 | J57: 0 | K57: 0 | L57: 0 | M57: 0 | N57: 0 | O57: 0 | P57: 0 | Q57: 0 | R57: 0 | S57: 0 | T57: 0 | U57: 0 | V57: 0 | W57: 0 | X57: 0 | Y57: 0 | Z57: 0 | AA57: 0 | AB57: 0 | AC57: 0 | AD57: 0 | AE57: 0 | AF57: 0 | AG57: 0 | AH57: 0 | AI57: 0 | AJ57: 0 | AK57: 0 | AL57: 0 | AM57: 0 | AN57: 0 | AO57: 0 | AP57: 0 | AQ57: 0 | AR57: 0 | AS57: 0 | AT57: 0 | AU57: 0 | AV57: 0 | AW57: 0 | AX57: 0 | AY57: 0 | AZ57: 0 | BA57: 0 | BB57: 0 | BC57: 0 | BD57: 0 | BE57: 0 | BF57: 0 | BG57: 0 | BH57: 0 | BI57: 0 | BJ57: 0 | BK57: 0 | BL57: 0 | BM57: 0 | BO57: 0 | BP57: 0
A58: 3001 | B58: 9' Hawaiian Pizza | C58: 16.9 | D58: 0 | E58: 0 | F58: 0 | G58: 0 | H58: 0 | I58: 0 | J58: 0 | K58: 0 | L58: 0 | M58: 0 | N58: 0 | O58: 0 | P58: 0 | Q58: 0 | R58: 0 | S58: 0 | T58: 0 | U58: 0 | V58: 0 | W58: 0 | X58: 0 | Y58: 0 | Z58: 0 | AA58: 0 | AB58: 0 | AC58: 0 | AD58: 0 | AE58: 0 | AF58: 0 | AG58: 0 | AH58: 0 | AI58: 0 | AJ58: 0 | AK58: 0 | AL58: 0 | AM58: 0 | AN58: 0 | AO58: 0 | AP58: 0 | AQ58: 0 | AR58: 0 | AS58: 0 | AT58: 0 | AU58: 0 | AV58: 0 | AW58: 0 | AX58: 0 | AY58: 0 | AZ58: 0 | BA58: 0 | BB58: 0 | BC58: 0 | BD58: 0 | BE58: 0 | BF58: 0 | BG58: 0 | BH58: 0 | BI58: 0 | BJ58: 0 | BK58: 0 | BL58: 0 | BM58: 0 | BO58: 0 | BP58: 0
A59: 3002 | B59: 9' Smoke BBQ Pizza | C59: 16.9 | D59: 0 | E59: 0 | F59: 0 | G59: 0 | H59: 0 | I59: 0 | J59: 0 | K59: 0 | L59: 0 | M59: 0 | N59: 0 | O59: 0 | P59: 0 | Q59: 0 | R59: 0 | S59: 0 | T59: 0 | U59: 0 | V59: 0 | W59: 0 | X59: 0 | Y59: 0 | Z59: 0 | AA59: 0 | AB59: 0 | AC59: 0 | AD59: 0 | AE59: 0 | AF59: 0 | AG59: 0 | AH59: 0 | AI59: 0 | AJ59: 0 | AK59: 0 | AL59: 0 | AM59: 0 | AN59: 0 | AO59: 0 | AP59: 0 | AQ59: 0 | AR59: 0 | AS59: 0 | AT59: 0 | AU59: 0 | AV59: 0 | AW59: 0 | AX59: 0 | AY59: 0 | AZ59: 0 | BA59: 0 | BB59: 0 | BC59: 0 | BD59: 0 | BE59: 0 | BF59: 0 | BG59: 0 | BH59: 0 | BI59: 0 | BJ59: 0 | BK59: 0 | BL59: 0 | BM59: 0 | BO59: 0 | BP59: 0
A60: 3003 | B60: 9' Seafood Pizza | C60: 16.9 | D60: 0 | E60: 0 | F60: 0 | G60: 0 | H60: 0 | I60: 0 | J60: 0 | K60: 0 | L60: 0 | M60: 0 | N60: 0 | O60: 0 | P60: 0 | Q60: 0 | R60: 0 | S60: 0 | T60: 0 | U60: 0 | V60: 0 | W60: 0 | X60: 0 | Y60: 0 | Z60: 0 | AA60: 0 | AB60: 0 | AC60: 0 | AD60: 0 | AE60: 0 | AF60: 0 | AG60: 0 | AH60: 0 | AI60: 0 | AJ60: 0 | AK60: 0 | AL60: 0 | AM60: 0 | AN60: 0 | AO60: 0 | AP60: 0 | AQ60: 0 | AR60: 0 | AS60: 0 | AT60: 0 | AU60: 0 | AV60: 0 | AW60: 0 | AX60: 0 | AY60: 0 | AZ60: 0 | BA60: 0 | BB60: 0 | BC60: 0 | BD60: 0 | BE60: 0 | BF60: 0 | BG60: 0 | BH60: 0 | BI60: 0 | BJ60: 0 | BK60: 0 | BL60: 0 | BM60: 0 | BO60: 0 | BP60: 0
A61: 3004 | B61: 9' Spicy Buf Pizza | C61: 16.9 | D61: 0 | E61: 0 | F61: 0 | G61: 0 | H61: 0 | I61: 0 | J61: 0 | K61: 0 | L61: 0 | M61: 0 | N61: 0 | O61: 0 | P61: 0 | Q61: 0 | R61: 0 | S61: 0 | T61: 0 | U61: 0 | V61: 0 | W61: 0 | X61: 0 | Y61: 0 | Z61: 0 | AA61: 0 | AB61: 0 | AC61: 0 | AD61: 0 | AE61: 0 | AF61: 0 | AG61: 0 | AH61: 0 | AI61: 0 | AJ61: 0 | AK61: 0 | AL61: 0 | AM61: 0 | AN61: 0 | AO61: 0 | AP61: 0 | AQ61: 0 | AR61: 0 | AS61: 0 | AT61: 0 | AU61: 0 | AV61: 0 | AW61: 0 | AX61: 0 | AY61: 0 | AZ61: 0 | BA61: 0 | BB61: 0 | BC61: 0 | BD61: 0 | BE61: 0 | BF61: 0 | BG61: 0 | BH61: 0 | BI61: 0 | BJ61: 0 | BK61: 0 | BL61: 0 | BM61: 0 | BO61: 0 | BP61: 0
A62: 3005 | B62: 9' Veggie | C62: 16.9 | D62: 0 | E62: 0 | F62: 0 | G62: 0 | H62: 0 | I62: 0 | J62: 0 | K62: 0 | L62: 0 | M62: 0 | N62: 0 | O62: 0 | P62: 0 | Q62: 0 | R62: 0 | S62: 0 | T62: 0 | U62: 0 | V62: 0 | W62: 0 | X62: 0 | Y62: 0 | Z62: 0 | AA62: 0 | AB62: 0 | AC62: 0 | AD62: 0 | AE62: 0 | AF62: 0 | AG62: 0 | AH62: 0 | AI62: 0 | AJ62: 0 | AK62: 0 | AL62: 0 | AM62: 0 | AN62: 0 | AO62: 0 | AP62: 0 | AQ62: 0 | AR62: 0 | AS62: 0 | AT62: 0 | AU62: 0 | AV62: 0 | AW62: 0 | AX62: 0 | AY62: 0 | AZ62: 0 | BA62: 0 | BB62: 0 | BC62: 0 | BD62: 0 | BE62: 0 | BF62: 0 | BG62: 0 | BH62: 0 | BI62: 0 | BJ62: 0 | BK62: 0 | BL62: 0 | BM62: 0 | BO62: 0 | BP62: 0
B63: McCain AlaCarte | C63: 16.9 | D63: 0 | E63: 0 | F63: 0 | G63: 0 | H63: 0 | I63: 0 | J63: 0 | K63: 0 | L63: 0 | M63: 0 | N63: 0 | O63: 0 | P63: 0 | Q63: 0 | R63: 0 | S63: 0 | T63: 0 | U63: 0 | V63: 0 | W63: 0 | X63: 0 | Y63: 0 | Z63: 0 | AA63: 0 | AB63: 0 | AC63: 0 | AD63: 0 | AE63: 0 | AF63: 0 | AG63: 0 | AH63: 0 | AI63: 0 | AJ63: 0 | AK63: 0 | AL63: 0 | AM63: 0 | AN63: 0 | AO63: 0 | AP63: 0 | AQ63: 0 | AR63: 0 | AS63: 0 | AT63: 0 | AU63: 0 | AV63: 0 | AW63: 0 | AX63: 0 | AY63: 0 | AZ63: 0 | BA63: 0 | BB63: 0 | BC63: 0 | BD63: 0 | BE63: 0 | BF63: 0 | BG63: 0 | BH63: 0 | BI63: 0 | BJ63: 0 | BK63: 0 | BL63: 0 | BM63: 0 | BO63: 0 | BP63: 0
B64: McCain Beer Platter | C64: 12.9 | D64: 0 | E64: 0 | F64: 0 | G64: 0 | H64: 0 | I64: 0 | J64: 0 | K64: 0 | L64: 0 | M64: 0 | N64: 0 | O64: 0 | P64: 0 | Q64: 0 | R64: 0 | S64: 0 | T64: 0 | U64: 0 | V64: 0 | W64: 0 | X64: 0 | Y64: 0 | Z64: 0 | AA64: 0 | AB64: 0 | AC64: 0 | AD64: 0 | AE64: 0 | AF64: 0 | AG64: 0 | AH64: 0 | AI64: 0 | AJ64: 0 | AK64: 0 | AL64: 0 | AM64: 0 | AN64: 0 | AO64: 0 | AP64: 0 | AQ64: 0 | AR64: 0 | AS64: 0 | AT64: 0 | AU64: 0 | AV64: 0 | AW64: 0 | AX64: 0 | AY64: 0 | AZ64: 0 | BA64: 0 | BB64: 0 | BC64: 0 | BD64: 0 | BE64: 0 | BF64: 0 | BG64: 0 | BH64: 0 | BI64: 0 | BJ64: 0 | BK64: 0 | BL64: 0 | BM64: 0 | BO64: 0 | BP64: 0
B66: Total Foc | C66: - | D66: =SUM(D9:D64) -> 0 | E66: 0 | F66: 0 | G66: 0 | H66: 1 | I66: 12.9 | J66: 0 | K66: 0 | L66: 0 | M66: 0 | N66: 0 | O66: 0 | P66: 0 | Q66: 0 | R66: 1 | S66: 12.9 | T66: 2 | U66: 25.8 | V66: 1 | W66: 12.9 | X66: 0 | Y66: 0 | Z66: 0 | AA66: 0 | AB66: 2 | AC66: 20.8 | AD66: 0 | AE66: 0 | AF66: 0 | AG66: 0 | AH66: 3 | AI66: 35.7 | AJ66: =SUM(AJ9:AJ64) -> 0 | AK66: 0 | AL66: 1 | AM66: 7.9 | AN66: 2 | AO66: 20.8 | AP66: 0 | AQ66: 0 | AR66: 0 | AS66: 0 | AT66: 1 | AU66: 12.9 | AV66: 0 | AW66: 0 | AX66: 0 | AY66: 0 | AZ66: 0 | BA66: 0 | BB66: 0 | BC66: 0 | BD66: 0 | BE66: 0 | BF66: 0 | BG66: 0 | BH66: 0 | BI66: 0 | BJ66: 1 | BK66: 12.9 | BL66: 0 | BM66: 0 | BO66: =SUM(BO9:BO64) -> 15 | BP66: =SUM(BP9:BP65) -> 175.5

Sheet SAUCE USAGE
A1: MONTHLY SERVINGS: SAUCE
A3: =+'[4]K-LUNCH & K DINNER'!A3 -> Outlet : | B3: =+'K-LUNCH & K DINNER'!B3 -> CCS OUTLET
A4: =+'[4]K-LUNCH & K DINNER'!A4 -> Month : | B4: =+'[4]K-LUNCH & K DINNER'!B4 -> 2013-05-01
D7: FROM SYSTEM | G7: FROM SYSTEM | J7: USAGE
A8: NO | B8: Item | C8: COST | D8: SERVINGS | F8: Item | G8: SERVINGS | H8: TOTAL | J8: MATERIAL | K8: RECIPE | L8: TOTAL | M8: TOTAL COST
C9: RM | D9: Q | G9: Q | H9: Q | J9: Q | K9: GRAM | L9: GRAM | M9: RM
B10: REQUEST BY CUSTOMERS | J10: ALL PORTION DECREASED BY 10 GRAM
A11: 1 | B11: DF03 ADD SAUCE 1000 | C11: 0.0108 | D11: =VLOOKUP(B11,Summary!$B$30:$AK$464,5,FALSE) -> 8 | H11: =+G11+D11 -> 8 | J11: DRESSING THOUSAND ISLAND | K11: 55 | L11: =+K11*H11 -> 440 | M11: =+L11*C11 -> 4.752
A12: =+A11+1 -> 2 | B12: DF04 ADD SAUCE BOLO | C12: 0.0114 | D12: =VLOOKUP(B12,Summary!$B$30:$AK$464,5,FALSE) -> 1 | H12: 1 | J12: BOLOGNESE SAUCE | K12: 140 | L12: =+K12*H12 -> 140 | M12: 1.596
A13: =+A12+1 -> 3 | B13: DF05 ADD SAUCE BP | C13: 0.003 | D13: =VLOOKUP(B13,Summary!$B$30:$AK$464,5,FALSE) -> 1 | H13: 1 | J13: BLACK PEPPER SAUCE | K13: 80 | L13: 80 | M13: 0.24
A14: 4 | B14: DF06 ADD SAUCE BUTTER | C14: 0.0059 | D14: =VLOOKUP(B14,Summary!$B$30:$AK$464,5,FALSE) -> 0 | H14: 0 | J14: BUTTER CREAM SAUCE | K14: 65 | L14: 0 | M14: 0
A15: 5 | B15: DF07 ADD SAUCE C.PADI | C15: =0.13/30 -> 0.004333333333 | D15: =VLOOKUP(B15,Summary!$B$30:$AK$464,5,FALSE) -> 32 | H15: 32 | J15: SAUCE CHILLI (KIMBALL) | K15: 20 | L15: 640 | M15: =+L15*C15 -> 2.773333333
A16: 6 | B16: DF08 ADD SAUCE GS | C16: 0.0033 | D16: =VLOOKUP(B16,Summary!$B$30:$AK$464,5,FALSE) -> 0 | H16: 0 | J16: GRAVY SAUCE | K16: 80 | L16: 0 | M16: 0
A17: 7 | B17: DF09 ADD SAUCE MAYO | C17: 0.0063 | D17: =VLOOKUP(B17,Summary!$B$30:$AK$464,5,FALSE) -> 82 | H17: 82 | J17: MAYONNAISE | K17: 70 | L17: 5740 | M17: 36.162
A18: 8 | B18: DF10 ADD SAUCE MMITE | C18: 0.002 | D18: =VLOOKUP(B18,Summary!$B$30:$AK$464,5,FALSE) -> 1 | H18: 1 | J18: MARMITE SAUCE | K18: 70 | L18: 70 | M18: 0.14
A19: 9 | B19: DF11 ADD SAUCE MR | C19: 0.0068 | D19: =VLOOKUP(B19,Summary!$B$30:$AK$464,5,FALSE) -> 13 | H19: 13 | J19: MUSHROOM SAUCE | K19: 80 | L19: 1040 | M19: 7.072
A20: 10 | B20: DF12 ADD SAUCE SAMBAL | C20: 0.00825 | D20: =VLOOKUP(B20,Summary!$B$30:$AK$464,5,FALSE) -> 9 | H20: 9 | J20: SAMBAL SAUCE (NASI) | K20: 110 | L20: 990 | M20: 8.1675
A21: 11 | B21: DF13 ADD SAUCE THAI | C21: =0.27/38 -> 0.007105263158 | D21: =VLOOKUP(B21,Summary!$B$30:$AK$464,5,FALSE) -> 1 | H21: 1 | J21: THAI SAUCE | K21: 65 | L21: 65 | M21: 0.4618421053
A22: 12 | B22: DF14 ADD SAUCE TOMATO | C22: 0.0035 | D22: =VLOOKUP(B22,Summary!$B$30:$AK$464,5,FALSE) -> 101 | H22: 101 | J22: TOMATO SAUCE ( KIMBALL ) | K22: 20 | L22: 2020 | M22: 7.07
A23: 13 | B23: DF15 ADD TATA SAUCE | C23: 0.0124 | D23: =VLOOKUP(B23,Summary!$B$30:$AK$464,5,FALSE) -> 11 | H23: 11 | J23: TARTAR SAUCE | K23: 28 | L23: 308 | M23: 3.8192
A24: 14 | B24: DF16 ADD SAUCE CHEES | D24: =VLOOKUP(B24,Summary!$B$30:$AK$464,5,FALSE) -> 0 | H24: 0 | J24: NACHO CHEESE DIP | K24: 70 | L24: 0 | M24: 0
B25: KLKD
A26: 15 | B26: DH01 91101:THAI CHK | C26: =0.27/38 -> 0.007105263158 | D26: =VLOOKUP(B26,Summary!$B$30:$AK$464,5,FALSE) -> 101 | H26: =+G26+D26 -> 101 | J26: THAI SAUCE | K26: 75 | L26: =+K26*H26 -> 7575 | M26: =+L26*C26 -> 53.82236842
A27: =+A26+1 -> 16 | B27: DH02 91102:MAMITE CHK | C27: 0.002 | D27: =VLOOKUP(B27,Summary!$B$30:$AK$464,5,FALSE) -> 156 | H27: =+G27+D27 -> 156 | J27: MARMITE SAUCE | K27: 80 | L27: =+K27*H27 -> 12480 | M27: =+L27*C27 -> 24.96
A28: =+A27+1 -> 17 | B28: DH03 91103:KO PO CHK | C28: 0.0015 | D28: =VLOOKUP(B28,Summary!$B$30:$AK$464,5,FALSE) -> 0 | H28: 0 | J28: KONG PO SAUCE | K28: 180 | L28: 0 | M28: 0
A29: 18 | B29: DH04 91104:S&S CHK | C29: =0.38/200 -> 0.0019 | D29: =VLOOKUP(B29,Summary!$B$30:$AK$464,5,FALSE) -> 65 | H29: 65 | J29: SWEET & SOUR SAUCE | K29: 200 | L29: 13000 | M29: 24.7
A30: 19 | B30: DH05 91105:BUTTER CHK | C30: 0.0059 | D30: =VLOOKUP(B30,Summary!$B$30:$AK$464,5,FALSE) -> 217 | H30: 217 | J30: BUTTER CREAM SAUCE | K30: 75 | L30: =+K30*H30 -> 16275 | M30: 96.0225
A31: 20 | B31: DH06 91106:HK F.RICE | C31: =0.28/30 -> 0.009333333333 | D31: =VLOOKUP(B31,Summary!$B$30:$AK$464,5,FALSE) -> 154 | H31: 154 | L31: =+K31*H31 -> 0 | M31: 0
A32: 21 | B32: DH07 91107:SBL F.RICE | C32: 0.0091 | D32: =VLOOKUP(B32,Summary!$B$30:$AK$464,5,FALSE) -> 66 | H32: 66 | J32: SAMBAL (FRIED)SAUCE | K32: 30 | L32: 1980 | M32: 18.018
A33: 22 | B33: DH08 91108:SBL F.MEE | C33: 0.0091 | D33: =VLOOKUP(B33,Summary!$B$30:$AK$464,5,FALSE) -> 19 | H33: 19 | J33: SAMBAL (FRIED)SAUCE | K33: 30 | L33: =+K33*H33 -> 570 | M33: 5.187
A34: 23 | B34: DH09 91109:BP UDON | C34: 0.0039 | D34: =VLOOKUP(B34,Summary!$B$30:$AK$464,5,FALSE) -> 66 | H34: 66 | J34: BLACK PEPPER SAUCE (UDON) | K34: 70 | L34: =+K34*H34 -> 4620 | M34: 18.018
A35: 24 | B35: DH10 91110:NISSIN | C35: =0.7/80 -> 0.00875 | D35: =VLOOKUP(B35,Summary!$B$30:$AK$464,5,FALSE) -> 49 | H35: 49 | L35: =+K35*H35 -> 0 | M35: 0
A36: =+A35+1 -> 25 | B36: DH11 91111:VEG RICE | C36: =0.28/90 -> 0.003111111111 | D36: =VLOOKUP(B36,Summary!$B$30:$AK$464,5,FALSE) -> 25 | H36: 25 | L36: 0 | M36: 0
A37: =+A36+1 -> 26 | B37: DH12 91112:NASI LEMAK | C37: 0.0074 | D37: =VLOOKUP(B37,Summary!$B$30:$AK$464,5,FALSE) -> 0 | H37: 0 | J37: SAMBAL SAUCE (NASI) | K37: 110 | L37: 0 | M37: 0
A38: 27 | B38: DH13 91113:KUEY TEOW | C38: 0.0091 | D38: =VLOOKUP(B38,Summary!$B$30:$AK$464,5,FALSE) -> 0 | H38: 0 | J38: SAMBAL (FRIED)SAUCE | K38: 30 | L38: 0 | M38: 0
A39: 28 | B39: DH14 91114:F.BALL MEE | C39: =0.75/130 -> 0.005769230769 | D39: =VLOOKUP(B39,Summary!$B$30:$AK$464,5,FALSE) -> 0 | H39: 0 | L39: 0 | M39: 0
A40: =+A39+1 -> 29 | B40: DH15 91115:CHK NOODLE | C40: 0.0015 | D40: =VLOOKUP(B40,Summary!$B$30:$AK$464,5,FALSE) -> 57 | H40: 57 | J40: DRY NOODLE SAUCE | K40: 25 | L40: 1425 | M40: 2.1375
A41: 30 | B41: DG01 91001:BP CHK CP | C41: 0.003 | D41: =VLOOKUP(B41,Summary!$B$30:$AK$464,5,FALSE) -> 510 | H41: =+G41+D41 -> 510 | J41: BLACK PEPPER SAUCE | K41: 90 | L41: =+K41*H41 -> 45900 | M41: 137.7
A42: 31 | B42: DH16 91116:MGL CHK | C42: =0.7/80 -> 0.00875 | D42: =VLOOKUP(B42,Summary!$B$30:$AK$464,5,FALSE) -> 55 | H42: =+G42+D42 -> 55 | J42: MONGOLIAN SAUCE | K42: 80 | L42: =+K42*H42 -> 4400
A43: 32 | B43: DG02 91002:GVY CHK CP | C43: 0.0068 | D43: =VLOOKUP(B43,Summary!$B$30:$AK$464,5,FALSE) -> 126 | H43: 126 | J43: GRAVY SAUCE | K43: 90 | L43: =+K43*H43 -> 11340 | M43: 77.112
A44: 33 | B44: DG03 91003:MSR CHK CP | C44: =0.27/38 -> 0.007105263158 | D44: =VLOOKUP(B44,Summary!$B$30:$AK$464,5,FALSE) -> 535 | H44: 535 | J44: MUSHROOM SAUCE | K44: 90 | L44: =+K44*H44 -> 48150 | M44: 342.1184211
A45: 34 | B45: DG04 91004:CKN MARY | C45: 0.007105263158 | D45: =VLOOKUP(B45,Summary!$B$30:$AK$464,5,FALSE) -> 290 | H45: 290 | J45: DRESSING THOUSAND ISLAND | K45: 30 | L45: =+K45*H45 -> 8700 | M45: 61.81578947
A46: 35 | B46: DG05 91005:FISH&CHIP | C46: 0.0124 | D46: =VLOOKUP(B46,Summary!$B$30:$AK$464,5,FALSE) -> 295 | H46: 295 | J46: TARTAR SAUCE | K46: 30 | L46: 8850 | M46: 109.74
A47: 36 | B47: DG06 91006:SPAGHETTI | C47: 0.0114 | D47: =VLOOKUP(B47,Summary!$B$30:$AK$464,5,FALSE) -> 232 | H47: 232 | J47: BOLOGNESE SAUCE | K47: 150 | L47: 34800 | M47: 396.72
A48: 37 | B48: DG07 91007:CHK SALAD | C48: =0.7/65 -> 0.01076923077 | D48: =VLOOKUP(B48,Summary!$B$30:$AK$464,5,FALSE) -> 87 | H48: 87 | J48: DRESSING THOUSAND ISLAND | K48: 65 | L48: 5655 | M48: 60.9
A49: 38 | B49: DI01 91201:SFD STICK | C49: =0.27/38 -> 0.007105263158 | D49: =VLOOKUP(B49,Summary!$B$30:$AK$464,5,FALSE) -> 1 | H49: 1 | J49: THAI SAUCE | K49: 38 | L49: 38 | M49: 0.27
A50: 39 | B50: DI02 91202:FREN FRIES | C50: =0.13/30 -> 0.004333333333 | D50: =VLOOKUP(B50,Summary!$B$30:$AK$464,5,FALSE) -> 30 | H50: 30 | J50: SAUCE CHILLI (KIMBALL) | K50: 30 | L50: 900 | M50: 3.9
A51: 40 | B51: DI03 91203:GOLD MROOM | C51: =0.28/30 -> 0.009333333333 | D51: =VLOOKUP(B51,Summary!$B$30:$AK$464,5,FALSE) -> 8 | H51: 8 | L51: 0 | M51: 0
A52: 41 | B52: DI04 91204:FISHBALL | C52: 0.0043 | D52: =VLOOKUP(B52,Summary!$B$30:$AK$464,5,FALSE) -> 7 | H52: 7 | J52: SAUCE CHILLI (KIMBALL) | K52: 30 | L52: 210 | M52: 0.903
A53: 42 | B53: DI05 91205:RAINBOW RL | C53: 0.0124 | D53: =VLOOKUP(B53,Summary!$B$30:$AK$464,5,FALSE) -> 0 | H53: 0 | J53: TARTAR SAUCE | K53: 38 | L53: 0 | M53: 0
A54: 43 | B54: DI06 91206:SPRING RL | C54: 0.0124 | D54: =VLOOKUP(B54,Summary!$B$30:$AK$464,5,FALSE) -> 6 | H54: 6 | J54: TARTAR SAUCE | K54: 30 | L54: 180 | M54: 2.232
A55: 44 | B55: DI07 91207:SAUSAGE | C55: =0.32/30 -> 0.01066666667 | D55: =VLOOKUP(B55,Summary!$B$30:$AK$464,5,FALSE) -> 22 | H55: 22 | J55: SAUCE CHILLI (KIMBALL) | K55: 30 | L55: 660 | M55: 7.04
A56: 45 | B56: DI10 91301:DUMPLING | C56: =0.2/30 -> 0.006666666667 | D56: =VLOOKUP(B56,Summary!$B$30:$AK$464,5,FALSE) -> 0 | H56: 0 | L56: 0 | M56: 0
A57: 46 | B57: DI11 91302:NUGGET | C57: =0.2/30 -> 0.006666666667 | D57: =VLOOKUP(B57,Summary!$B$30:$AK$464,5,FALSE) -> 43 | H57: 43 | J57: SAUCE CHILLI (KIMBALL) | K57: 30 | L57: 1290 | M57: 8.6
A58: 47 | B58: DI12 91303:CHK WING | C58: =0.2/30 -> 0.006666666667 | D58: =VLOOKUP(B58,Summary!$B$30:$AK$464,5,FALSE) -> 57 | H58: 57 | J58: THAI SAUCE | K58: 38 | L58: 2166 | M58: 14.44
A59: 48 | B59: DI13 91304:IKAN BILIS | C59: 0.0091 | D59: =VLOOKUP(B59,Summary!$B$30:$AK$464,5,FALSE) -> 6 | H59: 6 | J59: SAMBAL (FRIED)SAUCE | K59: 30 | L59: 1770 | M59: 16.107
A60: 49 | B60: DI14 91305:THAI RL | C60: =0.2/30 -> 0.006666666667 | D60: =VLOOKUP(B60,Summary!$B$30:$AK$464,5,FALSE) -> 6 | H60: 6 | J60: THAI SAUCE | K60: 38 | L60: =+K60*H60 -> 228 | M60: =+L60*C60 -> 1.52
A61: 50 | B61: DI16 91307:D/F C.WING | C61: =0.32/30 -> 0.01066666667 | D61: =VLOOKUP(B61,Summary!$B$30:$AK$464,5,FALSE) -> 28 | H61: 28 | J61: SAUCE CHILLI (KIMBALL) | K61: 30 | L61: 840 | M61: 8.96
A62: 51 | B62: DI17 91308:C/CALAMARI | C62: 0.0124 | D62: =VLOOKUP(B62,Summary!$B$30:$AK$464,5,FALSE) -> 17 | H62: 17 | J62: TARTAR SAUCE | K62: 30 | L62: 510 | M62: 6.324
A63: 52 | B63: DI18 91309:Mc O.RINGS | C63: 0.0124 | D63: =VLOOKUP(B63,Summary!$B$30:$AK$464,5,FALSE) -> 8 | H63: 8 | J63: TARTAR SAUCE | K63: 30 | L63: =+K63*H63 -> 240 | M63: 2.976
A64: 53 | B64: DI19 91310:McSPIRAL.F | C64: 0.0063 | D64: =VLOOKUP(B64,Summary!$B$30:$AK$464,5,FALSE) -> 18 | H64: 18 | J64: MAYONNAISE | K64: 30 | L64: 540 | M64: 3.402
A65: 54 | B65: DI20 91311Mc H/SMILES | C65: 0.0063 | D65: =VLOOKUP(B65,Summary!$B$30:$AK$464,5,FALSE) -> 5 | H65: 5 | J65: MAYONNAISE | K65: 30 | L65: =+K65*H65 -> 150 | M65: =+L65*C65 -> 0.945
A66: 55 | B66: DI21 91312:Mc HASH.B | C66: 0.0063 | D66: =VLOOKUP(B66,Summary!$B$30:$AK$464,5,FALSE) -> 11 | H66: 11 | J66: MAYONNAISE | K66: 30 | L66: =+K66*H66 -> 330 | M66: =+L66*C66 -> 2.079
H67: 0 | L67: 0 | M67: 0
B68: SIDE ORDER | H68: 0
A69: =+A66+1 -> 56 | B69: DC01 1101:THAI CHK | C69: =0.27/38 -> 0.007105263158 | D69: =VLOOKUP(B69,Summary!$B$30:$AK$464,5,FALSE) -> 53 | H69: 53 | J69: THAI SAUCE | K69: 75 | L69: =+K69*H69 -> 3975 | M69: =+L69*C69 -> 28.24342105
A70: =+A69+1 -> 57 | B70: DC02 1102:MAMITE CHK | C70: 0.002 | D70: =VLOOKUP(B70,Summary!$B$30:$AK$464,5,FALSE) -> 70 | H70: 70 | J70: MARMITE SAUCE | K70: 80 | L70: =+K70*H70 -> 5600 | M70: =+L70*C70 -> 11.2
A71: =+A70+1 -> 58 | B71: DC03 1103:KO PO CHK | C71: 0.0015 | D71: =VLOOKUP(B71,Summary!$B$30:$AK$464,5,FALSE) -> 0 | H71: 0 | J71: KONG PO SAUCE | K71: 180 | L71: 0 | M71: 0
A72: 59 | B72: DC04 1104:S&S CHK | C72: =0.38/200 -> 0.0019 | D72: =VLOOKUP(B72,Summary!$B$30:$AK$464,5,FALSE) -> 21 | H72: 21 | J72: SWEET & SOUR SAUCE | K72: 200 | L72: 4200 | M72: 7.98
A73: 60 | B73: DC05 1105:BUTTER CHK | C73: 0.0059 | D73: =VLOOKUP(B73,Summary!$B$30:$AK$464,5,FALSE) -> 105 | H73: 105 | J73: BUTTER CREAM SAUCE | K73: 75 | L73: =+K73*H73 -> 7875 | M73: 46.4625
A74: 61 | B74: DC06 1106:HK F.RICE | C74: =0.28/30 -> 0.009333333333 | D74: =VLOOKUP(B74,Summary!$B$30:$AK$464,5,FALSE) -> 60 | H74: 60 | L74: =+K74*H74 -> 0 | M74: 0
A75: 62 | B75: DC07 1107:SBL F.RICE | C75: 0.0091 | D75: =VLOOKUP(B75,Summary!$B$30:$AK$464,5,FALSE) -> 38 | H75: 38 | J75: SAMBAL (FRIED)SAUCE | K75: 30 | L75: =+K75*H75 -> 1140 | M75: 10.374
A76: 63 | B76: DC08 1108:SBL F.MEE | C76: 0.0091 | D76: =VLOOKUP(B76,Summary!$B$30:$AK$464,5,FALSE) -> 8 | H76: 8 | J76: SAMBAL (FRIED)SAUCE | K76: 30 | L76: =+K76*H76 -> 240 | M76: 2.184
A77: 64 | B77: DC09 1109:BP UDON | C77: 0.0039 | D77: =VLOOKUP(B77,Summary!$B$30:$AK$464,5,FALSE) -> 27 | H77: 27 | J77: BLACK PEPPER SAUCE (UDON) | K77: 70 | L77: =+K77*H77 -> 1890 | M77: 7.371
A78: 65 | B78: DC10 1110:NISSIN | C78: =0.7/80 -> 0.00875 | D78: =VLOOKUP(B78,Summary!$B$30:$AK$464,5,FALSE) -> 33 | H78: 33 | L78: =+K78*H78 -> 0 | M78: 0
A79: 66 | B79: DC11 1111:VEG RICE | C79: =0.28/90 -> 0.003111111111 | D79: =VLOOKUP(B79,Summary!$B$30:$AK$464,5,FALSE) -> 5 | H79: 5 | L79: 0 | M79: 0
A80: 67 | B80: DC12 1112:NASI LEMAK | C80: 0.0074 | D80: =VLOOKUP(B80,Summary!$B$30:$AK$464,5,FALSE) -> 0 | H80: 0 | J80: SAMBAL SAUCE (NASI) | K80: 110 | L80: 0 | M80: 0
A81: 68 | B81: DC13 1113:KUEY TEOW | C81: 0.0091 | D81: =VLOOKUP(B81,Summary!$B$30:$AK$464,5,FALSE) -> 0 | H81: 0 | J81: SAMBAL (FRIED)SAUCE | K81: 30 | L81: 0 | M81: 0
A82: 69 | B82: DC14 1114:F.BALL MEE | C82: =0.75/130 -> 0.005769230769 | D82: =VLOOKUP(B82,Summary!$B$30:$AK$464,5,FALSE) -> 0 | H82: 0 | L82: 0 | M82: 0
A83: 70 | B83: DC15 1115:CHK NOODLE | C83: 0.0015 | D83: =VLOOKUP(B83,Summary!$B$30:$AK$464,5,FALSE) -> 22 | H83: 22 | J83: DRY NOODLE SAUCE | K83: 25 | L83: 550 | M83: 0.825
A84: 71 | B84: DB01 1001:BP CKN CP | C84: 0.003 | D84: =VLOOKUP(B84,Summary!$B$30:$AK$464,5,FALSE) -> 99 | H84: 99 | J84: BLACK PEPPER SAUCE | K84: 90 | L84: =+K84*H84 -> 8910 | M84: 26.73
A85: 72 | B85: DC16 1116:MGL CHICKEN | C85: =0.7/80 -> 0.00875 | D85: =VLOOKUP(B85,Summary!$B$30:$AK$464,5,FALSE) -> 27 | H85: 27 | J85: MONGOLIAN SAUCE | K85: 80 | L85: =+K85*H85 -> 2160
A86: 73 | B86: DB02 1002:GVY CHK CP | C86: 0.0068 | D86: =VLOOKUP(B86,Summary!$B$30:$AK$464,5,FALSE) -> 24 | H86: 24 | J86: GRAVY SAUCE | K86: 90 | L86: =+K86*H86 -> 2160 | M86: =+L86*C86 -> 14.688
A87: 74 | B87: DB03 1003:MSR CKN CP | C87: =0.27/38 -> 0.007105263158 | D87: =VLOOKUP(B87,Summary!$B$30:$AK$464,5,FALSE) -> 96 | H87: 96 | J87: MUSHROOM SAUCE | K87: 90 | L87: =+K87*H87 -> 8640 | M87: 61.38947368
A88: 75 | B88: DB04 1004:CKN MARY | C88: 0.007105263158 | D88: =VLOOKUP(B88,Summary!$B$30:$AK$464,5,FALSE) -> 41 | H88: 41 | J88: DRESSING THOUSAND ISLAND | K88: 30 | L88: 1230 | M88: 8.739473684
A89: 76 | B89: DB05 1005:FISH&CHIP | C89: 0.0124 | D89: =VLOOKUP(B89,Summary!$B$30:$AK$464,5,FALSE) -> 38 | H89: 38 | J89: TARTAR SAUCE | K89: 30 | L89: 1140 | M89: 14.136
A90: 77 | B90: DB06 1006:SPAGHETTI | C90: 0.0114 | D90: =VLOOKUP(B90,Summary!$B$30:$AK$464,5,FALSE) -> 57 | H90: 57 | J90: BOLOGNESE SAUCE | K90: 150 | L90: 8550 | M90: 97.47
A91: 78 | B91: DB07 1007:CHK SALAD | C91: =0.7/65 -> 0.01076923077 | D91: =VLOOKUP(B91,Summary!$B$30:$AK$464,5,FALSE) -> 23 | H91: 23 | J91: DRESSING THOUSAND ISLAND | K91: 65 | L91: 1495 | M91: 16.1
A92: 79 | B92: DD01 1201:SFD STICK | C92: =0.27/38 -> 0.007105263158 | D92: =VLOOKUP(B92,Summary!$B$30:$AK$464,5,FALSE) -> 5 | H92: 5 | J92: THAI SAUCE | K92: 38 | L92: 190 | M92: 1.35
A93: 80 | B93: DD02 1202:FREN FRIES | C93: =0.13/30 -> 0.004333333333 | D93: =VLOOKUP(B93,Summary!$B$30:$AK$464,5,FALSE) -> 98 | H93: 98 | J93: SAUCE CHILLI (KIMBALL) | K93: 30 | L93: 2940 | M93: 12.74
A94: 81 | B94: DD03 1203:GOLD MROOM | C94: =0.28/30 -> 0.009333333333 | D94: =VLOOKUP(B94,Summary!$B$30:$AK$464,5,FALSE) -> 9 | H94: 9 | L94: 0 | M94: 0
A95: 82 | B95: DD04 1204:FISHBALL | C95: 0.0043 | D95: =VLOOKUP(B95,Summary!$B$30:$AK$464,5,FALSE) -> 10 | H95: 10 | J95: SAUCE CHILLI (KIMBALL) | K95: 30 | L95: 300 | M95: 1.29
A96: 83 | B96: DD05 1205:RAINBOW RL | C96: 0.0124 | D96: =VLOOKUP(B96,Summary!$B$30:$AK$464,5,FALSE) -> 0 | H96: 0 | J96: TARTAR SAUCE | K96: 38 | L96: 0 | M96: 0
A97: 84 | B97: DD06 1206:SPRING RL | C97: 0.0124 | D97: =VLOOKUP(B97,Summary!$B$30:$AK$464,5,FALSE) -> 8 | H97: 8 | J97: TARTAR SAUCE | K97: 30 | L97: 240 | M97: 2.976
A98: 85 | B98: DD07 1207:SAUSAGE | C98: =0.32/30 -> 0.01066666667 | D98: =VLOOKUP(B98,Summary!$B$30:$AK$464,5,FALSE) -> 17 | H98: 17 | J98: SAUCE CHILLI (KIMBALL) | K98: 30 | L98: 510 | M98: 5.44
A99: 86 | B99: DD10 1301:DUMPLING | C99: =0.2/30 -> 0.006666666667 | D99: =VLOOKUP(B99,Summary!$B$30:$AK$464,5,FALSE) -> 0 | H99: 0 | L99: 0 | M99: 0
A100: 87 | B100: DD11 1302:NUGGET | C100: =0.2/30 -> 0.006666666667 | D100: =VLOOKUP(B100,Summary!$B$30:$AK$464,5,FALSE) -> 35 | H100: 35 | J100: SAUCE CHILLI (KIMBALL) | K100: 30 | L100: 1050 | M100: 7
A101: 88 | B101: DD12 1303:CHK WING | C101: =0.2/30 -> 0.006666666667 | D101: =VLOOKUP(B101,Summary!$B$30:$AK$464,5,FALSE) -> 24 | H101: 24 | J101: THAI SAUCE | K101: 38 | L101: 912 | M101: 6.08
A102: 89 | B102: DD13 1304:IKAN BILIS | C102: 0.0091 | D102: =VLOOKUP(B102,Summary!$B$30:$AK$464,5,FALSE) -> 8 | H102: 8 | J102: SAMBAL (FRIED)SAUCE | K102: 30 | L102: 1770 | M102: 16.107
A103: 90 | B103: DD14 1305:THAI RL | C103: =0.2/30 -> 0.006666666667 | D103: =VLOOKUP(B103,Summary!$B$30:$AK$464,5,FALSE) -> 5 | H103: 5 | J103: THAI SAUCE | K103: 38 | L103: =+K103*H103 -> 190 | M103: =+L103*C103 -> 1.266666667
A104: 91 | B104: DD16 1307:D.F C/WING | C104: =0.32/30 -> 0.01066666667 | D104: =VLOOKUP(B104,Summary!$B$30:$AK$464,5,FALSE) -> 18 | H104: 18 | J104: SAUCE CHILLI (KIMBALL) | K104: 30 | L104: 540 | M104: 5.76
A105: 92 | B105: DD17 1308 C/CALAMARI | C105: 0.0124 | D105: =VLOOKUP(B105,Summary!$B$30:$AK$464,5,FALSE) -> 6 | H105: 6 | J105: TARTAR SAUCE | K105: 30 | L105: 180 | M105: 2.232
A106: 93 | B106: DD18 1309 Mc C/O.RING | C106: 0.0124 | D106: =VLOOKUP(B106,Summary!$B$30:$AK$464,5,FALSE) -> 6 | H106: =+G106+D106 -> 6 | J106: TARTAR SAUCE | K106: 30 | L106: 180 | M106: 2.232
A107: 94 | B107: DD19 1310:Mc SPIRAL/F | C107: 0.0063 | D107: =VLOOKUP(B107,Summary!$B$30:$AK$464,5,FALSE) -> 9 | H107: 9 | J107: MAYONNAISE | K107: 30 | L107: 270 | M107: 1.701
A108: 95 | B108: DD20 1311:Mc H/SMILES | C108: 0.0063 | D108: =VLOOKUP(B108,Summary!$B$30:$AK$464,5,FALSE) -> 4 | H108: 4 | J108: MAYONNAISE | K108: 30 | L108: 120 | M108: 0.756
A109: 96 | B109: DD21 1312:Mc HASH BRW | C109: 0.0063 | D109: =VLOOKUP(B109,Summary!$B$30:$AK$464,5,FALSE) -> 11 | H109: 11 | J109: MAYONNAISE | K109: 30 | L109: 330 | M109: 2.079
